Workbook

Sheet Indice
A1: Matriz de Articulación de Planes | B1: ANEXO B-1
A2: Matriz del Pla Estratégico Institucional | B2: ANEXO B-2
A3: Matriz de Articulación del POI con Metas Física a nivel de Actividad | B3: ANEXO B-3
A4: Matriz de Articulación del POI con Metas Financiaras a nivel de Actividad | B4: ANEXO B-4
A5: Matriz de Articulación del POI con Metas Física y Financieras a nivel de Tareas | B5: ANEXO B-5

Sheet B-1PESEM
A1: Anexo B-1
A2: Matriz de Articulación de Planes
A3: Objetivo Estratégico Sectorial | D3: Acción Estratégica Sectorial | G3: Objetivo Estratégico Institucional
A4: Codigo | B4: Enunciado | C4: Indicador | D4: Codigo | E4: Enunciado | F4: Indicador | G4: Codigo | H4: Enunciado | I4: Indicador
A5: OES.02 | B5: Ampliar la cobertura de aseguramiento para la protección en salud de la población | C5: Porcentaje de Población afiliada a un seguro de salud | D5: AES.02.01 | E5: Incrementar la cobertura de aseguramiento público de la población | F5: Porcentaje de población afiliada al SIS | G5: OEI 1 | H5: Incrementar la cobertura de la población objetivo del SIS. | I5: Porcentaje de asegurados al SIS que presentaron un reclamo por limitaciones de la cobertura del seguro.
G6: OEI 2 | H6: Reducir los riesgos técnicos y financieros de la prestación de planes y productos para el asegurado | I6: Porcentaje de prestaciones de salud reportadas que resultaron ser financiados por el SIS
D7: AES.02.02 | E7: Modernizar la gestión de los servicios de salud | F7: Porcentaje de personas que acuden a establecimientos de salud y reciben servicios de salud | G7: OEI 3 | H7: Mejorar la gestión del financiamiento de las prestaciones aprobadas para la atención del asegurado a | I7: Porcentaje de producción financiada con recursos administrados por el SIS respecto a la producción total valorizada.
D8: AES.02.03 | E8: Generar capacidades para el desarrollo e, implantación de tecnologías, investigacíón e información sanitaria. | G8: OEI 4 | H8: Mejorar la eficacia y eficiencia de los procesos de gestión institucional. | I8: Porcentaje de procesos priorizados certificados en el marco del Sistema de Gestión de la Calidad.

Sheet B-2 PEI
A1: Anexo B-2 Matriz del Plan Estratégico Institucional
A2: OEI/AEI | C2: Nombre del Indicador | D2: Formula del Indicador | E2: Fuente de Datos | F2: Tipo de Indciador | G2: Linea Base | I2: Valor actual | K2: Logros Esperados | N2: Responsable
A3: Codigo | B3: Enunciado | G3: Año | H3: Valor | I3: Año | J3: Valor | K3: 2017 | L3: 2018 | M3: 2019
A4: OEI 1 | B4: Incrementar la cobertura de la población objetivo del SIS. | C4: Porcentaje de asegurados al SIS que presentaron un reclamo por limitaciones de la cobertura del seguro. | D4: N° de reclamos relacionados a cobertura de seguro / Numero total de reclamos presentados. | E4: Base de datos de las GMR y la GA. | F4: Resultado | G4: 2015 | H4: ND | I4: 2016 | J4: 0.148 | K4: 0.15 | L4: 0.12 | M4: 0.1 | N4: G A
A5: AEI 1.1 | B5: Afiliación al SIS incrementada en la población objetivo. | C5: Porcentaje de población objetivo asegurada al SIS | D5: N° de personas afiliadas al SIS / Total de población objetivo del SIS | E5: Registro de afiliados al AUS. Base de datos SIS. | F5: Producto | G5: 2015 | H5: 0.76 | I5: 2016 | J5: 0.78 | K5: 0.8 | L5: 0.82 | M5: 0.84 | N5: G A
A6: AEI 1.2 | B6: Mecanismos de protección de derechos optimizados | C6: Porcentaje de asegurados que consideran resuelta su solicitud de atención. | D6: N° de asegurados encuestados que consideran resuelta su solicitud / Total de encuestados que realizan una solicitud. | E6: Encuesta Nacional del asegurados en OAAs. | F6: Producto | G6: 2015 | H6: ND | I6: 2016 | J6: ND | K6: 0.85 | L6: 0.9 | M6: 0.95 | N6: G A
A7: OEI 2 | B7: Reducir los riesgos técnicos y financieros de la prestación de planes y productos para el asegurado | C7: Porcentaje de prestaciones de salud reportadas que resultaron ser financiados por el SIS | D7: Prestaciones de salud financiadas por el SIS / Total deprestaciones de salud reportadas al SIS | E7: Modulo SME, PCPP, BD SIASIS | F7: Producto | G7: 2016 | H7: ND | I7: 2016 | J7: ND | K7: 0.975 | L7: 0.955 | M7: 0.92 | N7: GNF
A8: AEI 2.1 | B8: Control técnico y financiero de las prestaciones médicas valorizadas incrementado a los establecimientos de salud. | C8: Porcentaje de prestaciones médicas valorizadas con auditoria médica y financiera | D8: N° de prest. médicas valorizadas con auditoria méd/financ / Total de prestaciones medicas valorizadas. | E8: BD SIS | F8: Producto | G8: 2016 | H8: ND | I8: 2017 | J8: ND | K8: 0.05 | L8: 0.1 | M8: 0.2 | N8: GNF
A9: AEI 2.2 | B9: Auditoria médica y financiera optimizada a los establecimientos de salud. | C9: Porcentaje de prestaciones médicas auditadas con observaciones | D9: N° de prest. médicas auditadas con PCPP y Control recurrente con observación / Total de prestaciones medicas auditadas. | E9: Base de datos SIS. | F9: Producción | G9: 2016 | H9: ND | I9: 2017 | J9: ND | K9: 0.5 | L9: 0.45 | M9: 0.4 | N9: GREP
A10: OEI 3 | B10: Mejorar la gestión del financiamiento de las prestaciones aprobadas para la atención del asegurado a | C10: Porcentaje de producción financiada con recursos administrados por el SIS respecto a la producción total valorizada. | D10: Producción financiada por recursos auditados por el ISIS / Producción total valorizada. | E10: DB SIS, Informe GNF | F10: Producto | G10: 2016 | H10: ND | I10: 2017 | J10: ND | K10: 0.8 | L10: 0.9 | M10: 1 | N10: GNF
A11: AEI 3.1 | B11: Financiamiento del SIS incrementado por Recursos Directamente Recaudados. | C11: Porcentaje de recursos administrados por el SIS que han sido recaudados directamente. | D11: Recursos Directamente Recaudados / Recursos Administrados por el SIS | E11: Base de datos del MEF. Reporte de tesorería del SIS. | F11: Producto | G11: 2015 | H11: ND | I11: 2016 | J11: 0.003 | K11: 0.01 | L11: 0.04 | M11: 0.06 | N11: GNF
A12: AEI 3.2 | B12: Recursos del SIS transferidos orientados al financiamiento de reposición de medicamentos e insumos. | C12: Porcentaje de los recursos transferidos por el SIS destinados a la reposición de medicamentos e insumos. | D12: Recursos transferidos para reposición / Total de recursos transferidos. | E12: BD SIS | F12: Producto | G12: 2015 | H12: ND | I12: 2016 | J12: 0.592 | K12: 0.75 | L12: 0.77 | M12: 0.8 | N12: GNF
A13: AEI 3.3 | B13: Mecanismos de compra de servicios de salud optimizados para la atención del asegurado al SIS. | C13: Porcentaje de población SIS adscrita a los establecimientos de salud atendidos en atención primaria. | D13: N° de atendidos en Atención Primaria / Total de asegurados SIS. | E13: Base de datos del SIS | F13: Producción | G13: 2015 | H13: ND | I13: 2016 | J13: ND | K13: 0.45 | L13: 0.5 | M13: 0.6 | N13: GREP
A14: OEI 4 | B14: Mejorar la eficacia y eficiencia de los procesos de gestión institucional. | C14: Porcentaje de procesos priorizados certificados en el marco del Sistema de Gestión de la Calidad. | D14: N° de procesos priorizados con certificación ISO 9001 / Total de procesos priorizados | E14: Certificación ISO 9001:2015 | F14: Resultado | G14: 2015 | H14: 0 | I14: 2016 | J14: 0 | K14: 0.3 | L14: 0.7 | M14: 0.9 | N14: OGPPDO
A15: AEI 4.1 | B15: Fortalecer la organización orientado al desarrollo de las funciones de un asegurador público eficiente, eficaz y con un enfoque de procesos. | C15: Porcentaje de procesos priorizados de nivel 3 implementados. | D15: N° de proceso nivel 3 identificados y aprobados / Total de procesos identificados nivel 3. | E15: Documentos resolutivos | F15: Producto | G15: 2015 | H15: 0 | I15: 2016 | J15: 0 | K15: 0.5 | L15: 0.8 | M15: 0.9 | N15: OGPPDO
A16: AEI 4.2 | B16: Mejorar la calidad y seguridad de los sistemas de información del SISI a través de su informatización e integración. | C16: Porcentaje de sistemas de información informatizados e integrados. | D16: N° de sistemas informáticos informatizados, integrados y/o mejorados / Total de sistemas de información identificados para ser Informatizados, integrados y/o mejorados | E16: Plan operativo informatico. | F16: Producto | G16: 2015 | H16: ND | I16: 2016 | J16: ND | K16: 0.3 | L16: 0.4 | M16: 0.6 | N16: OGTI
A17: AEI 4.3 | B17: Fortalecer la comunicación estratégica institucional | C17: Porcentaje de encuestados que reconocen al SIS como asegurador público. | D17: N° de encuestados que reconocen al SIS como asegurador publico / Total de encuestados. | E17: Encuesta de los asegurados del SIS | F17: Resultado | G17: 2015 | H17: ND | I17: 2016 | J17: ND | K17: 0.4 | L17: 0.42 | M17: 0.44 | N17: OGIIT
A18: AEI 4.4 | B18: Mejorar la satisfacción aboral del personal del SIS. | C18: Índice de clima laboral. | D18: Indice de clima laboral. | E18: Encuesta de clima laboral. | F18: Producto | G18: 2015 | H18: ND | I18: 2016 | J18: ND | K18: 0.6 | L18: 0.65 | M18: 0.7 | N18: OGAR

Sheet B-3 FISICO
A1: ANEXO B-3 Matriz de Articulación del POI con Metas Física a nivel de Actividad
A2: Periodo PEI : 2017 - 2019 | L2: Nivel de Gobierno : E - GOBIERNO NACIONAL
A3: Sector : 11 - SALUD | L3: Pliego : 135 - SEGURO INTEGRAL DE SALUD
A4: Unidad Ejecutora : 001091 - SEGURO INTEGRAL DE SALUD
A5: OEI/AEI/CC/ COD_AO | D5: DESCRIPCIÓN DE ACTIVIDAD OPERATIVA | E5: U.M. | F5: S/. | G5: PROGRAMACION | S5: Meta Fisica Anual
G6: ENE | H6: FEB | I6: MAR | J6: ABR | K6: MAY | L6: JUN | M6: JUL | N6: AGO | O6: SET | P6: OCT | Q6: NOV | R6: DIC
B7: 01.01 - JEFATURA
A8: OEI.04 Mejorar la eficacia y eficiencia de los procesos de gestión instituciona
B9: AEI.04.01 Fortalecer la organización orientándola al desarrollo de las funciones de un asegurador público eficiente, eficaz y con enfoque de procesos.
C10: 18AO110921692 | D10: Efectuar acciones diversas de gestión institucional | E10: INFORME | F10: =+SUM('B-5 TAREAS'!E10:E13) -> 236708 | G10: =+SUM('B-5 TAREAS'!F10:F13) -> 1 | H10: =+SUM('B-5 TAREAS'!G10:G13) -> 2 | I10: =+SUM('B-5 TAREAS'!H10:H13) -> 3 | J10: =+SUM('B-5 TAREAS'!I10:I13) -> 1 | K10: =+SUM('B-5 TAREAS'!J10:J13) -> 1 | L10: =+SUM('B-5 TAREAS'!K10:K13) -> 3 | M10: =+SUM('B-5 TAREAS'!L10:L13) -> 1 | N10: =+SUM('B-5 TAREAS'!M10:M13) -> 1 | O10: =+SUM('B-5 TAREAS'!N10:N13) -> 3 | P10: =+SUM('B-5 TAREAS'!O10:O13) -> 1 | Q10: =+SUM('B-5 TAREAS'!P10:P13) -> 1 | R10: =+SUM('B-5 TAREAS'!Q10:Q13) -> 5 | S10: =SUM(G10:R10) -> 23
B11: 01.02.01 - SECRETARIA GENERAL
A12: OEI.04 Mejorar la eficacia y eficiencia de los procesos de gestión instituciona
B13: AEI.04.01 Fortalecer la organización orientándola al desarrollo de las funciones de un asegurador público eficiente, eficaz y con enfoque de procesos.
C14: 18AO110920381 | D14: Desarrollar acciones diversas de gestión | E14: INFORME | F14: =+SUM('B-5 TAREAS'!E17:E21) -> 971697 | G14: =+SUM('B-5 TAREAS'!F17:F21) -> 3576 | H14: =+SUM('B-5 TAREAS'!G17:G21) -> 3576 | I14: =+SUM('B-5 TAREAS'!H17:H21) -> 3578 | J14: =+SUM('B-5 TAREAS'!I17:I21) -> 3576 | K14: =+SUM('B-5 TAREAS'!J17:J21) -> 3577 | L14: =+SUM('B-5 TAREAS'!K17:K21) -> 3578 | M14: =+SUM('B-5 TAREAS'!L17:L21) -> 3577 | N14: =+SUM('B-5 TAREAS'!M17:M21) -> 3576 | O14: =+SUM('B-5 TAREAS'!N17:N21) -> 3578 | P14: =+SUM('B-5 TAREAS'!O17:O21) -> 6502 | Q14: =+SUM('B-5 TAREAS'!P17:P21) -> 6502 | R14: =+SUM('B-5 TAREAS'!Q17:Q21) -> 6502 | S14: =SUM(G14:R14) -> 51698
C15: 18AO111149643 | D15: Hacer seguimiento a la ejecución del Plan de Integridad y Lucha anti corrupción | E15: INFORME | F15: =+SUM('B-5 TAREAS'!E22:E31) -> 12960 | G15: =+SUM('B-5 TAREAS'!F22:F31) -> 0 | H15: =+SUM('B-5 TAREAS'!G22:G31) -> 0 | I15: =+SUM('B-5 TAREAS'!H22:H31) -> 0 | J15: =+SUM('B-5 TAREAS'!I22:I31) -> 0 | K15: =+SUM('B-5 TAREAS'!J22:J31) -> 0 | L15: =+SUM('B-5 TAREAS'!K22:K31) -> 0 | M15: =+SUM('B-5 TAREAS'!L22:L31) -> 0 | N15: =+SUM('B-5 TAREAS'!M22:M31) -> 0 | O15: =+SUM('B-5 TAREAS'!N22:N31) -> 0 | P15: =+SUM('B-5 TAREAS'!O22:O31) -> 1 | Q15: =+SUM('B-5 TAREAS'!P22:P31) -> 5 | R15: =+SUM('B-5 TAREAS'!Q22:Q31) -> 10 | S15: =SUM(G15:R15) -> 16
C16: 18AO110921680 | D16: Realizar acciones de gestión de gestión documentaria y archivo | E16: INFORME | F16: =+SUM('B-5 TAREAS'!E32:E33) -> 242961.3981 | G16: =+SUM('B-5 TAREAS'!F32:F33) -> 1 | H16: =+SUM('B-5 TAREAS'!G32:G33) -> 1 | I16: =+SUM('B-5 TAREAS'!H32:H33) -> 1 | J16: =+SUM('B-5 TAREAS'!I32:I33) -> 1 | K16: =+SUM('B-5 TAREAS'!J32:J33) -> 1 | L16: =+SUM('B-5 TAREAS'!K32:K33) -> 1 | M16: =+SUM('B-5 TAREAS'!L32:L33) -> 1 | N16: =+SUM('B-5 TAREAS'!M32:M33) -> 1 | O16: =+SUM('B-5 TAREAS'!N32:N33) -> 1 | P16: =+SUM('B-5 TAREAS'!O32:O33) -> 0 | Q16: =+SUM('B-5 TAREAS'!P32:P33) -> 0 | R16: =+SUM('B-5 TAREAS'!Q32:Q33) -> 0 | S16: =SUM(G16:R16) -> 9
B17: 02.01 - ORGANO DE CONTROL INSTITUCIONAL
A18: OEI.04 Mejorar la eficacia y eficiencia de los procesos de gestión instituciona
B19: AEI.04.01 Fortalecer la organización orientándola al desarrollo de las funciones de un asegurador público eficiente, eficaz y con enfoque de procesos.
C20: 18AO111142739 | D20: Desarrollar el control institucional | E20: INFORME | F20: =+SUM('B-5 TAREAS'!E37:E43) -> 79338 | G20: =+SUM('B-5 TAREAS'!F37:F43) -> 3 | H20: =+SUM('B-5 TAREAS'!G37:G43) -> 9 | I20: =+SUM('B-5 TAREAS'!H37:H43) -> 5 | J20: =+SUM('B-5 TAREAS'!I37:I43) -> 4 | K20: =+SUM('B-5 TAREAS'!J37:J43) -> 9 | L20: =+SUM('B-5 TAREAS'!K37:K43) -> 7 | M20: =+SUM('B-5 TAREAS'!L37:L43) -> 4 | N20: =+SUM('B-5 TAREAS'!M37:M43) -> 8 | O20: =+SUM('B-5 TAREAS'!N37:N43) -> 5 | P20: =+SUM('B-5 TAREAS'!O37:O43) -> 6 | Q20: =+SUM('B-5 TAREAS'!P37:P43) -> 9 | R20: =+SUM('B-5 TAREAS'!Q37:Q43) -> 4 | S20: =SUM(G20:R20) -> 73
B21: 03.01 - OFICINA GENERAL DE PLANEAMIENTO, PRESUPUESTO Y DESARROLLO ORGANIZACIONAL
A22: OEI.04 Mejorar la eficacia y eficiencia de los procesos de gestión instituciona
B23: AEI.04.01 Fortalecer la organización orientándola al desarrollo de las funciones de un asegurador público eficiente, eficaz y con enfoque de procesos.
C24: 18AO111141933 | D24: Coordinar, supervisar y evaluar el sistema de modernización de la gestión pública | E24: INFORME | F24: =+SUM('B-5 TAREAS'!E47:E50) -> 104202.0934 | G24: =+SUM('B-5 TAREAS'!F47:F50) -> 3 | H24: =+SUM('B-5 TAREAS'!G47:G50) -> 4 | I24: =+SUM('B-5 TAREAS'!H47:H50) -> 10 | J24: =+SUM('B-5 TAREAS'!I47:I50) -> 6 | K24: =+SUM('B-5 TAREAS'!J47:J50) -> 6 | L24: =+SUM('B-5 TAREAS'!K47:K50) -> 13 | M24: =+SUM('B-5 TAREAS'!L47:L50) -> 7 | N24: =+SUM('B-5 TAREAS'!M47:M50) -> 3 | O24: =+SUM('B-5 TAREAS'!N47:N50) -> 7 | P24: =+SUM('B-5 TAREAS'!O47:O50) -> 7 | Q24: =+SUM('B-5 TAREAS'!P47:P50) -> 6 | R24: =+SUM('B-5 TAREAS'!Q47:Q50) -> 6 | S24: =SUM(G24:R24) -> 78
C25: 18AO111141936 | D25: Desarrollar el planeamiento institucional y gestión presupuestal | E25: INFORME | F25: =+SUM('B-5 TAREAS'!E51:E58) -> 458051 | G25: =+SUM('B-5 TAREAS'!F51:F58) -> 186 | H25: =+SUM('B-5 TAREAS'!G51:G58) -> 189 | I25: =+SUM('B-5 TAREAS'!H51:H58) -> 186 | J25: =+SUM('B-5 TAREAS'!I51:I58) -> 190 | K25: =+SUM('B-5 TAREAS'!J51:J58) -> 184 | L25: =+SUM('B-5 TAREAS'!K51:K58) -> 187 | M25: =+SUM('B-5 TAREAS'!L51:L58) -> 187 | N25: =+SUM('B-5 TAREAS'!M51:M58) -> 189 | O25: =+SUM('B-5 TAREAS'!N51:N58) -> 186 | P25: =+SUM('B-5 TAREAS'!O51:O58) -> 191 | Q25: =+SUM('B-5 TAREAS'!P51:P58) -> 184 | R25: =+SUM('B-5 TAREAS'!Q51:Q58) -> 191 | S25: =SUM(G25:R25) -> 2250
C26: 18AO111141939 | D26: Realizar gestión del financiamiento con cooperantes | E26: INFORME | F26: =+SUM('B-5 TAREAS'!E59:E62) -> 1585494 | G26: =+SUM('B-5 TAREAS'!F59:F62) -> 0 | H26: =+SUM('B-5 TAREAS'!G59:G62) -> 0 | I26: =+SUM('B-5 TAREAS'!H59:H62) -> 0 | J26: =+SUM('B-5 TAREAS'!I59:I62) -> 0 | K26: =+SUM('B-5 TAREAS'!J59:J62) -> 0 | L26: =+SUM('B-5 TAREAS'!K59:K62) -> 0 | M26: =+SUM('B-5 TAREAS'!L59:L62) -> 2 | N26: =+SUM('B-5 TAREAS'!M59:M62) -> 0 | O26: =+SUM('B-5 TAREAS'!N59:N62) -> 1 | P26: =+SUM('B-5 TAREAS'!O59:O62) -> 1 | Q26: =+SUM('B-5 TAREAS'!P59:P62) -> 1 | R26: =+SUM('B-5 TAREAS'!Q59:Q62) -> 4 | S26: =SUM(G26:R26) -> 9
B27: 03.02 - OFICINA GENERAL DE ASESORÍA JURÍDICA
A28: OEI.04 Mejorar la eficacia y eficiencia de los procesos de gestión instituciona
B29: AEI.04.01 Fortalecer la organización orientándola al desarrollo de las funciones de un asegurador público eficiente, eficaz y con enfoque de procesos.
C30: 18AO111142899 | D30: Brindar asesoramiento legal | E30: INFORME | F30: =+SUM('B-5 TAREAS'!E66:E69) -> 476548 | G30: =+SUM('B-5 TAREAS'!F66:F69) -> 63 | H30: =+SUM('B-5 TAREAS'!G66:G69) -> 61 | I30: =+SUM('B-5 TAREAS'!H66:H69) -> 65 | J30: =+SUM('B-5 TAREAS'!I66:I69) -> 54 | K30: =+SUM('B-5 TAREAS'!J66:J69) -> 58 | L30: =+SUM('B-5 TAREAS'!K66:K69) -> 57 | M30: =+SUM('B-5 TAREAS'!L66:L69) -> 56 | N30: =+SUM('B-5 TAREAS'!M66:M69) -> 56 | O30: =+SUM('B-5 TAREAS'!N66:N69) -> 54 | P30: =+SUM('B-5 TAREAS'!O66:O69) -> 55 | Q30: =+SUM('B-5 TAREAS'!P66:P69) -> 55 | R30: =+SUM('B-5 TAREAS'!Q66:Q69) -> 54 | S30: =SUM(G30:R30) -> 688
B31: 04.01 - OFICINA GENERAL DE IMAGEN INSTITUCIONAL Y TRANSPARENCIA
A32: OEI.04 Mejorar la eficacia y eficiencia de los procesos de gestión instituciona
B33: AEI.04.03 Fortalecer la comunicación estratégica institucional.
C34: 18AO110920388 | D34: Fortalecimiento de la imagen institucional | E34: INFORME | F34: =+SUM('B-5 TAREAS'!E73:E81) -> 1169727.242 | G34: =+SUM('B-5 TAREAS'!F73:F81) -> 1 | H34: =+SUM('B-5 TAREAS'!G73:G81) -> 1 | I34: =+SUM('B-5 TAREAS'!H73:H81) -> 1 | J34: =+SUM('B-5 TAREAS'!I73:I81) -> 1 | K34: =+SUM('B-5 TAREAS'!J73:J81) -> 2 | L34: =+SUM('B-5 TAREAS'!K73:K81) -> 1 | M34: =+SUM('B-5 TAREAS'!L73:L81) -> 1 | N34: =+SUM('B-5 TAREAS'!M73:M81) -> 1 | O34: =+SUM('B-5 TAREAS'!N73:N81) -> 1 | P34: =+SUM('B-5 TAREAS'!O73:O81) -> 7 | Q34: =+SUM('B-5 TAREAS'!P73:P81) -> 7 | R34: =+SUM('B-5 TAREAS'!Q73:Q81) -> 3 | S34: =SUM(G34:R34) -> 27
C35: 18AO110920392 | D35: Gestión del acceso a la información pública y del portal de transparencia | E35: INFORME | F35: =+SUM('B-5 TAREAS'!E82:E85) -> 731374.7576 | G35: =+SUM('B-5 TAREAS'!F82:F85) -> 2 | H35: =+SUM('B-5 TAREAS'!G82:G85) -> 2 | I35: =+SUM('B-5 TAREAS'!H82:H85) -> 2 | J35: =+SUM('B-5 TAREAS'!I82:I85) -> 2 | K35: =+SUM('B-5 TAREAS'!J82:J85) -> 2 | L35: =+SUM('B-5 TAREAS'!K82:K85) -> 2 | M35: =+SUM('B-5 TAREAS'!L82:L85) -> 2 | N35: =+SUM('B-5 TAREAS'!M82:M85) -> 2 | O35: =+SUM('B-5 TAREAS'!N82:N85) -> 2 | P35: =+SUM('B-5 TAREAS'!O82:O85) -> 4 | Q35: =+SUM('B-5 TAREAS'!P82:P85) -> 3 | R35: =+SUM('B-5 TAREAS'!Q82:Q85) -> 3 | S35: =SUM(G35:R35) -> 28
B36: 04.02.01 - OFICINA GENERAL DE ADMINISTRACIÓN DE RECURSOS
A37: OEI.04 Mejorar la eficacia y eficiencia de los procesos de gestión instituciona
B38: AEI.04.01 Fortalecer la organización orientándola al desarrollo de las funciones de un asegurador público eficiente, eficaz y con enfoque de procesos.
C39: 18AO111142901 | D39: Supervisar el cumplimiento de los sistemas administrativos a su cargo | E39: INFORME | F39: =+SUM('B-5 TAREAS'!E89:E103) -> 627319 | G39: =+SUM('B-5 TAREAS'!F89:F103) -> 4 | H39: =+SUM('B-5 TAREAS'!G89:G103) -> 13 | I39: =+SUM('B-5 TAREAS'!H89:H103) -> 11 | J39: =+SUM('B-5 TAREAS'!I89:I103) -> 13 | K39: =+SUM('B-5 TAREAS'!J89:J103) -> 8 | L39: =+SUM('B-5 TAREAS'!K89:K103) -> 8 | M39: =+SUM('B-5 TAREAS'!L89:L103) -> 9 | N39: =+SUM('B-5 TAREAS'!M89:M103) -> 10 | O39: =+SUM('B-5 TAREAS'!N89:N103) -> 9 | P39: =+SUM('B-5 TAREAS'!O89:O103) -> 14 | Q39: =+SUM('B-5 TAREAS'!P89:P103) -> 23 | R39: =+SUM('B-5 TAREAS'!Q89:Q103) -> 22 | S39: =SUM(G39:R39) -> 144
B40: 04.02.02 - OFICINA DE ABASTECIMIENTO
A41: OEI.04 Mejorar la eficacia y eficiencia de los procesos de gestión instituciona
B42: AEI.04.01 Fortalecer la organización orientándola al desarrollo de las funciones de un asegurador público eficiente, eficaz y con enfoque de procesos.
C43: 18AO110920401 | D43: Realizar acciones de contratación de bienes y servicios | E43: INFORME | F43: =+SUM('B-5 TAREAS'!E107:E117) -> 14825824 | G43: =+SUM('B-5 TAREAS'!F107:F117) -> 4 | H43: =+SUM('B-5 TAREAS'!G107:G117) -> 5 | I43: =+SUM('B-5 TAREAS'!H107:H117) -> 5 | J43: =+SUM('B-5 TAREAS'!I107:I117) -> 5 | K43: =+SUM('B-5 TAREAS'!J107:J117) -> 4 | L43: =+SUM('B-5 TAREAS'!K107:K117) -> 4 | M43: =+SUM('B-5 TAREAS'!L107:L117) -> 5 | N43: =+SUM('B-5 TAREAS'!M107:M117) -> 4 | O43: =+SUM('B-5 TAREAS'!N107:N117) -> 4 | P43: =+SUM('B-5 TAREAS'!O107:O117) -> 4 | Q43: =+SUM('B-5 TAREAS'!P107:P117) -> 6 | R43: =+SUM('B-5 TAREAS'!Q107:Q117) -> 6 | S43: =SUM(G43:R43) -> 56
B44: 04.02.03 - OFICINA DE GESTIÓN DE RECURSOS HUMANOS
A45: OEI.04 Mejorar la eficacia y eficiencia de los procesos de gestión instituciona
B46: AEI.04.04 Mejorar la satisfacción laboral del personal del SIS.
C47: 18AO110920421 | D47: Ejecutar las acciones de incorporacion de servidores | E47: INFORME | F47: =+SUM('B-5 TAREAS'!E121:E127) -> 759335 | G47: =+SUM('B-5 TAREAS'!F121:F127) -> 1 | H47: =+SUM('B-5 TAREAS'!G121:G127) -> 2 | I47: =+SUM('B-5 TAREAS'!H121:H127) -> 3 | J47: =+SUM('B-5 TAREAS'!I121:I127) -> 2 | K47: =+SUM('B-5 TAREAS'!J121:J127) -> 2 | L47: =+SUM('B-5 TAREAS'!K121:K127) -> 3 | M47: =+SUM('B-5 TAREAS'!L121:L127) -> 2 | N47: =+SUM('B-5 TAREAS'!M121:M127) -> 2 | O47: =+SUM('B-5 TAREAS'!N121:N127) -> 3 | P47: =+SUM('B-5 TAREAS'!O121:O127) -> 5 | Q47: =+SUM('B-5 TAREAS'!P121:P127) -> 7 | R47: =+SUM('B-5 TAREAS'!Q121:Q127) -> 6 | S47: =SUM(G47:R47) -> 38
C48: 18AO111142904 | D48: Gestion de recursos cas - cap | E48: INFORME | F48: =+SUM('B-5 TAREAS'!E128:E129) -> 61965516 | G48: =+SUM('B-5 TAREAS'!F128:F129) -> 2 | H48: =+SUM('B-5 TAREAS'!G128:G129) -> 2 | I48: =+SUM('B-5 TAREAS'!H128:H129) -> 2 | J48: =+SUM('B-5 TAREAS'!I128:I129) -> 2 | K48: =+SUM('B-5 TAREAS'!J128:J129) -> 2 | L48: =+SUM('B-5 TAREAS'!K128:K129) -> 2 | M48: =+SUM('B-5 TAREAS'!L128:L129) -> 2 | N48: =+SUM('B-5 TAREAS'!M128:M129) -> 2 | O48: =+SUM('B-5 TAREAS'!N128:N129) -> 2 | P48: =+SUM('B-5 TAREAS'!O128:O129) -> 2 | Q48: =+SUM('B-5 TAREAS'!P128:P129) -> 2 | R48: =+SUM('B-5 TAREAS'!Q128:Q129) -> 2 | S48: =SUM(G48:R48) -> 24
B49: 04.02.04 - OFICINA DE CONTABILIDAD
A50: OEI.04 Mejorar la eficacia y eficiencia de los procesos de gestión instituciona
B51: AEI.04.01 Fortalecer la organización orientándola al desarrollo de las funciones de un asegurador público eficiente, eficaz y con enfoque de procesos.
C52: 18AO110920537 | D52: Realizar la elaboración, analisis y emisión de los estados financieros y presupuestarios. | E52: INFORME | F52: =+SUM('B-5 TAREAS'!E133:E139) -> 43568 | G52: =+SUM('B-5 TAREAS'!F133:F139) -> 477 | H52: =+SUM('B-5 TAREAS'!G133:G139) -> 666 | I52: =+SUM('B-5 TAREAS'!H133:H139) -> 899 | J52: =+SUM('B-5 TAREAS'!I133:I139) -> 986 | K52: =+SUM('B-5 TAREAS'!J133:J139) -> 1166 | L52: =+SUM('B-5 TAREAS'!K133:K139) -> 1572 | M52: =+SUM('B-5 TAREAS'!L133:L139) -> 1007 | N52: =+SUM('B-5 TAREAS'!M133:M139) -> 1007 | O52: =+SUM('B-5 TAREAS'!N133:N139) -> 1225 | P52: =+SUM('B-5 TAREAS'!O133:O139) -> 758 | Q52: =+SUM('B-5 TAREAS'!P133:P139) -> 720 | R52: =+SUM('B-5 TAREAS'!Q133:Q139) -> 945 | S52: =SUM(G52:R52) -> 11428
B53: 04.02.05 - OFICINA DE TESORERÍA
A54: OEI.04 Mejorar la eficacia y eficiencia de los procesos de gestión instituciona
B55: AEI.04.01 Fortalecer la organización orientándola al desarrollo de las funciones de un asegurador público eficiente, eficaz y con enfoque de procesos.
C56: 18AO111142907 | D56: Optimizar el control de los ingresos y egresos | E56: INFORME | F56: =+SUM('B-5 TAREAS'!E143:E153) -> 1937189 | G56: =+SUM('B-5 TAREAS'!F143:F153) -> 973 | H56: =+SUM('B-5 TAREAS'!G143:G153) -> 1176 | I56: =+SUM('B-5 TAREAS'!H143:H153) -> 1330 | J56: =+SUM('B-5 TAREAS'!I143:I153) -> 2284 | K56: =+SUM('B-5 TAREAS'!J143:J153) -> 1809 | L56: =+SUM('B-5 TAREAS'!K143:K153) -> 1712 | M56: =+SUM('B-5 TAREAS'!L143:L153) -> 1013 | N56: =+SUM('B-5 TAREAS'!M143:M153) -> 1462 | O56: =+SUM('B-5 TAREAS'!N143:N153) -> 1464 | P56: =+SUM('B-5 TAREAS'!O143:O153) -> 1158 | Q56: =+SUM('B-5 TAREAS'!P143:P153) -> 1158 | R56: =+SUM('B-5 TAREAS'!Q143:Q153) -> 1210 | S56: =SUM(G56:R56) -> 16749
B57: 04.03 - OFICINA GENERAL DE TECNOLOGÍA DE LA INFORMACIÓN
A58: OEI.04 Mejorar la eficacia y eficiencia de los procesos de gestión instituciona
B59: AEI.04.02 Mejorar la calidad y seguridad de los sistemas de información del SIS, a través de su informatización e integración.
C60: 18AO110920396 | D60: Elaboración, aprobación y ejecución del plan operativo informático | E60: INFORME | F60: =+SUM('B-5 TAREAS'!E157:E174) -> 4534801 | G60: =+SUM('B-5 TAREAS'!F157:F174) -> 3 | H60: =+SUM('B-5 TAREAS'!G157:G174) -> 4 | I60: =+SUM('B-5 TAREAS'!H157:H174) -> 5 | J60: =+SUM('B-5 TAREAS'!I157:I174) -> 3 | K60: =+SUM('B-5 TAREAS'!J157:J174) -> 5 | L60: =+SUM('B-5 TAREAS'!K157:K174) -> 6 | M60: =+SUM('B-5 TAREAS'!L157:L174) -> 5 | N60: =+SUM('B-5 TAREAS'!M157:M174) -> 3 | O60: =+SUM('B-5 TAREAS'!N157:N174) -> 5 | P60: =+SUM('B-5 TAREAS'!O157:O174) -> 4 | Q60: =+SUM('B-5 TAREAS'!P157:P174) -> 10 | R60: =+SUM('B-5 TAREAS'!Q157:Q174) -> 10 | S60: =SUM(G60:R60) -> 63
B61: 05.01 - GERENCIA DEL ASEGURADO
A62: OEI.01 Incrementar la cobertura de la población objetivo del SIS
B63: AEI.01.01 Afiliación al SIS incrementada en la población objetivo.
C64: 18AO111142910 | D64: Conducción y supervisión de las acciones de afiliación | E64: INFORME | F64: =+SUM('B-5 TAREAS'!E178:E185) -> 330554.5243 | G64: =+SUM('B-5 TAREAS'!F178:F185) -> 4 | H64: =+SUM('B-5 TAREAS'!G178:G185) -> 4 | I64: =+SUM('B-5 TAREAS'!H178:H185) -> 4 | J64: =+SUM('B-5 TAREAS'!I178:I185) -> 3 | K64: =+SUM('B-5 TAREAS'!J178:J185) -> 3 | L64: =+SUM('B-5 TAREAS'!K178:K185) -> 3 | M64: =+SUM('B-5 TAREAS'!L178:L185) -> 3 | N64: =+SUM('B-5 TAREAS'!M178:M185) -> 4 | O64: =+SUM('B-5 TAREAS'!N178:N185) -> 4 | P64: =+SUM('B-5 TAREAS'!O178:O185) -> 3 | Q64: =+SUM('B-5 TAREAS'!P178:P185) -> 6 | R64: =+SUM('B-5 TAREAS'!Q178:Q185) -> 4 | S64: =SUM(G64:R64) -> 45
B65: AEI.01.02 Mecanismos de protección de derechos optimizados para los asegurados al SIS.
C66: 18AO110920443 | D66: Promocion de los derechos y deberes del asegurado al sis y sus productos | E66: INFORME | F66: =+SUM('B-5 TAREAS'!E187:E190) -> 353715.2058 | G66: =+SUM('B-5 TAREAS'!F187:F190) -> 2 | H66: =+SUM('B-5 TAREAS'!G187:G190) -> 2 | I66: =+SUM('B-5 TAREAS'!H187:H190) -> 5 | J66: =+SUM('B-5 TAREAS'!I187:I190) -> 2 | K66: =+SUM('B-5 TAREAS'!J187:J190) -> 2 | L66: =+SUM('B-5 TAREAS'!K187:K190) -> 8 | M66: =+SUM('B-5 TAREAS'!L187:L190) -> 2 | N66: =+SUM('B-5 TAREAS'!M187:M190) -> 2 | O66: =+SUM('B-5 TAREAS'!N187:N190) -> 5 | P66: =+SUM('B-5 TAREAS'!O187:O190) -> 7 | Q66: =+SUM('B-5 TAREAS'!P187:P190) -> 2 | R66: =+SUM('B-5 TAREAS'!Q187:Q190) -> 3 | S66: =SUM(G66:R66) -> 42
C67: 18AO111149595 | D67: Protección al asegurado SIS. | E67: INFORME | F67: =+SUM('B-5 TAREAS'!E191:E193) -> 13067.49666 | G67: =+SUM('B-5 TAREAS'!F191:F193) -> 0 | H67: =+SUM('B-5 TAREAS'!G191:G193) -> 0 | I67: =+SUM('B-5 TAREAS'!H191:H193) -> 0 | J67: =+SUM('B-5 TAREAS'!I191:I193) -> 0 | K67: =+SUM('B-5 TAREAS'!J191:J193) -> 0 | L67: =+SUM('B-5 TAREAS'!K191:K193) -> 0 | M67: =+SUM('B-5 TAREAS'!L191:L193) -> 0 | N67: =+SUM('B-5 TAREAS'!M191:M193) -> 0 | O67: =+SUM('B-5 TAREAS'!N191:N193) -> 0 | P67: =+SUM('B-5 TAREAS'!O191:O193) -> 2 | Q67: =+SUM('B-5 TAREAS'!P191:P193) -> 2 | R67: =+SUM('B-5 TAREAS'!Q191:Q193) -> 2 | S67: =SUM(G67:R67) -> 6
C68: 18AO111149596 | D68: Atención al asegurado SIS | E68: INFORME | F68: =+SUM('B-5 TAREAS'!E194:E197) -> 214118.7732 | G68: =+SUM('B-5 TAREAS'!F194:F197) -> 0 | H68: =+SUM('B-5 TAREAS'!G194:G197) -> 0 | I68: =+SUM('B-5 TAREAS'!H194:H197) -> 0 | J68: =+SUM('B-5 TAREAS'!I194:I197) -> 0 | K68: =+SUM('B-5 TAREAS'!J194:J197) -> 0 | L68: =+SUM('B-5 TAREAS'!K194:K197) -> 0 | M68: =+SUM('B-5 TAREAS'!L194:L197) -> 0 | N68: =+SUM('B-5 TAREAS'!M194:M197) -> 0 | O68: =+SUM('B-5 TAREAS'!N194:N197) -> 0 | P68: =+SUM('B-5 TAREAS'!O194:O197) -> 6 | Q68: =+SUM('B-5 TAREAS'!P194:P197) -> 10 | R68: =+SUM('B-5 TAREAS'!Q194:Q197) -> 15 | S68: 31
B69: 05.02 - GERENCIA DE RIESGO Y EVALUACIÓN DE LAS PRESTACIONES
A70: OEI.02 Reducir los riesgos técnicos y financieros de la prestación de planes y productos para el asegurado al SIS.
B71: AEI.02.02 Auditoría Médica y Financiera Optimizada a los Establecimientos de Salud
C72: 18AO111142911 | D72: Conducción de acciones de control tecnico | E72: INFORME | F72: =+SUM('B-5 TAREAS'!E201:E207) -> 165279.6819 | G72: =+SUM('B-5 TAREAS'!F201:F207) -> 2 | H72: =+SUM('B-5 TAREAS'!G201:G207) -> 2 | I72: =+SUM('B-5 TAREAS'!H201:H207) -> 2 | J72: =+SUM('B-5 TAREAS'!I201:I207) -> 2 | K72: =+SUM('B-5 TAREAS'!J201:J207) -> 2 | L72: =+SUM('B-5 TAREAS'!K201:K207) -> 3 | M72: =+SUM('B-5 TAREAS'!L201:L207) -> 4 | N72: =+SUM('B-5 TAREAS'!M201:M207) -> 6 | O72: =+SUM('B-5 TAREAS'!N201:N207) -> 7 | P72: =+SUM('B-5 TAREAS'!O201:O207) -> 6 | Q72: =+SUM('B-5 TAREAS'!P201:P207) -> 11 | R72: =+SUM('B-5 TAREAS'!Q201:Q207) -> 7 | S72: =SUM(G72:R72) -> 54
B73: AEI.03.03 Mecanismos de compra de servicios de salud optimizados para la atención del asegurado al SIS.
C74: 18AO110920533 | D74: Desarrollar los modelos operacionales de los convenios o contratos aprobados. | E74: INFORME | F74: =+SUM('B-5 TAREAS'!E209:E212) -> 163684.3181 | G74: =+SUM('B-5 TAREAS'!F209:F212) -> 0 | H74: =+SUM('B-5 TAREAS'!G209:G212) -> 0 | I74: =+SUM('B-5 TAREAS'!H209:H212) -> 0 | J74: =+SUM('B-5 TAREAS'!I209:I212) -> 0 | K74: =+SUM('B-5 TAREAS'!J209:J212) -> 0 | L74: =+SUM('B-5 TAREAS'!K209:K212) -> 0 | M74: =+SUM('B-5 TAREAS'!L209:L212) -> 5 | N74: =+SUM('B-5 TAREAS'!M209:M212) -> 4 | O74: =+SUM('B-5 TAREAS'!N209:N212) -> 4 | P74: =+SUM('B-5 TAREAS'!O209:O212) -> 5 | Q74: =+SUM('B-5 TAREAS'!P209:P212) -> 7 | R74: =+SUM('B-5 TAREAS'!Q209:Q212) -> 6 | S74: =SUM(G74:R74) -> 31
B75: 05.03 - GERENCIA DE NEGOCIOS Y FINANCIAMIENTO
A76: OEI.02 Reducir los riesgos técnicos y financieros de la prestación de planes y productos para el asegurado al SIS.
B77: AEI.02.01 Control técnico y financiero de las prestaciones médicas valorizadas incrementado a los establecimientos de salud.
C78: 18AO111142912 | D78: Conducción de acciones de control financiero | E78: INFORME | F78: =+SUM('B-5 TAREAS'!E216:E219) -> 266992.3603 | G78: =+SUM('B-5 TAREAS'!F216:F219) -> 0 | H78: =+SUM('B-5 TAREAS'!G216:G219) -> 0 | I78: =+SUM('B-5 TAREAS'!H216:H219) -> 0 | J78: =+SUM('B-5 TAREAS'!I216:I219) -> 0 | K78: =+SUM('B-5 TAREAS'!J216:J219) -> 0 | L78: =+SUM('B-5 TAREAS'!K216:K219) -> 1 | M78: =+SUM('B-5 TAREAS'!L216:L219) -> 14 | N78: =+SUM('B-5 TAREAS'!M216:M219) -> 11 | O78: =+SUM('B-5 TAREAS'!N216:N219) -> 14 | P78: =+SUM('B-5 TAREAS'!O216:O219) -> 12 | Q78: =+SUM('B-5 TAREAS'!P216:P219) -> 8 | R78: =+SUM('B-5 TAREAS'!Q216:Q219) -> 5 | S78: =SUM(G78:R78) -> 65
B79: AEI.03.01 Financiamiento del SIS incrementado por los Recursos Directamente Recaudados
C80: 18AO111143139 | D80: Gestionar el riesgo corporativo | E80: INFORME | F80: =+SUM('B-5 TAREAS'!E222:E227) -> 62854.5207 | G80: =+SUM('B-5 TAREAS'!F222:F227) -> 1 | H80: =+SUM('B-5 TAREAS'!G222:G227) -> 1 | I80: =+SUM('B-5 TAREAS'!H222:H227) -> 1 | J80: =+SUM('B-5 TAREAS'!I222:I227) -> 1 | K80: =+SUM('B-5 TAREAS'!J222:J227) -> 1 | L80: =+SUM('B-5 TAREAS'!K222:K227) -> 3 | M80: =+SUM('B-5 TAREAS'!L222:L227) -> 0 | N80: =+SUM('B-5 TAREAS'!M222:M227) -> 0 | O80: =+SUM('B-5 TAREAS'!N222:N227) -> 2 | P80: =+SUM('B-5 TAREAS'!O222:O227) -> 1 | Q80: =+SUM('B-5 TAREAS'!P222:P227) -> 2 | R80: =+SUM('B-5 TAREAS'!Q222:Q227) -> 5 | S80: =SUM(G80:R80) -> 18
B81: AEI.03.02 Recursos del SIS transferidos orientados al financiamiento de reposición de medicamentos e insumos.
C82: 18AO111142914 | D82: Administrar los fondos de aseguramiento en salud | E82: INFORME | F82: =+SUM('B-5 TAREAS'!E229:E231) -> 1718225312 | G82: =+SUM('B-5 TAREAS'!F229:F231) -> 3 | H82: =+SUM('B-5 TAREAS'!G229:G231) -> 3 | I82: =+SUM('B-5 TAREAS'!H229:H231) -> 3 | J82: =+SUM('B-5 TAREAS'!I229:I231) -> 3 | K82: =+SUM('B-5 TAREAS'!J229:J231) -> 3 | L82: =+SUM('B-5 TAREAS'!K229:K231) -> 3 | M82: =+SUM('B-5 TAREAS'!L229:L231) -> 30 | N82: =+SUM('B-5 TAREAS'!M229:M231) -> 9 | O82: =+SUM('B-5 TAREAS'!N229:N231) -> 3 | P82: =+SUM('B-5 TAREAS'!O229:O231) -> 17 | Q82: =+SUM('B-5 TAREAS'!P229:P231) -> 7 | R82: =+SUM('B-5 TAREAS'!Q229:Q231) -> 4 | S82: =SUM(G82:R82) -> 88
B83: AEI.03.03 Mecanismos de compra de servicios de salud optimizados para la atención del asegurado al SIS.
C84: 18AO111142916 | D84: Control financiero de los expedientes administrativos y prestaciones económicas | E84: INFORME | F84: =+SUM('B-5 TAREAS'!E233:E236) -> 69566498.32 | G84: =+SUM('B-5 TAREAS'!F233:F236) -> 4 | H84: =+SUM('B-5 TAREAS'!G233:G236) -> 4 | I84: =+SUM('B-5 TAREAS'!H233:H236) -> 4 | J84: =+SUM('B-5 TAREAS'!I233:I236) -> 4 | K84: =+SUM('B-5 TAREAS'!J233:J236) -> 4 | L84: =+SUM('B-5 TAREAS'!K233:K236) -> 4 | M84: =+SUM('B-5 TAREAS'!L233:L236) -> 3 | N84: =+SUM('B-5 TAREAS'!M233:M236) -> 0 | O84: =+SUM('B-5 TAREAS'!N233:N236) -> 3 | P84: =+SUM('B-5 TAREAS'!O233:O236) -> 3 | Q84: =+SUM('B-5 TAREAS'!P233:P236) -> 4 | R84: =+SUM('B-5 TAREAS'!Q233:Q236) -> 4 | S84: =SUM(G84:R84) -> 41
B85: 06.01 - GERENCIA MACRO REGIONAL NORTE
A86: OEI.01 Incrementar la cobertura de la población objetivo del SIS
B87: AEI.01.01 Afiliación al SIS incrementada en la población objetivo.
C88: 18AO111142917 | D88: Control y supervision a las udr en las acciones de afiliacion | E88: INFORME | F88: =+SUM('B-5 TAREAS'!E240:E243) -> 13000 | G88: =+SUM('B-5 TAREAS'!F240:F243) -> 0 | H88: =+SUM('B-5 TAREAS'!G240:G243) -> 0 | I88: =+SUM('B-5 TAREAS'!H240:H243) -> 0 | J88: =+SUM('B-5 TAREAS'!I240:I243) -> 0 | K88: =+SUM('B-5 TAREAS'!J240:J243) -> 0 | L88: =+SUM('B-5 TAREAS'!K240:K243) -> 0 | M88: =+SUM('B-5 TAREAS'!L240:L243) -> 1 | N88: =+SUM('B-5 TAREAS'!M240:M243) -> 1 | O88: =+SUM('B-5 TAREAS'!N240:N243) -> 2 | P88: =+SUM('B-5 TAREAS'!O240:O243) -> 5 | Q88: =+SUM('B-5 TAREAS'!P240:P243) -> 3 | R88: =+SUM('B-5 TAREAS'!Q240:Q243) -> 1 | S88: =SUM(G88:R88) -> 13
A89: OEI.02 Reducir los riesgos técnicos y financieros de la prestación de planes y productos para el asegurado al SIS.
B90: AEI.02.01 Control técnico y financiero de las prestaciones médicas valorizadas incrementado a los establecimientos de salud.
C91: 18AO111142918 | D91: Supervisión y asistencia técnica a las audrs en las cciones de control técnico a prestaciones | E91: INFORME | F91: =+SUM('B-5 TAREAS'!E246:E249) -> 64323.14286 | G91: =+SUM('B-5 TAREAS'!F246:F249) -> 0 | H91: =+SUM('B-5 TAREAS'!G246:G249) -> 0 | I91: =+SUM('B-5 TAREAS'!H246:H249) -> 0 | J91: =+SUM('B-5 TAREAS'!I246:I249) -> 0 | K91: =+SUM('B-5 TAREAS'!J246:J249) -> 0 | L91: =+SUM('B-5 TAREAS'!K246:K249) -> 0 | M91: =+SUM('B-5 TAREAS'!L246:L249) -> 3 | N91: =+SUM('B-5 TAREAS'!M246:M249) -> 2 | O91: =+SUM('B-5 TAREAS'!N246:N249) -> 4 | P91: =+SUM('B-5 TAREAS'!O246:O249) -> 4 | Q91: =+SUM('B-5 TAREAS'!P246:P249) -> 0 | R91: =+SUM('B-5 TAREAS'!Q246:Q249) -> 0 | S91: =SUM(G91:R91) -> 13
A92: OEI.03 Mejorar la gestión del financiamiento de las prestaciones aprobadas para la atención del asegurado al SIS.
B93: AEI.03.02 Recursos del SIS transferidos orientados al financiamiento de reposición de medicamentos e insumos.
C94: 18AO111142919 | D94: Supervisión y asistencia técnica a las UDRs en el monitoreo, seguimiento y control de los recursos del SIS | E94: INFORME | F94: =+SUM('B-5 TAREAS'!E252:E255) -> 61140.71429 | G94: =+SUM('B-5 TAREAS'!F252:F255) -> 0 | H94: =+SUM('B-5 TAREAS'!G252:G255) -> 0 | I94: =+SUM('B-5 TAREAS'!H252:H255) -> 0 | J94: =+SUM('B-5 TAREAS'!I252:I255) -> 0 | K94: =+SUM('B-5 TAREAS'!J252:J255) -> 0 | L94: =+SUM('B-5 TAREAS'!K252:K255) -> 0 | M94: =+SUM('B-5 TAREAS'!L252:L255) -> 1 | N94: =+SUM('B-5 TAREAS'!M252:M255) -> 2 | O94: =+SUM('B-5 TAREAS'!N252:N255) -> 2 | P94: =+SUM('B-5 TAREAS'!O252:O255) -> 4 | Q94: =+SUM('B-5 TAREAS'!P252:P255) -> 2 | R94: =+SUM('B-5 TAREAS'!Q252:Q255) -> 0 | S94: =SUM(G94:R94) -> 11
A95: OEI.04 Mejorar la eficacia y eficiencia de los procesos de gestión instituciona
B96: AEI.04.01 Fortalecer la organización orientándola al desarrollo de las funciones de un asegurador público eficiente, eficaz y con enfoque de procesos.
C97: 18AO110920454 | D97: Realizar acciones de coordinación en gestión. | E97: INFORME | F97: =+SUM('B-5 TAREAS'!E258:E266) -> 104223.1429 | G97: =+SUM('B-5 TAREAS'!F258:F266) -> 3 | H97: =+SUM('B-5 TAREAS'!G258:G266) -> 3 | I97: =+SUM('B-5 TAREAS'!H258:H266) -> 5 | J97: =+SUM('B-5 TAREAS'!I258:I266) -> 3 | K97: =+SUM('B-5 TAREAS'!J258:J266) -> 3 | L97: =+SUM('B-5 TAREAS'!K258:K266) -> 7 | M97: =+SUM('B-5 TAREAS'!L258:L266) -> 3 | N97: =+SUM('B-5 TAREAS'!M258:M266) -> 3 | O97: =+SUM('B-5 TAREAS'!N258:N266) -> 5 | P97: =+SUM('B-5 TAREAS'!O258:O266) -> 4 | Q97: =+SUM('B-5 TAREAS'!P258:P266) -> 5 | R97: =+SUM('B-5 TAREAS'!Q258:Q266) -> 6 | S97: =SUM(G97:R97) -> 50
B98: 06.02 - UDR CAJAMARCA
A99: OEI.01 Incrementar la cobertura de la población objetivo del SIS
B100: AEI.01.01 Afiliación al SIS incrementada en la población objetivo.
C101: 18AO111143143 | D101: Realizar acciones de afiliación | E101: INFORME | F101: =+SUM('B-5 TAREAS'!E270:E276) -> 9380.557088 | G101: =+SUM('B-5 TAREAS'!F270:F276) -> 0 | H101: =+SUM('B-5 TAREAS'!G270:G276) -> 0 | I101: =+SUM('B-5 TAREAS'!H270:H276) -> 0 | J101: =+SUM('B-5 TAREAS'!I270:I276) -> 0 | K101: =+SUM('B-5 TAREAS'!J270:J276) -> 0 | L101: =+SUM('B-5 TAREAS'!K270:K276) -> 0 | M101: =+SUM('B-5 TAREAS'!L270:L276) -> 0 | N101: =+SUM('B-5 TAREAS'!M270:M276) -> 2 | O101: =+SUM('B-5 TAREAS'!N270:N276) -> 1 | P101: =+SUM('B-5 TAREAS'!O270:O276) -> 6 | Q101: =+SUM('B-5 TAREAS'!P270:P276) -> 4 | R101: =+SUM('B-5 TAREAS'!Q270:Q276) -> 5 | S101: =SUM(G101:R101) -> 18
B102: AEI.01.02 Mecanismos de protección de derechos optimizados para los asegurados al SIS.
C103: 18AO111143144 | D103: Realizar acciones para mitigar riesgos de vulneración de derechos de los asegurados | E103: INFORME | F103: =+SUM('B-5 TAREAS'!E278:E281) -> 5751.062038 | G103: =+SUM('B-5 TAREAS'!F278:F281) -> 0 | H103: =+SUM('B-5 TAREAS'!G278:G281) -> 0 | I103: =+SUM('B-5 TAREAS'!H278:H281) -> 0 | J103: =+SUM('B-5 TAREAS'!I278:I281) -> 0 | K103: =+SUM('B-5 TAREAS'!J278:J281) -> 0 | L103: =+SUM('B-5 TAREAS'!K278:K281) -> 0 | M103: =+SUM('B-5 TAREAS'!L278:L281) -> 2 | N103: =+SUM('B-5 TAREAS'!M278:M281) -> 2 | O103: =+SUM('B-5 TAREAS'!N278:N281) -> 3 | P103: =+SUM('B-5 TAREAS'!O278:O281) -> 2 | Q103: =+SUM('B-5 TAREAS'!P278:P281) -> 2 | R103: =+SUM('B-5 TAREAS'!Q278:Q281) -> 3 | S103: =SUM(G103:R103) -> 14
A104: OEI.02 Reducir los riesgos técnicos y financieros de la prestación de planes y productos para el asegurado al SIS.
B105: AEI.02.01 Control técnico y financiero de las prestaciones médicas valorizadas incrementado a los establecimientos de salud.
C106: 18AO111143145 | D106: Realizar el Control Técnico a las Prestaciones | E106: INFORME | F106: =+SUM('B-5 TAREAS'!E284:E288) -> 13002.87553 | G106: =+SUM('B-5 TAREAS'!F284:F288) -> 4 | H106: =+SUM('B-5 TAREAS'!G284:G288) -> 4 | I106: =+SUM('B-5 TAREAS'!H284:H288) -> 4 | J106: =+SUM('B-5 TAREAS'!I284:I288) -> 4 | K106: =+SUM('B-5 TAREAS'!J284:J288) -> 4 | L106: =+SUM('B-5 TAREAS'!K284:K288) -> 5 | M106: =+SUM('B-5 TAREAS'!L284:L288) -> 4 | N106: =+SUM('B-5 TAREAS'!M284:M288) -> 4 | O106: =+SUM('B-5 TAREAS'!N284:N288) -> 5 | P106: =+SUM('B-5 TAREAS'!O284:O288) -> 3 | Q106: =+SUM('B-5 TAREAS'!P284:P288) -> 3 | R106: =+SUM('B-5 TAREAS'!Q284:Q288) -> 5 | S106: =SUM(G106:R106) -> 49
A107: OEI.03 Mejorar la gestión del financiamiento de las prestaciones aprobadas para la atención del asegurado al SIS.
B108: AEI.03.02 Recursos del SIS transferidos orientados al financiamiento de reposición de medicamentos e insumos.
C109: 18AO111143147 | D109: Realizar la supervisión financiera alas UE | E109: INFORME | F109: =+SUM('B-5 TAREAS'!E291:E294) -> 13200.95851 | G109: =+SUM('B-5 TAREAS'!F291:F294) -> 2 | H109: =+SUM('B-5 TAREAS'!G291:G294) -> 2 | I109: =+SUM('B-5 TAREAS'!H291:H294) -> 2 | J109: =+SUM('B-5 TAREAS'!I291:I294) -> 2 | K109: =+SUM('B-5 TAREAS'!J291:J294) -> 2 | L109: =+SUM('B-5 TAREAS'!K291:K294) -> 4 | M109: =+SUM('B-5 TAREAS'!L291:L294) -> 2 | N109: =+SUM('B-5 TAREAS'!M291:M294) -> 2 | O109: =+SUM('B-5 TAREAS'!N291:N294) -> 3 | P109: =+SUM('B-5 TAREAS'!O291:O294) -> 2 | Q109: =+SUM('B-5 TAREAS'!P291:P294) -> 2 | R109: =+SUM('B-5 TAREAS'!Q291:Q294) -> 4 | S109: =SUM(G109:R109) -> 29
B110: AEI.03.03 Mecanismos de compra de servicios de salud optimizados para la atención del asegurado al SIS.
C111: 18AO111143148 | D111: Implementar los acuerdos de convenios y/o contratos suscritos con las IPRESS | E111: INFORME | F111: =+SUM('B-5 TAREAS'!E296:E301) -> 88700.54683 | G111: =+SUM('B-5 TAREAS'!F296:F301) -> 0 | H111: =+SUM('B-5 TAREAS'!G296:G301) -> 0 | I111: =+SUM('B-5 TAREAS'!H296:H301) -> 0 | J111: =+SUM('B-5 TAREAS'!I296:I301) -> 0 | K111: =+SUM('B-5 TAREAS'!J296:J301) -> 0 | L111: =+SUM('B-5 TAREAS'!K296:K301) -> 2 | M111: =+SUM('B-5 TAREAS'!L296:L301) -> 0 | N111: =+SUM('B-5 TAREAS'!M296:M301) -> 0 | O111: =+SUM('B-5 TAREAS'!N296:N301) -> 0 | P111: =+SUM('B-5 TAREAS'!O296:O301) -> 0 | Q111: =+SUM('B-5 TAREAS'!P296:P301) -> 1 | R111: =+SUM('B-5 TAREAS'!Q296:Q301) -> 4 | S111: =SUM(G111:R111) -> 7
B112: 06.03 - UDR CHOTA
A113: OEI.01 Incrementar la cobertura de la población objetivo del SIS
B114: AEI.01.01 Afiliación al SIS incrementada en la población objetivo.
C115: 18AO111142921 | D115: Realizar acciones de afiliación | E115: INFORME | F115: =+SUM('B-5 TAREAS'!E305:E309) -> 0 | G115: =+SUM('B-5 TAREAS'!F305:F309) -> 0 | H115: =+SUM('B-5 TAREAS'!G305:G309) -> 0 | I115: =+SUM('B-5 TAREAS'!H305:H309) -> 0 | J115: =+SUM('B-5 TAREAS'!I305:I309) -> 0 | K115: =+SUM('B-5 TAREAS'!J305:J309) -> 0 | L115: =+SUM('B-5 TAREAS'!K305:K309) -> 0 | M115: =+SUM('B-5 TAREAS'!L305:L309) -> 0 | N115: =+SUM('B-5 TAREAS'!M305:M309) -> 2 | O115: =+SUM('B-5 TAREAS'!N305:N309) -> 1 | P115: =+SUM('B-5 TAREAS'!O305:O309) -> 5 | Q115: =+SUM('B-5 TAREAS'!P305:P309) -> 2 | R115: =+SUM('B-5 TAREAS'!Q305:Q309) -> 3 | S115: =SUM(G115:R115) -> 13
B116: AEI.01.02 Mecanismos de protección de derechos optimizados para los asegurados al SIS.
C117: 18AO111142923 | D117: Realizar acciones para mitigar riesgos de vulneración de derechos de los asegurados | E117: INFORME | F117: =+SUM('B-5 TAREAS'!E311:E314) -> 5369.622332 | G117: =+SUM('B-5 TAREAS'!F311:F314) -> 0 | H117: =+SUM('B-5 TAREAS'!G311:G314) -> 0 | I117: =+SUM('B-5 TAREAS'!H311:H314) -> 0 | J117: =+SUM('B-5 TAREAS'!I311:I314) -> 0 | K117: =+SUM('B-5 TAREAS'!J311:J314) -> 0 | L117: =+SUM('B-5 TAREAS'!K311:K314) -> 0 | M117: =+SUM('B-5 TAREAS'!L311:L314) -> 2 | N117: =+SUM('B-5 TAREAS'!M311:M314) -> 2 | O117: =+SUM('B-5 TAREAS'!N311:N314) -> 3 | P117: =+SUM('B-5 TAREAS'!O311:O314) -> 2 | Q117: =+SUM('B-5 TAREAS'!P311:P314) -> 2 | R117: =+SUM('B-5 TAREAS'!Q311:Q314) -> 3 | S117: =SUM(G117:R117) -> 14
A118: OEI.02 Reducir los riesgos técnicos y financieros de la prestación de planes y productos para el asegurado al SIS.
B119: AEI.02.01 Control técnico y financiero de las prestaciones médicas valorizadas incrementado a los establecimientos de salud.
C120: 18AO111142924 | D120: Realzar el Control Técnico a las Prestaciones | E120: INFORME | F120: =+SUM('B-5 TAREAS'!E317:E321) -> 5200 | G120: =+SUM('B-5 TAREAS'!F317:F321) -> 4 | H120: =+SUM('B-5 TAREAS'!G317:G321) -> 4 | I120: =+SUM('B-5 TAREAS'!H317:H321) -> 4 | J120: =+SUM('B-5 TAREAS'!I317:I321) -> 4 | K120: =+SUM('B-5 TAREAS'!J317:J321) -> 4 | L120: =+SUM('B-5 TAREAS'!K317:K321) -> 5 | M120: =+SUM('B-5 TAREAS'!L317:L321) -> 4 | N120: =+SUM('B-5 TAREAS'!M317:M321) -> 4 | O120: =+SUM('B-5 TAREAS'!N317:N321) -> 5 | P120: =+SUM('B-5 TAREAS'!O317:O321) -> 3 | Q120: =+SUM('B-5 TAREAS'!P317:P321) -> 3 | R120: =+SUM('B-5 TAREAS'!Q317:Q321) -> 5 | S120: =SUM(G120:R120) -> 49
A121: OEI.03 Mejorar la gestión del financiamiento de las prestaciones aprobadas para la atención del asegurado al SIS.
B122: AEI.03.02 Recursos del SIS transferidos orientados al financiamiento de reposición de medicamentos e insumos.
C123: 18AO111142926 | D123: Realizar la supervisión financiera alas UE | E123: INFORME | F123: =+SUM('B-5 TAREAS'!E324:E327) -> 10000 | G123: =+SUM('B-5 TAREAS'!F324:F327) -> 2 | H123: =+SUM('B-5 TAREAS'!G324:G327) -> 2 | I123: =+SUM('B-5 TAREAS'!H324:H327) -> 2 | J123: =+SUM('B-5 TAREAS'!I324:I327) -> 2 | K123: =+SUM('B-5 TAREAS'!J324:J327) -> 2 | L123: =+SUM('B-5 TAREAS'!K324:K327) -> 4 | M123: =+SUM('B-5 TAREAS'!L324:L327) -> 2 | N123: =+SUM('B-5 TAREAS'!M324:M327) -> 2 | O123: =+SUM('B-5 TAREAS'!N324:N327) -> 3 | P123: =+SUM('B-5 TAREAS'!O324:O327) -> 2 | Q123: =+SUM('B-5 TAREAS'!P324:P327) -> 2 | R123: =+SUM('B-5 TAREAS'!Q324:Q327) -> 4 | S123: =SUM(G123:R123) -> 29
B124: AEI.03.03 Mecanismos de compra de servicios de salud optimizados para la atención del asegurado al SIS.
C125: 18AO111142927 | D125: Implementar los acuerdos de convenios y/o contratos suscritos con las IPRESS | E125: INFORME | F125: =+SUM('B-5 TAREAS'!E329:E333) -> 60032.37767 | G125: =+SUM('B-5 TAREAS'!F329:F333) -> 0 | H125: =+SUM('B-5 TAREAS'!G329:G333) -> 0 | I125: =+SUM('B-5 TAREAS'!H329:H333) -> 0 | J125: =+SUM('B-5 TAREAS'!I329:I333) -> 0 | K125: =+SUM('B-5 TAREAS'!J329:J333) -> 0 | L125: =+SUM('B-5 TAREAS'!K329:K333) -> 2 | M125: =+SUM('B-5 TAREAS'!L329:L333) -> 1 | N125: =+SUM('B-5 TAREAS'!M329:M333) -> 1 | O125: =+SUM('B-5 TAREAS'!N329:N333) -> 1 | P125: =+SUM('B-5 TAREAS'!O329:O333) -> 1 | Q125: =+SUM('B-5 TAREAS'!P329:P333) -> 2 | R125: =+SUM('B-5 TAREAS'!Q329:Q333) -> 4 | S125: =SUM(G125:R125) -> 12
B126: 06.04 - UDR CUTERVO
A127: OEI.01 Incrementar la cobertura de la población objetivo del SIS
B128: AEI.01.01 Afiliación al SIS incrementada en la población objetivo.
C129: 18AO111142928 | D129: Realizar acciones de afiliación | E129: INFORME | F129: =+SUM('B-5 TAREAS'!E337:E340) -> 0 | G129: =+SUM('B-5 TAREAS'!F337:F340) -> 0 | H129: =+SUM('B-5 TAREAS'!G337:G340) -> 0 | I129: =+SUM('B-5 TAREAS'!H337:H340) -> 0 | J129: =+SUM('B-5 TAREAS'!I337:I340) -> 0 | K129: =+SUM('B-5 TAREAS'!J337:J340) -> 0 | L129: =+SUM('B-5 TAREAS'!K337:K340) -> 0 | M129: =+SUM('B-5 TAREAS'!L337:L340) -> 0 | N129: =+SUM('B-5 TAREAS'!M337:M340) -> 2 | O129: =+SUM('B-5 TAREAS'!N337:N340) -> 1 | P129: =+SUM('B-5 TAREAS'!O337:O340) -> 2 | Q129: =+SUM('B-5 TAREAS'!P337:P340) -> 2 | R129: =+SUM('B-5 TAREAS'!Q337:Q340) -> 4 | S129: =SUM(G129:R129) -> 11
B130: AEI.01.02 Mecanismos de protección de derechos optimizados para los asegurados al SIS.
C131: 18AO111142929 | D131: Realizar acciones para mitigar riesgos de vulneración de derechos de los asegurados | E131: INFORME | F131: =+SUM('B-5 TAREAS'!E342:E345) -> 13700.20766 | G131: =+SUM('B-5 TAREAS'!F342:F345) -> 0 | H131: =+SUM('B-5 TAREAS'!G342:G345) -> 0 | I131: =+SUM('B-5 TAREAS'!H342:H345) -> 0 | J131: =+SUM('B-5 TAREAS'!I342:I345) -> 0 | K131: =+SUM('B-5 TAREAS'!J342:J345) -> 0 | L131: =+SUM('B-5 TAREAS'!K342:K345) -> 0 | M131: =+SUM('B-5 TAREAS'!L342:L345) -> 2 | N131: =+SUM('B-5 TAREAS'!M342:M345) -> 2 | O131: =+SUM('B-5 TAREAS'!N342:N345) -> 3 | P131: =+SUM('B-5 TAREAS'!O342:O345) -> 2 | Q131: =+SUM('B-5 TAREAS'!P342:P345) -> 2 | R131: =+SUM('B-5 TAREAS'!Q342:Q345) -> 4 | S131: =SUM(G131:R131) -> 15
A132: OEI.02 Reducir los riesgos técnicos y financieros de la prestación de planes y productos para el asegurado al SIS.
B133: AEI.02.01 Control técnico y financiero de las prestaciones médicas valorizadas incrementado a los establecimientos de salud.
C134: 18AO111142930 | D134: Realzar el Control Técnico a las Prestaciones | E134: INFORME | F134: =+SUM('B-5 TAREAS'!E348:E352) -> 11328.92014 | G134: =+SUM('B-5 TAREAS'!F348:F352) -> 4 | H134: =+SUM('B-5 TAREAS'!G348:G352) -> 4 | I134: =+SUM('B-5 TAREAS'!H348:H352) -> 4 | J134: =+SUM('B-5 TAREAS'!I348:I352) -> 4 | K134: =+SUM('B-5 TAREAS'!J348:J352) -> 4 | L134: =+SUM('B-5 TAREAS'!K348:K352) -> 5 | M134: =+SUM('B-5 TAREAS'!L348:L352) -> 4 | N134: =+SUM('B-5 TAREAS'!M348:M352) -> 4 | O134: =+SUM('B-5 TAREAS'!N348:N352) -> 5 | P134: =+SUM('B-5 TAREAS'!O348:O352) -> 4 | Q134: =+SUM('B-5 TAREAS'!P348:P352) -> 4 | R134: =+SUM('B-5 TAREAS'!Q348:Q352) -> 5 | S134: =SUM(G134:R134) -> 51
A135: OEI.03 Mejorar la gestión del financiamiento de las prestaciones aprobadas para la atención del asegurado al SIS.
B136: AEI.03.02 Recursos del SIS transferidos orientados al financiamiento de reposición de medicamentos e insumos.
C137: 18AO111142931 | D137: Realizar la supervisión financiera alas UE | E137: INFORME | F137: =+SUM('B-5 TAREAS'!E355:E358) -> 10000 | G137: =+SUM('B-5 TAREAS'!F355:F358) -> 2 | H137: =+SUM('B-5 TAREAS'!G355:G358) -> 2 | I137: =+SUM('B-5 TAREAS'!H355:H358) -> 2 | J137: =+SUM('B-5 TAREAS'!I355:I358) -> 2 | K137: =+SUM('B-5 TAREAS'!J355:J358) -> 2 | L137: =+SUM('B-5 TAREAS'!K355:K358) -> 4 | M137: =+SUM('B-5 TAREAS'!L355:L358) -> 2 | N137: =+SUM('B-5 TAREAS'!M355:M358) -> 2 | O137: =+SUM('B-5 TAREAS'!N355:N358) -> 3 | P137: =+SUM('B-5 TAREAS'!O355:O358) -> 1 | Q137: =+SUM('B-5 TAREAS'!P355:P358) -> 2 | R137: =+SUM('B-5 TAREAS'!Q355:Q358) -> 2 | S137: =SUM(G137:R137) -> 26
B138: AEI.03.03 Mecanismos de compra de servicios de salud optimizados para la atención del asegurado al SIS.
C139: 18AO111142932 | D139: Implementar los acuerdos de convenios y/o contratos suscritos con las IPRESS | E139: INFORME | F139: =+SUM('B-5 TAREAS'!E360:E364) -> 57540.87219 | G139: =+SUM('B-5 TAREAS'!F360:F364) -> 0 | H139: =+SUM('B-5 TAREAS'!G360:G364) -> 0 | I139: =+SUM('B-5 TAREAS'!H360:H364) -> 0 | J139: =+SUM('B-5 TAREAS'!I360:I364) -> 0 | K139: =+SUM('B-5 TAREAS'!J360:J364) -> 0 | L139: =+SUM('B-5 TAREAS'!K360:K364) -> 2 | M139: =+SUM('B-5 TAREAS'!L360:L364) -> 0 | N139: =+SUM('B-5 TAREAS'!M360:M364) -> 0 | O139: =+SUM('B-5 TAREAS'!N360:N364) -> 0 | P139: =+SUM('B-5 TAREAS'!O360:O364) -> 0 | Q139: =+SUM('B-5 TAREAS'!P360:P364) -> 0 | R139: =+SUM('B-5 TAREAS'!Q360:Q364) -> 5 | S139: =SUM(G139:R139) -> 7
B140: 06.05 - UDR JAÉN
A141: OEI.01 Incrementar la cobertura de la población objetivo del SIS
B142: AEI.01.01 Afiliación al SIS incrementada en la población objetivo.
C143: 18AO111142933 | D143: Realizar acciones de afiliación | E143: INFORME | F143: =+SUM('B-5 TAREAS'!E368:E371) -> 12402.30946 | G143: =+SUM('B-5 TAREAS'!F368:F371) -> 0 | H143: =+SUM('B-5 TAREAS'!G368:G371) -> 0 | I143: =+SUM('B-5 TAREAS'!H368:H371) -> 0 | J143: =+SUM('B-5 TAREAS'!I368:I371) -> 0 | K143: =+SUM('B-5 TAREAS'!J368:J371) -> 0 | L143: =+SUM('B-5 TAREAS'!K368:K371) -> 0 | M143: =+SUM('B-5 TAREAS'!L368:L371) -> 0 | N143: =+SUM('B-5 TAREAS'!M368:M371) -> 2 | O143: =+SUM('B-5 TAREAS'!N368:N371) -> 1 | P143: =+SUM('B-5 TAREAS'!O368:O371) -> 4 | Q143: =+SUM('B-5 TAREAS'!P368:P371) -> 2 | R143: =+SUM('B-5 TAREAS'!Q368:Q371) -> 3 | S143: =SUM(G143:R143) -> 12
B144: AEI.01.02 Mecanismos de protección de derechos optimizados para los asegurados al SIS.
C145: 18AO111142934 | D145: Realizar acciones para mitigar riesgos de vulneración de derechos de los asegurados | E145: INFORME | F145: =+SUM('B-5 TAREAS'!E373:E376) -> 12402.30946 | G145: =+SUM('B-5 TAREAS'!F373:F376) -> 0 | H145: =+SUM('B-5 TAREAS'!G373:G376) -> 0 | I145: =+SUM('B-5 TAREAS'!H373:H376) -> 0 | J145: =+SUM('B-5 TAREAS'!I373:I376) -> 0 | K145: =+SUM('B-5 TAREAS'!J373:J376) -> 0 | L145: =+SUM('B-5 TAREAS'!K373:K376) -> 0 | M145: =+SUM('B-5 TAREAS'!L373:L376) -> 2 | N145: =+SUM('B-5 TAREAS'!M373:M376) -> 2 | O145: =+SUM('B-5 TAREAS'!N373:N376) -> 3 | P145: =+SUM('B-5 TAREAS'!O373:O376) -> 3 | Q145: =+SUM('B-5 TAREAS'!P373:P376) -> 3 | R145: =+SUM('B-5 TAREAS'!Q373:Q376) -> 4 | S145: =SUM(G145:R145) -> 17
A146: OEI.02 Reducir los riesgos técnicos y financieros de la prestación de planes y productos para el asegurado al SIS.
B147: AEI.02.01 Control técnico y financiero de las prestaciones médicas valorizadas incrementado a los establecimientos de salud.
C148: 18AO111142935 | D148: Realzar el Control Técnico a las Prestaciones | E148: INFORME | F148: =+SUM('B-5 TAREAS'!E379:E383) -> 10000 | G148: =+SUM('B-5 TAREAS'!F379:F383) -> 4 | H148: =+SUM('B-5 TAREAS'!G379:G383) -> 4 | I148: =+SUM('B-5 TAREAS'!H379:H383) -> 4 | J148: =+SUM('B-5 TAREAS'!I379:I383) -> 4 | K148: =+SUM('B-5 TAREAS'!J379:J383) -> 4 | L148: =+SUM('B-5 TAREAS'!K379:K383) -> 5 | M148: =+SUM('B-5 TAREAS'!L379:L383) -> 4 | N148: =+SUM('B-5 TAREAS'!M379:M383) -> 4 | O148: =+SUM('B-5 TAREAS'!N379:N383) -> 5 | P148: =+SUM('B-5 TAREAS'!O379:O383) -> 3 | Q148: =+SUM('B-5 TAREAS'!P379:P383) -> 3 | R148: =+SUM('B-5 TAREAS'!Q379:Q383) -> 5 | S148: =SUM(G148:R148) -> 49
A149: OEI.03 Mejorar la gestión del financiamiento de las prestaciones aprobadas para la atención del asegurado al SIS.
B150: AEI.03.02 Recursos del SIS transferidos orientados al financiamiento de reposición de medicamentos e insumos.
C151: 18AO111142936 | D151: Realizar la supervisión financiera alas UE | E151: INFORME | F151: =+SUM('B-5 TAREAS'!E386:E389) -> 4600 | G151: =+SUM('B-5 TAREAS'!F386:F389) -> 2 | H151: =+SUM('B-5 TAREAS'!G386:G389) -> 2 | I151: =+SUM('B-5 TAREAS'!H386:H389) -> 2 | J151: =+SUM('B-5 TAREAS'!I386:I389) -> 2 | K151: =+SUM('B-5 TAREAS'!J386:J389) -> 2 | L151: =+SUM('B-5 TAREAS'!K386:K389) -> 4 | M151: =+SUM('B-5 TAREAS'!L386:L389) -> 2 | N151: =+SUM('B-5 TAREAS'!M386:M389) -> 2 | O151: =+SUM('B-5 TAREAS'!N386:N389) -> 3 | P151: =+SUM('B-5 TAREAS'!O386:O389) -> 1 | Q151: =+SUM('B-5 TAREAS'!P386:P389) -> 1 | R151: =+SUM('B-5 TAREAS'!Q386:Q389) -> 2 | S151: =SUM(G151:R151) -> 25
B152: AEI.03.03 Mecanismos de compra de servicios de salud optimizados para la atención del asegurado al SIS.
C153: 18AO111142937 | D153: Implementar los acuerdos de convenios y/o contratos suscritos con las IPRESS | E153: INFORME | F153: =+SUM('B-5 TAREAS'!E391:E395) -> 58541.38109 | G153: =+SUM('B-5 TAREAS'!F391:F395) -> 0 | H153: =+SUM('B-5 TAREAS'!G391:G395) -> 0 | I153: =+SUM('B-5 TAREAS'!H391:H395) -> 0 | J153: =+SUM('B-5 TAREAS'!I391:I395) -> 0 | K153: =+SUM('B-5 TAREAS'!J391:J395) -> 0 | L153: =+SUM('B-5 TAREAS'!K391:K395) -> 2 | M153: =+SUM('B-5 TAREAS'!L391:L395) -> 0 | N153: =+SUM('B-5 TAREAS'!M391:M395) -> 0 | O153: =+SUM('B-5 TAREAS'!N391:N395) -> 0 | P153: =+SUM('B-5 TAREAS'!O391:O395) -> 0 | Q153: =+SUM('B-5 TAREAS'!P391:P395) -> 1 | R153: =+SUM('B-5 TAREAS'!Q391:Q395) -> 0 | S153: =SUM(G153:R153) -> 3
B154: 06.06 - UDR LAMBAYEQUE
A155: OEI.01 Incrementar la cobertura de la población objetivo del SIS
B156: AEI.01.01 Afiliación al SIS incrementada en la población objetivo.
C157: 18AO111142938 | D157: Realizar acciones de afiliación | E157: INFORME | F157: =+SUM('B-5 TAREAS'!E399:E402) -> 11481.2037 | G157: =+SUM('B-5 TAREAS'!F399:F402) -> 0 | H157: =+SUM('B-5 TAREAS'!G399:G402) -> 0 | I157: =+SUM('B-5 TAREAS'!H399:H402) -> 0 | J157: =+SUM('B-5 TAREAS'!I399:I402) -> 0 | K157: =+SUM('B-5 TAREAS'!J399:J402) -> 0 | L157: =+SUM('B-5 TAREAS'!K399:K402) -> 0 | M157: =+SUM('B-5 TAREAS'!L399:L402) -> 0 | N157: =+SUM('B-5 TAREAS'!M399:M402) -> 2 | O157: =+SUM('B-5 TAREAS'!N399:N402) -> 1 | P157: =+SUM('B-5 TAREAS'!O399:O402) -> 4 | Q157: =+SUM('B-5 TAREAS'!P399:P402) -> 1 | R157: =+SUM('B-5 TAREAS'!Q399:Q402) -> 2 | S157: =SUM(G157:R157) -> 10
B158: AEI.01.02 Mecanismos de protección de derechos optimizados para los asegurados al SIS.
C159: 18AO111142939 | D159: Realizar acciones para mitigar riesgos de vulneración de derechos de los asegurados | E159: INFORME | F159: =+SUM('B-5 TAREAS'!E404:E407) -> 11481.2037 | G159: =+SUM('B-5 TAREAS'!F404:F407) -> 0 | H159: =+SUM('B-5 TAREAS'!G404:G407) -> 0 | I159: =+SUM('B-5 TAREAS'!H404:H407) -> 0 | J159: =+SUM('B-5 TAREAS'!I404:I407) -> 0 | K159: =+SUM('B-5 TAREAS'!J404:J407) -> 0 | L159: =+SUM('B-5 TAREAS'!K404:K407) -> 0 | M159: =+SUM('B-5 TAREAS'!L404:L407) -> 2 | N159: =+SUM('B-5 TAREAS'!M404:M407) -> 2 | O159: =+SUM('B-5 TAREAS'!N404:N407) -> 3 | P159: =+SUM('B-5 TAREAS'!O404:O407) -> 2 | Q159: =+SUM('B-5 TAREAS'!P404:P407) -> 2 | R159: =+SUM('B-5 TAREAS'!Q404:Q407) -> 3 | S159: =SUM(G159:R159) -> 14
A160: OEI.02 Reducir los riesgos técnicos y financieros de la prestación de planes y productos para el asegurado al SIS.
B161: AEI.02.01 Control técnico y financiero de las prestaciones médicas valorizadas incrementado a los establecimientos de salud.
C162: 18AO111142940 | D162: Realzar el Control Técnico a las Prestaciones | E162: INFORME | F162: =+SUM('B-5 TAREAS'!E410:E414) -> 26070.48148 | G162: =+SUM('B-5 TAREAS'!F410:F414) -> 4 | H162: =+SUM('B-5 TAREAS'!G410:G414) -> 4 | I162: =+SUM('B-5 TAREAS'!H410:H414) -> 4 | J162: =+SUM('B-5 TAREAS'!I410:I414) -> 4 | K162: =+SUM('B-5 TAREAS'!J410:J414) -> 4 | L162: =+SUM('B-5 TAREAS'!K410:K414) -> 5 | M162: =+SUM('B-5 TAREAS'!L410:L414) -> 4 | N162: =+SUM('B-5 TAREAS'!M410:M414) -> 4 | O162: =+SUM('B-5 TAREAS'!N410:N414) -> 5 | P162: =+SUM('B-5 TAREAS'!O410:O414) -> 3 | Q162: =+SUM('B-5 TAREAS'!P410:P414) -> 3 | R162: =+SUM('B-5 TAREAS'!Q410:Q414) -> 5 | S162: =SUM(G162:R162) -> 49
A163: OEI.03 Mejorar la gestión del financiamiento de las prestaciones aprobadas para la atención del asegurado al SIS.
B164: AEI.03.02 Recursos del SIS transferidos orientados al financiamiento de reposición de medicamentos e insumos.
C165: 18AO111142941 | D165: Realizar la supervisión financiera alas UE | E165: INFORME | F165: =+SUM('B-5 TAREAS'!E417:E420) -> 10000 | G165: =+SUM('B-5 TAREAS'!F417:F420) -> 2 | H165: =+SUM('B-5 TAREAS'!G417:G420) -> 2 | I165: =+SUM('B-5 TAREAS'!H417:H420) -> 2 | J165: =+SUM('B-5 TAREAS'!I417:I420) -> 2 | K165: =+SUM('B-5 TAREAS'!J417:J420) -> 2 | L165: =+SUM('B-5 TAREAS'!K417:K420) -> 4 | M165: =+SUM('B-5 TAREAS'!L417:L420) -> 2 | N165: =+SUM('B-5 TAREAS'!M417:M420) -> 2 | O165: =+SUM('B-5 TAREAS'!N417:N420) -> 3 | P165: =+SUM('B-5 TAREAS'!O417:O420) -> 2 | Q165: =+SUM('B-5 TAREAS'!P417:P420) -> 2 | R165: =+SUM('B-5 TAREAS'!Q417:Q420) -> 4 | S165: =SUM(G165:R165) -> 29
B166: AEI.03.03 Mecanismos de compra de servicios de salud optimizados para la atención del asegurado al SIS.
C167: 18AO111142942 | D167: Implementar los acuerdos de convenios y/o contratos suscritos con las IPRESS | E167: INFORME | F167: =+SUM('B-5 TAREAS'!E422:E426) -> 96442.11111 | G167: =+SUM('B-5 TAREAS'!F422:F426) -> 0 | H167: =+SUM('B-5 TAREAS'!G422:G426) -> 0 | I167: =+SUM('B-5 TAREAS'!H422:H426) -> 0 | J167: =+SUM('B-5 TAREAS'!I422:I426) -> 0 | K167: =+SUM('B-5 TAREAS'!J422:J426) -> 0 | L167: =+SUM('B-5 TAREAS'!K422:K426) -> 2 | M167: =+SUM('B-5 TAREAS'!L422:L426) -> 0 | N167: =+SUM('B-5 TAREAS'!M422:M426) -> 0 | O167: =+SUM('B-5 TAREAS'!N422:N426) -> 0 | P167: =+SUM('B-5 TAREAS'!O422:O426) -> 0 | Q167: =+SUM('B-5 TAREAS'!P422:P426) -> 1 | R167: =+SUM('B-5 TAREAS'!Q422:Q426) -> 4 | S167: =SUM(G167:R167) -> 7
B168: 06.07 - UDR LA LIBERTAD
A169: OEI.01 Incrementar la cobertura de la población objetivo del SIS
B170: AEI.01.01 Afiliación al SIS incrementada en la población objetivo.
C171: 18AO111142944 | D171: Realizar acciones de afiliación | E171: INFORME | F171: =+SUM('B-5 TAREAS'!E430:E433) -> 11207.99445 | G171: =+SUM('B-5 TAREAS'!F430:F433) -> 0 | H171: =+SUM('B-5 TAREAS'!G430:G433) -> 0 | I171: =+SUM('B-5 TAREAS'!H430:H433) -> 0 | J171: =+SUM('B-5 TAREAS'!I430:I433) -> 0 | K171: =+SUM('B-5 TAREAS'!J430:J433) -> 0 | L171: =+SUM('B-5 TAREAS'!K430:K433) -> 0 | M171: =+SUM('B-5 TAREAS'!L430:L433) -> 0 | N171: =+SUM('B-5 TAREAS'!M430:M433) -> 2 | O171: =+SUM('B-5 TAREAS'!N430:N433) -> 1 | P171: =+SUM('B-5 TAREAS'!O430:O433) -> 4 | Q171: =+SUM('B-5 TAREAS'!P430:P433) -> 1 | R171: =+SUM('B-5 TAREAS'!Q430:Q433) -> 2 | S171: =SUM(G171:R171) -> 10
B172: AEI.01.02 Mecanismos de protección de derechos optimizados para los asegurados al SIS.
C173: 18AO111142945 | D173: Realizar acciones para mitigar riesgos de vulneración de derechos de los asegurados | E173: INFORME | F173: =+SUM('B-5 TAREAS'!E435:E440) -> 11207.99445 | G173: =+SUM('B-5 TAREAS'!F435:F440) -> 0 | H173: =+SUM('B-5 TAREAS'!G435:G440) -> 0 | I173: =+SUM('B-5 TAREAS'!H435:H440) -> 0 | J173: =+SUM('B-5 TAREAS'!I435:I440) -> 0 | K173: =+SUM('B-5 TAREAS'!J435:J440) -> 0 | L173: =+SUM('B-5 TAREAS'!K435:K440) -> 0 | M173: =+SUM('B-5 TAREAS'!L435:L440) -> 2 | N173: =+SUM('B-5 TAREAS'!M435:M440) -> 2 | O173: =+SUM('B-5 TAREAS'!N435:N440) -> 3 | P173: =+SUM('B-5 TAREAS'!O435:O440) -> 6 | Q173: =+SUM('B-5 TAREAS'!P435:P440) -> 6 | R173: =+SUM('B-5 TAREAS'!Q435:Q440) -> 5 | S173: =SUM(G173:R173) -> 24
A174: OEI.02 Reducir los riesgos técnicos y financieros de la prestación de planes y productos para el asegurado al SIS.
B175: AEI.02.01 Control técnico y financiero de las prestaciones médicas valorizadas incrementado a los establecimientos de salud.
C176: 18AO111142946 | D176: Realzar el Control Técnico a las Prestaciones | E176: INFORME | F176: =+SUM('B-5 TAREAS'!E443:E447) -> 34931.51756 | G176: =+SUM('B-5 TAREAS'!F443:F447) -> 4 | H176: =+SUM('B-5 TAREAS'!G443:G447) -> 4 | I176: =+SUM('B-5 TAREAS'!H443:H447) -> 4 | J176: =+SUM('B-5 TAREAS'!I443:I447) -> 4 | K176: =+SUM('B-5 TAREAS'!J443:J447) -> 4 | L176: =+SUM('B-5 TAREAS'!K443:K447) -> 5 | M176: =+SUM('B-5 TAREAS'!L443:L447) -> 4 | N176: =+SUM('B-5 TAREAS'!M443:M447) -> 4 | O176: =+SUM('B-5 TAREAS'!N443:N447) -> 5 | P176: =+SUM('B-5 TAREAS'!O443:O447) -> 3 | Q176: =+SUM('B-5 TAREAS'!P443:P447) -> 3 | R176: =+SUM('B-5 TAREAS'!Q443:Q447) -> 5 | S176: =SUM(G176:R176) -> 49
A177: OEI.03 Mejorar la gestión del financiamiento de las prestaciones aprobadas para la atención del asegurado al SIS.
B178: AEI.03.02 Recursos del SIS transferidos orientados al financiamiento de reposición de medicamentos e insumos.
C179: 18AO111142947 | D179: Realizar la supervisión financiera alas UE | E179: INFORME | F179: =+SUM('B-5 TAREAS'!E450:E453) -> 25000 | G179: =+SUM('B-5 TAREAS'!F450:F453) -> 2 | H179: =+SUM('B-5 TAREAS'!G450:G453) -> 2 | I179: =+SUM('B-5 TAREAS'!H450:H453) -> 2 | J179: =+SUM('B-5 TAREAS'!I450:I453) -> 2 | K179: =+SUM('B-5 TAREAS'!J450:J453) -> 2 | L179: =+SUM('B-5 TAREAS'!K450:K453) -> 4 | M179: =+SUM('B-5 TAREAS'!L450:L453) -> 2 | N179: =+SUM('B-5 TAREAS'!M450:M453) -> 2 | O179: =+SUM('B-5 TAREAS'!N450:N453) -> 3 | P179: =+SUM('B-5 TAREAS'!O450:O453) -> 3 | Q179: =+SUM('B-5 TAREAS'!P450:P453) -> 2 | R179: =+SUM('B-5 TAREAS'!Q450:Q453) -> 4 | S179: =SUM(G179:R179) -> 30
B180: AEI.03.03 Mecanismos de compra de servicios de salud optimizados para la atención del asegurado al SIS.
C181: 18AO111142948 | D181: Implementar los acuerdos de convenios y/o contratos suscritos con las IPRESS | E181: INFORME | F181: =+SUM('B-5 TAREAS'!E455:E459) -> 114868.4935 | G181: =+SUM('B-5 TAREAS'!F455:F459) -> 0 | H181: =+SUM('B-5 TAREAS'!G455:G459) -> 0 | I181: =+SUM('B-5 TAREAS'!H455:H459) -> 0 | J181: =+SUM('B-5 TAREAS'!I455:I459) -> 0 | K181: =+SUM('B-5 TAREAS'!J455:J459) -> 0 | L181: =+SUM('B-5 TAREAS'!K455:K459) -> 2 | M181: =+SUM('B-5 TAREAS'!L455:L459) -> 0 | N181: =+SUM('B-5 TAREAS'!M455:M459) -> 0 | O181: =+SUM('B-5 TAREAS'!N455:N459) -> 0 | P181: =+SUM('B-5 TAREAS'!O455:O459) -> 0 | Q181: =+SUM('B-5 TAREAS'!P455:P459) -> 1 | R181: =+SUM('B-5 TAREAS'!Q455:Q459) -> 4 | S181: =SUM(G181:R181) -> 7
B182: 06.08 - UDR PIURA I
A183: OEI.01 Incrementar la cobertura de la población objetivo del SIS
B184: AEI.01.01 Afiliación al SIS incrementada en la población objetivo.
C185: 18AO111142949 | D185: Realizar acciones de afiliación | E185: INFORME | F185: =+SUM('B-5 TAREAS'!E463:E466) -> 10411.26609 | G185: =+SUM('B-5 TAREAS'!F463:F466) -> 0 | H185: =+SUM('B-5 TAREAS'!G463:G466) -> 0 | I185: =+SUM('B-5 TAREAS'!H463:H466) -> 0 | J185: =+SUM('B-5 TAREAS'!I463:I466) -> 0 | K185: =+SUM('B-5 TAREAS'!J463:J466) -> 0 | L185: =+SUM('B-5 TAREAS'!K463:K466) -> 0 | M185: =+SUM('B-5 TAREAS'!L463:L466) -> 0 | N185: =+SUM('B-5 TAREAS'!M463:M466) -> 2 | O185: =+SUM('B-5 TAREAS'!N463:N466) -> 1 | P185: =+SUM('B-5 TAREAS'!O463:O466) -> 4 | Q185: =+SUM('B-5 TAREAS'!P463:P466) -> 1 | R185: =+SUM('B-5 TAREAS'!Q463:Q466) -> 2 | S185: =SUM(G185:R185) -> 10
B186: AEI.01.02 Mecanismos de protección de derechos optimizados para los asegurados al SIS.
C187: 18AO111142950 | D187: Realizar acciones para mitigar riesgos de vulneración de derechos de los asegurados | E187: INFORME | F187: =+SUM('B-5 TAREAS'!E468:E471) -> 10411.26609 | G187: =+SUM('B-5 TAREAS'!F468:F471) -> 0 | H187: =+SUM('B-5 TAREAS'!G468:G471) -> 0 | I187: =+SUM('B-5 TAREAS'!H468:H471) -> 0 | J187: =+SUM('B-5 TAREAS'!I468:I471) -> 0 | K187: =+SUM('B-5 TAREAS'!J468:J471) -> 0 | L187: =+SUM('B-5 TAREAS'!K468:K471) -> 0 | M187: =+SUM('B-5 TAREAS'!L468:L471) -> 2 | N187: =+SUM('B-5 TAREAS'!M468:M471) -> 2 | O187: =+SUM('B-5 TAREAS'!N468:N471) -> 3 | P187: =+SUM('B-5 TAREAS'!O468:O471) -> 2 | Q187: =+SUM('B-5 TAREAS'!P468:P471) -> 2 | R187: =+SUM('B-5 TAREAS'!Q468:Q471) -> 3 | S187: =SUM(G187:R187) -> 14
A188: OEI.02 Reducir los riesgos técnicos y financieros de la prestación de planes y productos para el asegurado al SIS.
B189: AEI.02.01 Control técnico y financiero de las prestaciones médicas valorizadas incrementado a los establecimientos de salud.
C190: 18AO111142951 | D190: Realzar el Control Técnico a las Prestaciones | E190: INFORME | F190: =+SUM('B-5 TAREAS'!E474:E478) -> 33986.59013 | G190: =+SUM('B-5 TAREAS'!F474:F478) -> 4 | H190: =+SUM('B-5 TAREAS'!G474:G478) -> 4 | I190: =+SUM('B-5 TAREAS'!H474:H478) -> 4 | J190: =+SUM('B-5 TAREAS'!I474:I478) -> 4 | K190: =+SUM('B-5 TAREAS'!J474:J478) -> 4 | L190: =+SUM('B-5 TAREAS'!K474:K478) -> 5 | M190: =+SUM('B-5 TAREAS'!L474:L478) -> 4 | N190: =+SUM('B-5 TAREAS'!M474:M478) -> 4 | O190: =+SUM('B-5 TAREAS'!N474:N478) -> 5 | P190: =+SUM('B-5 TAREAS'!O474:O478) -> 2 | Q190: =+SUM('B-5 TAREAS'!P474:P478) -> 3 | R190: =+SUM('B-5 TAREAS'!Q474:Q478) -> 5 | S190: =SUM(G190:R190) -> 48
A191: OEI.03 Mejorar la gestión del financiamiento de las prestaciones aprobadas para la atención del asegurado al SIS.
B192: AEI.03.02 Recursos del SIS transferidos orientados al financiamiento de reposición de medicamentos e insumos.
C193: 18AO111142952 | D193: Realizar la supervisión financiera alas UE | E193: INFORME | F193: =+SUM('B-5 TAREAS'!E481:E484) -> 0 | G193: =+SUM('B-5 TAREAS'!F481:F484) -> 2 | H193: =+SUM('B-5 TAREAS'!G481:G484) -> 2 | I193: =+SUM('B-5 TAREAS'!H481:H484) -> 2 | J193: =+SUM('B-5 TAREAS'!I481:I484) -> 2 | K193: =+SUM('B-5 TAREAS'!J481:J484) -> 2 | L193: =+SUM('B-5 TAREAS'!K481:K484) -> 4 | M193: =+SUM('B-5 TAREAS'!L481:L484) -> 2 | N193: =+SUM('B-5 TAREAS'!M481:M484) -> 2 | O193: =+SUM('B-5 TAREAS'!N481:N484) -> 3 | P193: =+SUM('B-5 TAREAS'!O481:O484) -> 2 | Q193: =+SUM('B-5 TAREAS'!P481:P484) -> 2 | R193: =+SUM('B-5 TAREAS'!Q481:Q484) -> 4 | S193: =SUM(G193:R193) -> 29
B194: AEI.03.03 Mecanismos de compra de servicios de salud optimizados para la atención del asegurado al SIS.
C195: 18AO111142953 | D195: Implementar los acuerdos de convenios y/o contratos suscritos con las IPRESS | E195: INFORME | F195: =+SUM('B-5 TAREAS'!E486:E490) -> 66423.87768 | G195: =+SUM('B-5 TAREAS'!F486:F490) -> 0 | H195: =+SUM('B-5 TAREAS'!G486:G490) -> 0 | I195: =+SUM('B-5 TAREAS'!H486:H490) -> 0 | J195: =+SUM('B-5 TAREAS'!I486:I490) -> 0 | K195: =+SUM('B-5 TAREAS'!J486:J490) -> 0 | L195: =+SUM('B-5 TAREAS'!K486:K490) -> 2 | M195: =+SUM('B-5 TAREAS'!L486:L490) -> 0 | N195: =+SUM('B-5 TAREAS'!M486:M490) -> 0 | O195: =+SUM('B-5 TAREAS'!N486:N490) -> 0 | P195: =+SUM('B-5 TAREAS'!O486:O490) -> 0 | Q195: =+SUM('B-5 TAREAS'!P486:P490) -> 1 | R195: =+SUM('B-5 TAREAS'!Q486:Q490) -> 4 | S195: =SUM(G195:R195) -> 7
B196: 06.09 - UDR PIURA II
A197: OEI.01 Incrementar la cobertura de la población objetivo del SIS
B198: AEI.01.01 Afiliación al SIS incrementada en la población objetivo.
C199: 18AO111142954 | D199: Realizar acciones de afiliación | E199: INFORME | F199: =+SUM('B-5 TAREAS'!E494:E497) -> 0 | G199: =+SUM('B-5 TAREAS'!F494:F497) -> 0 | H199: =+SUM('B-5 TAREAS'!G494:G497) -> 0 | I199: =+SUM('B-5 TAREAS'!H494:H497) -> 0 | J199: =+SUM('B-5 TAREAS'!I494:I497) -> 0 | K199: =+SUM('B-5 TAREAS'!J494:J497) -> 0 | L199: =+SUM('B-5 TAREAS'!K494:K497) -> 0 | M199: =+SUM('B-5 TAREAS'!L494:L497) -> 0 | N199: =+SUM('B-5 TAREAS'!M494:M497) -> 2 | O199: =+SUM('B-5 TAREAS'!N494:N497) -> 1 | P199: =+SUM('B-5 TAREAS'!O494:O497) -> 4 | Q199: =+SUM('B-5 TAREAS'!P494:P497) -> 1 | R199: =+SUM('B-5 TAREAS'!Q494:Q497) -> 2 | S199: =SUM(G199:R199) -> 10
B200: AEI.01.02 Mecanismos de protección de derechos optimizados para los asegurados al SIS.
... 501 more rows

Sheet B-4 FINANCIERO
A2: ANEXO B-4 Matriz de Articulación del POI con Metas Financiaras a nivel de Actividad
B3: Periodo PEI : 2017 - 2019 | G3: Nivel de Gobierno : E - GOBIERNO NACIONAL
B4: Sector : 11 - SALUD | G4: Pliego : 135 - SEGURO INTEGRAL DE SALUD
B5: Unidad Ejecutora : 001091 - SEGURO INTEGRAL DE SALUD
A6: OEI/AEI/CC/ COD_AO | D6: ACTIVIDAD OPERATIVA | E6: U.M. | F6: Meta Física | G6: PROGRAMACION | K6: Meta Financ. Anual
G7: 1 T | H7: 2T | I7: 3T | J7: 4T
B8: 01.01 - JEFATURA
A9: OEI.04 Mejorar la eficacia y eficiencia de los procesos de gestión instituciona
B10: AEI.04.01 Fortalecer la organización orientándola al desarrollo de las funciones de un asegurador público eficiente, eficaz y con enfoque de procesos.
C11: 18AO110921692 | D11: Efectuar acciones diversas de gestión institucional | E11: INFORME | F11: =+VLOOKUP(C11,'B-3 FISICO'!C10:S701,17,0) -> 23 | G11: 27346.43 | H11: 40677.88 | I11: 103770.22 | J11: 64913.47 | K11: =+VLOOKUP(C11,'B-3 FISICO'!$C$10:$F$701,4,0) -> 236708
B12: 01.02.01 - SECRETARIA GENERAL
A13: OEI.04 Mejorar la eficacia y eficiencia de los procesos de gestión instituciona
B14: AEI.04.01 Fortalecer la organización orientándola al desarrollo de las funciones de un asegurador público eficiente, eficaz y con enfoque de procesos.
C15: 18AO110920381 | D15: Desarrollar acciones diversas de gestión | E15: INFORME | F15: =+VLOOKUP(C15,'B-3 FISICO'!C14:S705,17,0) -> 51698 | G15: 86092 | H15: 199962 | I15: 164168 | J15: 521475 | K15: =+VLOOKUP(C15,'B-3 FISICO'!$C$10:$F$701,4,0) -> 971697
C16: 18AO111149643 | D16: Hacer seguimiento a la ejecución del Plan de Integridad y Lucha anti corrupción | E16: INFORME | F16: =+VLOOKUP(C16,'B-3 FISICO'!C15:S706,17,0) -> 16 | H16: 0 | I16: 0 | J16: 12960 | K16: =+VLOOKUP(C16,'B-3 FISICO'!$C$10:$F$701,4,0) -> 12960
C17: 18AO110921680 | D17: Realizar acciones de gestión documentaria y archivo | E17: INFORME | F17: =+VLOOKUP(C17,'B-3 FISICO'!C15:S706,17,0) -> 9 | G17: 21242.90487 | H17: 49340.11652 | I17: 40507.99286 | J17: 131870.3838 | K17: =+VLOOKUP(C17,'B-3 FISICO'!$C$10:$F$701,4,0) -> 242961.3981
B18: 02.01 - ORGANO DE CONTROL INSTITUCIONAL
A19: OEI.04 Mejorar la eficacia y eficiencia de los procesos de gestión instituciona
B20: AEI.04.01 Fortalecer la organización orientándola al desarrollo de las funciones de un asegurador público eficiente, eficaz y con enfoque de procesos.
C21: 18AO111142739 | D21: Desarrollar el control institucional | E21: INFORME | F21: =+VLOOKUP(C21,'B-3 FISICO'!C19:S710,17,0) -> 73 | G21: 9121.3 | H21: 41692.67 | I21: 8502.14 | J21: 20021.89 | K21: =+VLOOKUP(C21,'B-3 FISICO'!$C$10:$F$701,4,0) -> 79338
B22: 03.01 - OFICINA GENERAL DE PLANEAMIENTO, PRESUPUESTO Y DESARROLLO ORGANIZACIONAL
A23: OEI.04 Mejorar la eficacia y eficiencia de los procesos de gestión instituciona
B24: AEI.04.01 Fortalecer la organización orientándola al desarrollo de las funciones de un asegurador público eficiente, eficaz y con enfoque de procesos.
C25: 18AO111141933 | D25: Coordinar, supervisar y evaluar el sistema de modernización de la gestión pública | E25: INFORME | F25: =+VLOOKUP(C25,'B-3 FISICO'!C23:S714,17,0) -> 78 | G25: 0 | H25: 0 | I25: 39722.82 | J25: 64479.27339 | K25: =+VLOOKUP(C25,'B-3 FISICO'!$C$10:$F$701,4,0) -> 104202.0934
C26: 18AO111141936 | D26: Desarrollar el planeamiento institucional y gestión presupuestal | E26: INFORME | F26: =+VLOOKUP(C26,'B-3 FISICO'!C24:S715,17,0) -> 2250 | G26: 47516 | H26: 272882 | I26: 80000 | J26: 57653 | K26: =+VLOOKUP(C26,'B-3 FISICO'!$C$10:$F$701,4,0) -> 458051
C27: 18AO111141939 | D27: Realizar gestión del financiamiento con cooperantes | E27: INFORME | F27: =+VLOOKUP(C27,'B-3 FISICO'!C25:S716,17,0) -> 9 | G27: 0 | H27: 0 | I27: 0 | J27: 1585494 | K27: =+VLOOKUP(C27,'B-3 FISICO'!$C$10:$F$701,4,0) -> 1585494
B28: 03.02 - OFICINA GENERAL DE ASESORÍA JURÍDICA
A29: OEI.04 Mejorar la eficacia y eficiencia de los procesos de gestión instituciona
B30: AEI.04.01 Fortalecer la organización orientándola al desarrollo de las funciones de un asegurador público eficiente, eficaz y con enfoque de procesos.
C31: 18AO111142899 | D31: Brindar asesoramiento legal | E31: INFORME | F31: =+VLOOKUP(C31,'B-3 FISICO'!C29:S720,17,0) -> 688 | G31: 142600 | H31: 128533.33 | I31: 133541 | J31: 71873.67 | K31: =+VLOOKUP(C31,'B-3 FISICO'!$C$10:$F$701,4,0) -> 476548
B32: 04.01 - OFICINA GENERAL DE IMAGEN INSTITUCIONAL Y TRANSPARENCIA
A33: OEI.04 Mejorar la eficacia y eficiencia de los procesos de gestión instituciona
B34: AEI.04.03 Fortalecer la comunicación estratégica institucional.
C35: 18AO110920388 | D35: Fortalecimiento de la imagen institucional | E35: INFORME | F35: =+VLOOKUP(C35,'B-3 FISICO'!C33:S724,17,0) -> 27 | G35: 64200 | H35: 53359 | I35: 37192 | J35: 1014976.242 | K35: =+VLOOKUP(C35,'B-3 FISICO'!$C$10:$F$701,4,0) -> 1169727.242
C36: 18AO110920392 | D36: Gestión del acceso a la información pública y del portal de transparencia | E36: INFORME | F36: =+VLOOKUP(C36,'B-3 FISICO'!C34:S725,17,0) -> 28 | G36: 0 | H36: 0 | I36: 24795 | J36: 706579.7576 | K36: =+VLOOKUP(C36,'B-3 FISICO'!$C$10:$F$701,4,0) -> 731374.7576
B37: 04.02.01 - OFICINA GENERAL DE ADMINISTRACIÓN DE RECURSOS
A38: OEI.04 Mejorar la eficacia y eficiencia de los procesos de gestión instituciona
B39: AEI.04.01 Fortalecer la organización orientándola al desarrollo de las funciones de un asegurador público eficiente, eficaz y con enfoque de procesos.
C40: 18AO111142901 | D40: Supervisar el cumplimiento de los sistemas administrativos a su cargo | E40: INFORME | F40: =+VLOOKUP(C40,'B-3 FISICO'!C38:S729,17,0) -> 144 | G40: 128697.98 | H40: 81389.57 | I40: 151416.68 | J40: 265814.77 | K40: =+VLOOKUP(C40,'B-3 FISICO'!$C$10:$F$701,4,0) -> 627319
B41: 04.02.02 - OFICINA DE ABASTECIMIENTO
A42: OEI.04 Mejorar la eficacia y eficiencia de los procesos de gestión instituciona
B43: AEI.04.01 Fortalecer la organización orientándola al desarrollo de las funciones de un asegurador público eficiente, eficaz y con enfoque de procesos.
C44: 18AO110920401 | D44: Realizar acciones de contratación de bienes y servicios | E44: INFORME | F44: =+VLOOKUP(C44,'B-3 FISICO'!C42:S733,17,0) -> 56 | G44: 1599035.66 | H44: 3742281.81 | I44: 2780425.12 | J44: 6704081.41 | K44: =+VLOOKUP(C44,'B-3 FISICO'!$C$10:$F$701,4,0) -> 14825824
B45: 04.02.03 - OFICINA DE GESTIÓN DE RECURSOS HUMANOS
A46: OEI.04 Mejorar la eficacia y eficiencia de los procesos de gestión instituciona
B47: AEI.04.04 Mejorar la satisfacción laboral del personal del SIS.
C48: 18AO110920421 | D48: Ejecutar las acciones de incorporacion de servidores | E48: INFORME | F48: =+VLOOKUP(C48,'B-3 FISICO'!C46:S737,17,0) -> 38 | G48: 189833.75 | H48: 189833.75 | I48: 189833.75 | J48: 189833.75 | K48: =+VLOOKUP(C48,'B-3 FISICO'!$C$10:$F$701,4,0) -> 759335
C49: 18AO111142904 | D49: Gestion de recursos cas - cap | E49: INFORME | F49: =+VLOOKUP(C49,'B-3 FISICO'!C47:S738,17,0) -> 24 | G49: 15491379 | H49: 15491379 | I49: 15491379 | J49: 15491379 | K49: =+VLOOKUP(C49,'B-3 FISICO'!$C$10:$F$701,4,0) -> 61965516
B50: 04.02.04 - OFICINA DE CONTABILIDAD
A51: OEI.04 Mejorar la eficacia y eficiencia de los procesos de gestión instituciona
B52: AEI.04.01 Fortalecer la organización orientándola al desarrollo de las funciones de un asegurador público eficiente, eficaz y con enfoque de procesos.
C53: 18AO110920537 | D53: Realizar la elaboración, analisis y emisión de los estados financieros y presupuestarios. | E53: INFORME | F53: =+VLOOKUP(C53,'B-3 FISICO'!C51:S742,17,0) -> 11428 | G53: 12400 | H53: 3360 | I53: 7461.59 | J53: 20346.41 | K53: =+VLOOKUP(C53,'B-3 FISICO'!$C$10:$F$701,4,0) -> 43568
B54: 04.02.05 - OFICINA DE TESORERÍA
A55: OEI.04 Mejorar la eficacia y eficiencia de los procesos de gestión instituciona
B56: AEI.04.01 Fortalecer la organización orientándola al desarrollo de las funciones de un asegurador público eficiente, eficaz y con enfoque de procesos.
C57: 18AO111142907 | D57: Optimizar el control de los ingresos y egresos | E57: INFORME | F57: =+VLOOKUP(C57,'B-3 FISICO'!C55:S746,17,0) -> 16749 | G57: 508931.54 | H57: 370341.65 | I57: 411339.14 | J57: 646576.67 | K57: =+VLOOKUP(C57,'B-3 FISICO'!$C$10:$F$701,4,0) -> 1937189
B58: 04.03 - OFICINA GENERAL DE TECNOLOGÍA DE LA INFORMACIÓN
A59: OEI.04 Mejorar la eficacia y eficiencia de los procesos de gestión instituciona
B60: AEI.04.02 Mejorar la calidad y seguridad de los sistemas de información del SIS, a través de su informatización e integración.
C61: 18AO110920396 | D61: Elaboración, aprobación y ejecución del plan operativo informático | E61: INFORME | F61: =+VLOOKUP(C61,'B-3 FISICO'!C59:S750,17,0) -> 63 | G61: 399305.64 | H61: 598969.13 | I61: 639791.66 | J61: =1179396.57+1083769.72+633568.28 -> 2896734.57 | K61: =+VLOOKUP(C61,'B-3 FISICO'!$C$10:$F$701,4,0) -> 4534801
B62: 05.01 - GERENCIA DEL ASEGURADO
A63: OEI.01 Incrementar la cobertura de la población objetivo del SIS
B64: AEI.01.01 Afiliación al SIS incrementada en la población objetivo.
C65: 18AO111142910 | D65: Conducción y supervisión de las acciones de afiliación | E65: INFORME | F65: =+VLOOKUP(C65,'B-3 FISICO'!C63:S754,17,0) -> 45 | G65: 78557.9135 | H65: 94849.452 | I65: 41342.956 | J65: =+K65-G65-H65-I65 -> 115804.2028 | K65: =+VLOOKUP(C65,'B-3 FISICO'!$C$10:$F$701,4,0) -> 330554.5243
B66: AEI.01.02 Mecanismos de protección de derechos optimizados para los asegurados al SIS.
C67: 18AO110920443 | D67: Promocion de los derechos y deberes del asegurado al sis y sus productos | E67: INFORME | F67: =+VLOOKUP(C67,'B-3 FISICO'!C65:S756,17,0) -> 42 | G67: 64274.6565 | H67: 63232.968 | I67: 31007.217 | J67: =+K67-G67-H67-I67 -> 195200.3643 | K67: =+VLOOKUP(C67,'B-3 FISICO'!$C$10:$F$701,4,0) -> 353715.2058
C68: 18AO111149595 | D68: Protección al asegurado SIS. | E68: INFORME | F68: =+VLOOKUP(C68,'B-3 FISICO'!C66:S757,17,0) -> 6 | G68: 0 | H68: 0 | J68: =+K68-G68-H68-I68 -> 13067.49666 | K68: =+VLOOKUP(C68,'B-3 FISICO'!$C$10:$F$701,4,0) -> 13067.49666
C69: 18AO111149596 | D69: Atención al asegurado SIS | E69: INFORME | F69: =+VLOOKUP(C69,'B-3 FISICO'!C67:S758,17,0) -> 31 | G69: 0 | H69: 0 | I69: 31007 | J69: =+K69-G69-H69-I69 -> 183111.7732 | K69: =+VLOOKUP(C69,'B-3 FISICO'!$C$10:$F$701,4,0) -> 214118.7732
B70: 05.02 - GERENCIA DE RIESGO Y EVALUACIÓN DE LAS PRESTACIONES
A71: OEI.02 Reducir los riesgos técnicos y financieros de la prestación de planes y productos para el asegurado al SIS.
B72: AEI.02.02 Auditoria médica y financiera optimizada a los establecimientos de salud.
C73: 18AO111142911 | D73: Conducción de acciones de control tecnico | E73: INFORME | F73: =+VLOOKUP(C73,'B-3 FISICO'!C69:S760,17,0) -> 54 | G73: 25800 | H73: 103935 | I73: 35040.0585 | J73: 504.6233623 | K73: =+VLOOKUP(C73,'B-3 FISICO'!$C$10:$F$701,4,0) -> 165279.6819
B74: AEI.03.03 Mecanismos de compra de servicios de salud optimizados para la atención del asegurado al SIS.
C75: 18AO110920533 | D75: Desarrollar los modelos operacionales de los convenios o contratos aprobados. | E75: INFORME | F75: =+VLOOKUP(C75,'B-3 FISICO'!C71:S762,17,0) -> 31 | G75: 0 | H75: 0 | I75: 41396.4115 | J75: 122287.9066 | K75: =+VLOOKUP(C75,'B-3 FISICO'!$C$10:$F$701,4,0) -> 163684.3181
B76: 05.03 - GERENCIA DE NEGOCIOS Y FINANCIAMIENTO
A77: OEI.02 Reducir los riesgos técnicos y financieros de la prestación de planes y productos para el asegurado al SIS.
B78: AEI.02.01 Control técnico y financiero de las prestaciones médicas valorizadas incrementado a los establecimientos de salud.
C79: 18AO111142912 | D79: Conducción de acciones de control financiero | E79: INFORME | F79: =+VLOOKUP(C79,'B-3 FISICO'!C75:S766,17,0) -> 65 | G79: 99429.834 | H79: 141237.804 | I79: 10114 | J79: 16210.72234 | K79: =+VLOOKUP(C79,'B-3 FISICO'!$C$10:$F$701,4,0) -> 266992.3603
B80: AEI.03.01 Financiamiento del SIS incrementado por Recursos Directamente Recaudados.
C81: 18AO111143139 | D81: Gestionar el riesgo corporativo | E81: INFORME | F81: =+VLOOKUP(C81,'B-3 FISICO'!C77:S768,17,0) -> 18 | G81: 2612.786 | H81: 20928.353 | I81: 32632 | J81: 6681.381703 | K81: =+VLOOKUP(C81,'B-3 FISICO'!$C$10:$F$701,4,0) -> 62854.5207
B82: AEI.03.02 Recursos del SIS transferidos orientados al financiamiento de reposición de medicamentos e insumos.
C83: 18AO111142914 | D83: Administrar los fondos de aseguramiento en salud | E83: INFORME | F83: =+VLOOKUP(C83,'B-3 FISICO'!C79:S770,17,0) -> 88 | G83: 579356072 | H83: 515646114 | I83: 495681878 | J83: 127541248 | K83: =+VLOOKUP(C83,'B-3 FISICO'!$C$10:$F$701,4,0) -> 1718225312
B84: AEI.03.03 Mecanismos de compra de servicios de salud optimizados para la atención del asegurado al SIS.
C85: 18AO111142916 | D85: Control financiero de los expedientes administrativos y prestaciones económicas | E85: INFORME | F85: =+VLOOKUP(C85,'B-3 FISICO'!C81:S772,17,0) -> 41 | G85: 0 | H85: 525928.353 | I85: 3807164.862 | J85: 65233405.11 | K85: =+VLOOKUP(C85,'B-3 FISICO'!$C$10:$F$701,4,0) -> 69566498.32
B86: 06.01 - GERENCIA MACRO REGIONAL NORTE
A87: OEI.01 Incrementar la cobertura de la población objetivo del SIS
B88: AEI.01.01 Afiliación al SIS incrementada en la población objetivo.
C89: 18AO111142917 | D89: Control y supervision a las udr en las acciones de afiliacion | E89: INFORME | F89: =+VLOOKUP(C89,'B-3 FISICO'!C85:S776,17,0) -> 13 | G89: 2055.818812 | H89: 3013.98299 | I89: 4875.712708 | J89: 3054.48549 | K89: =+VLOOKUP(C89,'B-3 FISICO'!$C$10:$F$701,4,0) -> 13000
A90: OEI.02 Reducir los riesgos técnicos y financieros de la prestación de planes y productos para el asegurado al SIS.
B91: AEI.02.01 Control técnico y financiero de las prestaciones médicas valorizadas incrementado a los establecimientos de salud.
C92: 18AO111142918 | D92: Supervisión y asistencia técnica a las audrs en las cciones de control técnico a prestaciones | E92: INFORME | F92: =+VLOOKUP(C92,'B-3 FISICO'!C88:S779,17,0) -> 13 | G92: 10172.05593 | H92: 14912.98911 | I92: 24124.705 | J92: 15113.39281 | K92: =+VLOOKUP(C92,'B-3 FISICO'!$C$10:$F$701,4,0) -> 64323.14286
A93: OEI.03 Mejorar la gestión del financiamiento de las prestaciones aprobadas para la atención del asegurado al SIS.
B94: AEI.03.02 Recursos del SIS transferidos orientados al financiamiento de reposición de medicamentos e insumos.
C95: 18AO111142919 | D95: Supervisión y asistencia técnica a las udrs en el monitoreo, seguimiento y control de los recursos del SIS | E95: INFORME | F95: =+VLOOKUP(C95,'B-3 FISICO'!C91:S782,17,0) -> 11 | G95: 9668.786969 | H95: 14175.15945 | I95: 22931.11982 | J95: 14365.64805 | K95: =+VLOOKUP(C95,'B-3 FISICO'!$C$10:$F$701,4,0) -> 61140.71429
A96: OEI.04 Mejorar la eficacia y eficiencia de los procesos de gestión instituciona
B97: AEI.04.01 Fortalecer la organización orientándola al desarrollo de las funciones de un asegurador público eficiente, eficaz y con enfoque de procesos.
C98: 18AO110920454 | D98: Realizar acciones de coordinación en gestión. | E98: INFORME | F98: =+VLOOKUP(C98,'B-3 FISICO'!C94:S785,17,0) -> 50 | G98: 16481.83829 | H98: 24163.59844 | I98: 39089.39247 | J98: 24488.31366 | K98: =+VLOOKUP(C98,'B-3 FISICO'!$C$10:$F$701,4,0) -> 104223.1429
B99: 06.02 - UDR CAJAMARCA
A100: OEI.01 Incrementar la cobertura de la población objetivo del SIS
B101: AEI.01.01 Afiliación al SIS incrementada en la población objetivo.
C102: 18AO111143143 | D102: Realizar acciones de afiliación | E102: INFORME | F102: =+VLOOKUP(C102,'B-3 FISICO'!C98:S789,17,0) -> 18 | G102: 1594.253219 | H102: 3421.031517 | I102: 1634.542379 | J102: 2730.729973 | K102: 9380.557088
B103: AEI.01.02 Mecanismos de protección de derechos optimizados para los asegurados al SIS.
C104: 18AO111143144 | D104: Realizar acciones para mitigar riesgos de vulneración de derechos de los asegurados | E104: INFORME | F104: =+VLOOKUP(C104,'B-3 FISICO'!C100:S791,17,0) -> 14 | G104: 977.4098791 | H104: 2097.376979 | I104: 1002.110486 | J104: 1674.164693 | K104: 5751.062038
A105: OEI.02 Reducir los riesgos técnicos y financieros de la prestación de planes y productos para el asegurado al SIS.
B106: AEI.02.01 Control técnico y financiero de las prestaciones médicas valorizadas incrementado a los establecimientos de salud.
C107: 18AO111143145 | D107: Realzar el control técnico a las prestaciones | E107: INFORME | F107: =+VLOOKUP(C107,'B-3 FISICO'!C103:S794,17,0) -> 49 | G107: 2209.876874 | H107: 4742.068791 | I107: 2265.723763 | J107: 3785.206103 | K107: 13002.87553
A108: OEI.03 Mejorar la gestión del financiamiento de las prestaciones aprobadas para la atención del asegurado al SIS.
B109: AEI.03.02 Recursos del SIS transferidos orientados al financiamiento de reposición de medicamentos e insumos.
C110: 18AO111143147 | D110: Realizar la supervisión financiera alas UE | E110: INFORME | F110: =+VLOOKUP(C110,'B-3 FISICO'!C106:S797,17,0) -> 29 | G110: 2243.541658 | H110: 4814.308436 | I110: 2300.239306 | J110: 3842.86911 | K110: 13200.95851
B111: AEI.03.03 Mecanismos de compra de servicios de salud optimizados para la atención del asegurado al SIS.
C112: 18AO111143148 | D112: Implementar los acuerdos de convenios y/o contratos suscritos con las ipress | E112: INFORME | F112: =+VLOOKUP(C112,'B-3 FISICO'!C108:S799,17,0) -> 7 | G112: 15074.91837 | H112: 32348.54428 | I112: 15455.88407 | J112: 25821.20012 | K112: 88700.54683
B113: 06.03 - UDR CHOTA
A114: OEI.01 Incrementar la cobertura de la población objetivo del SIS
B115: AEI.01.01 Afiliación al SIS incrementada en la población objetivo.
C116: 18AO111142921 | D116: Realizar acciones de afiliación | E116: INFORME | F116: =+VLOOKUP(C116,'B-3 FISICO'!C112:S803,17,0) -> 13 | G116: 0 | H116: 0 | I116: 0 | J116: 0 | K116: =+VLOOKUP(C116,'B-3 FISICO'!$C$10:$F$701,4,0) -> 0
B117: AEI.01.02 Mecanismos de protección de derechos optimizados para los asegurados al SIS.
C118: 18AO111142923 | D118: Realizar acciones para mitigar riesgos de vulneración de derechos de los asegurados | E118: INFORME | F118: =+VLOOKUP(C118,'B-3 FISICO'!C114:S805,17,0) -> 14 | G118: 616.891675 | H118: 1039.622358 | I118: 1342.132445 | J118: 2370.975854 | K118: =+VLOOKUP(C118,'B-3 FISICO'!$C$10:$F$701,4,0) -> 5369.622332
A119: OEI.02 Reducir los riesgos técnicos y financieros de la prestación de planes y productos para el asegurado al SIS.
B120: AEI.02.01 Control técnico y financiero de las prestaciones médicas valorizadas incrementado a los establecimientos de salud.
C121: 18AO111142924 | D121: Realzar el control técnico a las prestaciones | E121: INFORME | F121: =+VLOOKUP(C121,'B-3 FISICO'!C117:S808,17,0) -> 49 | G121: 597.4045309 | H121: 1006.781469 | I121: 1299.73549 | J121: 2296.078509 | K121: =+VLOOKUP(C121,'B-3 FISICO'!$C$10:$F$701,4,0) -> 5200
A122: OEI.03 Mejorar la gestión del financiamiento de las prestaciones aprobadas para la atención del asegurado al SIS.
B123: AEI.03.02 Recursos del SIS transferidos orientados al financiamiento de reposición de medicamentos e insumos.
C124: 18AO111142926 | D124: Realizar la supervisión financiera alas UE | E124: INFORME | F124: =+VLOOKUP(C124,'B-3 FISICO'!C120:S811,17,0) -> 29 | G124: 1148.854867 | H124: 1936.11821 | I124: 2499.491328 | J124: 4415.535595 | K124: =+VLOOKUP(C124,'B-3 FISICO'!$C$10:$F$701,4,0) -> 10000
B125: AEI.03.03 Mecanismos de compra de servicios de salud optimizados para la atención del asegurado al SIS.
C126: 18AO111142927 | D126: Implementar los acuerdos de convenios y/o contratos suscritos con las ipress | E126: INFORME | F126: =+VLOOKUP(C126,'B-3 FISICO'!C122:S813,17,0) -> 12 | G126: 6896.848927 | H126: 11622.97796 | I126: 15005.04074 | J126: 26507.51004 | K126: =+VLOOKUP(C126,'B-3 FISICO'!$C$10:$F$701,4,0) -> 60032.37767
B127: 06.04 - UDR CUTERVO
A128: OEI.01 Incrementar la cobertura de la población objetivo del SIS
B129: AEI.01.01 Afiliación al SIS incrementada en la población objetivo.
C130: 18AO111142928 | D130: Realizar acciones de afiliación | E130: INFORME | F130: =+VLOOKUP(C130,'B-3 FISICO'!C126:S817,17,0) -> 11 | G130: 0 | H130: 0 | I130: 0 | J130: 0 | K130: =+VLOOKUP(C130,'B-3 FISICO'!$C$10:$F$701,4,0) -> 0
B131: AEI.01.02 Mecanismos de protección de derechos optimizados para los asegurados al SIS.
C132: 18AO111142929 | D132: Realizar acciones para mitigar riesgos de vulneración de derechos de los asegurados | E132: INFORME | F132: =+VLOOKUP(C132,'B-3 FISICO'!C128:S819,17,0) -> 15 | G132: 1083.791949 | H132: 2804.790813 | I132: 3252.826231 | J132: 6558.798671 | K132: =+VLOOKUP(C132,'B-3 FISICO'!$C$10:$F$701,4,0) -> 13700.20766
A133: OEI.02 Reducir los riesgos técnicos y financieros de la prestación de planes y productos para el asegurado al SIS.
B134: AEI.02.01 Control técnico y financiero de las prestaciones médicas valorizadas incrementado a los establecimientos de salud.
C135: 18AO111142930 | D135: Realzar el control técnico a las prestaciones | E135: INFORME | F135: =+VLOOKUP(C135,'B-3 FISICO'!C131:S822,17,0) -> 51 | G135: 896.2048419 | H135: 2319.326241 | I135: 2689.813871 | J135: 5423.57519 | K135: =+VLOOKUP(C135,'B-3 FISICO'!$C$10:$F$701,4,0) -> 11328.92014
A136: OEI.03 Mejorar la gestión del financiamiento de las prestaciones aprobadas para la atención del asegurado al SIS.
B137: AEI.03.02 Recursos del SIS transferidos orientados al financiamiento de reposición de medicamentos e insumos.
C138: 18AO111142931 | D138: Realizar la supervisión financiera alas UE | E138: INFORME | F138: =+VLOOKUP(C138,'B-3 FISICO'!C134:S825,17,0) -> 26 | G138: 791.0770228 | H138: 2047.261532 | I138: 2374.289727 | J138: 4787.371719 | K138: =+VLOOKUP(C138,'B-3 FISICO'!$C$10:$F$701,4,0) -> 10000
B139: AEI.03.03 Mecanismos de compra de servicios de salud optimizados para la atención del asegurado al SIS.
C140: 18AO111142932 | D140: Implementar los acuerdos de convenios y/o contratos suscritos con las ipress | E140: INFORME | F140: =+VLOOKUP(C140,'B-3 FISICO'!C136:S827,17,0) -> 7 | G140: 4551.926186 | H140: 11780.12141 | I140: 13661.87017 | J140: 27546.95442 | K140: =+VLOOKUP(C140,'B-3 FISICO'!$C$10:$F$701,4,0) -> 57540.87219
B141: 06.05 - UDR JAÉN
A142: OEI.01 Incrementar la cobertura de la población objetivo del SIS
B143: AEI.01.01 Afiliación al SIS incrementada en la población objetivo.
C144: 18AO111142933 | D144: Realizar acciones de afiliación | E144: INFORME | F144: =+VLOOKUP(C144,'B-3 FISICO'!C140:S831,17,0) -> 12 | G144: 2266.062218 | H144: 3064.932722 | I144: 2284.707595 | J144: 4786.606921 | K144: =+VLOOKUP(C144,'B-3 FISICO'!$C$10:$F$701,4,0) -> 12402.30946
B145: AEI.01.02 Mecanismos de protección de derechos optimizados para los asegurados al SIS.
C146: 18AO111142934 | D146: Realizar acciones para mitigar riesgos de vulneración de derechos de los asegurados | E146: INFORME | F146: =+VLOOKUP(C146,'B-3 FISICO'!C142:S833,17,0) -> 17 | G146: 2266.062218 | H146: 3064.932722 | I146: 2284.707595 | J146: 4786.606921 | K146: =+VLOOKUP(C146,'B-3 FISICO'!$C$10:$F$701,4,0) -> 12402.30946
A147: OEI.02 Reducir los riesgos técnicos y financieros de la prestación de planes y productos para el asegurado al SIS.
B148: AEI.02.01 Control técnico y financiero de las prestaciones médicas valorizadas incrementado a los establecimientos de salud.
C149: 18AO111142935 | D149: Realzar el control técnico a las prestaciones | E149: INFORME | F149: =+VLOOKUP(C149,'B-3 FISICO'!C145:S836,17,0) -> 49 | G149: 1827.129234 | H149: 2471.259674 | I149: 1842.163029 | J149: 3859.448063 | K149: =+VLOOKUP(C149,'B-3 FISICO'!$C$10:$F$701,4,0) -> 10000
A150: OEI.03 Mejorar la gestión del financiamiento de las prestaciones aprobadas para la atención del asegurado al SIS.
B151: AEI.03.02 Recursos del SIS transferidos orientados al financiamiento de reposición de medicamentos e insumos.
C152: 18AO111142936 | D152: Realizar la supervisión financiera alas UE | E152: INFORME | F152: =+VLOOKUP(C152,'B-3 FISICO'!C148:S839,17,0) -> 25 | G152: 840.4794479 | H152: 1136.77945 | I152: 847.3949932 | J152: 1775.346109 | K152: =+VLOOKUP(C152,'B-3 FISICO'!$C$10:$F$701,4,0) -> 4600
B153: AEI.03.03 Mecanismos de compra de servicios de salud optimizados para la atención del asegurado al SIS.
C154: 18AO111142937 | D154: Implementar los acuerdos de convenios y/o contratos suscritos con las ipress | E154: INFORME | F154: =+VLOOKUP(C154,'B-3 FISICO'!C150:S841,17,0) -> 3 | G154: 10696.26688 | H154: 14467.09543 | I154: 10784.27679 | J154: 22593.74199 | K154: =+VLOOKUP(C154,'B-3 FISICO'!$C$10:$F$701,4,0) -> 58541.38109
B155: 06.06 - UDR LAMBAYEQUE
A156: OEI.01 Incrementar la cobertura de la población objetivo del SIS
B157: AEI.01.01 Afiliación al SIS incrementada en la población objetivo.
C158: 18AO111142938 | D158: Realizar acciones de afiliación | E158: INFORME | F158: =+VLOOKUP(C158,'B-3 FISICO'!C154:S845,17,0) -> 10 | G158: 1196.969486 | H158: 2871.279385 | I158: 3773.454981 | J158: 3639.499851 | K158: =+VLOOKUP(C158,'B-3 FISICO'!$C$10:$F$701,4,0) -> 11481.2037
B159: AEI.01.02 Mecanismos de protección de derechos optimizados para los asegurados al SIS.
C160: 18AO111142939 | D160: Realizar acciones para mitigar riesgos de vulneración de derechos de los asegurados | E160: INFORME | F160: =+VLOOKUP(C160,'B-3 FISICO'!C156:S847,17,0) -> 14 | G160: 1196.969486 | H160: 2871.279385 | I160: 3773.454981 | J160: 3639.499851 | K160: =+VLOOKUP(C160,'B-3 FISICO'!$C$10:$F$701,4,0) -> 11481.2037
A161: OEI.02 Reducir los riesgos técnicos y financieros de la prestación de planes y productos para el asegurado al SIS.
B162: AEI.02.01 Control técnico y financiero de las prestaciones médicas valorizadas incrementado a los establecimientos de salud.
C163: 18AO111142940 | D163: Realzar el control técnico a las prestaciones | E163: INFORME | F163: =+VLOOKUP(C163,'B-3 FISICO'!C159:S850,17,0) -> 49 | G163: 2717.970312 | H163: 6519.842167 | I163: 8568.421113 | J163: 8264.247889 | K163: =+VLOOKUP(C163,'B-3 FISICO'!$C$10:$F$701,4,0) -> 26070.48148
A164: OEI.03 Mejorar la gestión del financiamiento de las prestaciones aprobadas para la atención del asegurado al SIS.
B165: AEI.03.02 Recursos del SIS transferidos orientados al financiamiento de reposición de medicamentos e insumos.
C166: 18AO111142941 | D166: Realizar la supervisión financiera alas UE | E166: INFORME | F166: =+VLOOKUP(C166,'B-3 FISICO'!C162:S853,17,0) -> 29 | G166: 1042.547033 | H166: 2500.852227 | I166: 3286.63708 | J166: 3169.96366 | K166: =+VLOOKUP(C166,'B-3 FISICO'!$C$10:$F$701,4,0) -> 10000
B167: AEI.03.03 Mecanismos de compra de servicios de salud optimizados para la atención del asegurado al SIS.
C168: 18AO111142942 | D168: Implementar los acuerdos de convenios y/o contratos suscritos con las ipress | E168: INFORME | F168: =+VLOOKUP(C168,'B-3 FISICO'!C164:S855,17,0) -> 7 | G168: 10054.54368 | H168: 24118.74684 | I168: 31697.02184 | J168: 30571.79875 | K168: =+VLOOKUP(C168,'B-3 FISICO'!$C$10:$F$701,4,0) -> 96442.11111
B169: 06.07 - UDR LA LIBERTAD
A170: OEI.01 Incrementar la cobertura de la población objetivo del SIS
B171: AEI.01.01 Afiliación al SIS incrementada en la población objetivo.
C172: 18AO111142944 | D172: Realizar acciones de afiliación | E172: INFORME | F172: =+VLOOKUP(C172,'B-3 FISICO'!C168:S859,17,0) -> 10 | G172: 1231.926901 | H172: 2154.050641 | I172: 2827.221943 | J172: 4994.794967 | K172: =+VLOOKUP(C172,'B-3 FISICO'!$C$10:$F$701,4,0) -> 11207.99445
B173: AEI.01.02 Mecanismos de protección de derechos optimizados para los asegurados al SIS.
C174: 18AO111142945 | D174: Realizar acciones para mitigar riesgos de vulneración de derechos de los asegurados | E174: INFORME | F174: =+VLOOKUP(C174,'B-3 FISICO'!C170:S861,17,0) -> 24 | G174: 1231.926901 | H174: 2154.050641 | I174: 2827.221943 | J174: 4994.794967 | K174: =+VLOOKUP(C174,'B-3 FISICO'!$C$10:$F$701,4,0) -> 11207.99445
A175: OEI.02 Reducir los riesgos técnicos y financieros de la prestación de planes y productos para el asegurado al SIS.
B176: AEI.02.01 Control técnico y financiero de las prestaciones médicas valorizadas incrementado a los establecimientos de salud.
C177: 18AO111142946 | D177: Realzar el control técnico a las prestaciones | E177: INFORME | F177: =+VLOOKUP(C177,'B-3 FISICO'!C173:S864,17,0) -> 49 | G177: 3839.498348 | H177: 6713.445312 | I177: 8811.491954 | J177: 15567.08195 | K177: =+VLOOKUP(C177,'B-3 FISICO'!$C$10:$F$701,4,0) -> 34931.51756
A178: OEI.03 Mejorar la gestión del financiamiento de las prestaciones aprobadas para la atención del asegurado al SIS.
B179: AEI.03.02 Recursos del SIS transferidos orientados al financiamiento de reposición de medicamentos e insumos.
C180: 18AO111142947 | D180: Realizar la supervisión financiera alas UE | E180: INFORME | F180: =+VLOOKUP(C180,'B-3 FISICO'!C176:S867,17,0) -> 30 | G180: 2747.875426 | H180: 4804.719191 | I180: 6306.261916 | J180: 11141.14347 | K180: =+VLOOKUP(C180,'B-3 FISICO'!$C$10:$F$701,4,0) -> 25000
B181: AEI.03.03 Mecanismos de compra de servicios de salud optimizados para la atención del asegurado al SIS.
C182: 18AO111142948 | D182: Implementar los acuerdos de convenios y/o contratos suscritos con las ipress | E182: INFORME | F182: =+VLOOKUP(C182,'B-3 FISICO'!C178:S869,17,0) -> 7 | G182: 12625.77242 | H182: 22076.43421 | I182: 28975.63225 | J182: 51190.65465 | K182: =+VLOOKUP(C182,'B-3 FISICO'!$C$10:$F$701,4,0) -> 114868.4935
B183: 06.08 - UDR PIURA I
A184: OEI.01 Incrementar la cobertura de la población objetivo del SIS
B185: AEI.01.01 Afiliación al SIS incrementada en la población objetivo.
C186: 18AO111142949 | D186: Realizar acciones de afiliación | E186: INFORME | F186: =+VLOOKUP(C186,'B-3 FISICO'!C182:S873,17,0) -> 10 | G186: 797.3786484 | H186: 1878.885165 | I186: 4342.979274 | J186: 3392.023007 | K186: =+VLOOKUP(C186,'B-3 FISICO'!$C$10:$F$701,4,0) -> 10411.26609
B187: AEI.01.02 Mecanismos de protección de derechos optimizados para los asegurados al SIS.
C188: 18AO111142950 | D188: Realizar acciones para mitigar riesgos de vulneración de derechos de los asegurados | E188: INFORME | F188: =+VLOOKUP(C188,'B-3 FISICO'!C184:S875,17,0) -> 14 | G188: 797.3786484 | H188: 1878.885165 | I188: 4342.979274 | J188: 3392.023007 | K188: =+VLOOKUP(C188,'B-3 FISICO'!$C$10:$F$701,4,0) -> 10411.26609
A189: OEI.02 Reducir los riesgos técnicos y financieros de la prestación de planes y productos para el asegurado al SIS.
B190: AEI.02.01 Control técnico y financiero de las prestaciones médicas valorizadas incrementado a los establecimientos de salud.
C191: 18AO111142951 | D191: Realzar el control técnico a las prestaciones | E191: INFORME | F191: =+VLOOKUP(C191,'B-3 FISICO'!C187:S878,17,0) -> 48 | G191: 2602.966926 | H191: 6133.442315 | I191: 14177.24369 | J191: 11072.9372 | K191: =+VLOOKUP(C191,'B-3 FISICO'!$C$10:$F$701,4,0) -> 33986.59013
A192: OEI.03 Mejorar la gestión del financiamiento de las prestaciones aprobadas para la atención del asegurado al SIS.
B193: AEI.03.02 Recursos del SIS transferidos orientados al financiamiento de reposición de medicamentos e insumos.
C194: 18AO111142952 | D194: Realizar la supervisión financiera alas UE | E194: INFORME | F194: =+VLOOKUP(C194,'B-3 FISICO'!C190:S881,17,0) -> 29 | G194: 0 | H194: 0 | I194: 0 | J194: 0 | K194: =+VLOOKUP(C194,'B-3 FISICO'!$C$10:$F$701,4,0) -> 0
B195: AEI.03.03 Mecanismos de compra de servicios de salud optimizados para la atención del asegurado al SIS.
C196: 18AO111142953 | D196: Implementar los acuerdos de convenios y/o contratos suscritos con las ipress | E196: INFORME | F196: =+VLOOKUP(C196,'B-3 FISICO'!C192:S883,17,0) -> 7 | G196: 5087.275777 | H196: 11987.28735 | I196: 27708.20777 | J196: 21641.10678 | K196: =+VLOOKUP(C196,'B-3 FISICO'!$C$10:$F$701,4,0) -> 66423.87768
B197: 06.09 - UDR PIURA II
A198: OEI.01 Incrementar la cobertura de la población objetivo del SIS
B199: AEI.01.01 Afiliación al SIS incrementada en la población objetivo.
C200: 18AO111142954 | D200: Realizar acciones de afiliación | E200: INFORME | F200: =+VLOOKUP(C200,'B-3 FISICO'!C196:S887,17,0) -> 10 | G200: 0 | H200: 0 | I200: 0 | J200: 0 | K200: =+VLOOKUP(C200,'B-3 FISICO'!$C$10:$F$701,4,0) -> 0
B201: AEI.01.02 Mecanismos de protección de derechos optimizados para los asegurados al SIS.
... 502 more rows

Sheet B-5 TAREAS
A1: ANEXO B-5 Matriz de Articulación del POI con Metas Física y Financieras a nivel de Tareas
A2: Periodo PEI : 2017 - 2019
A3: Sector : 11 - SALUD | J3: Nivel de Gobierno : E - GOBIERNO NACIONAL
A4: Unidad Ejecutora : 001091 - SEGURO INTEGRAL DE SALUD | J4: Pliego : 135 - SEGURO INTEGRAL DE SALUD
A5: OEI/AEI/CC/ COD_AO | D5: DESCRIPCIÓN DE TAREAS | E5: S/. | F5: PROGRAMACION | R5: TT
F6: 1 | G6: 2 | H6: 3 | I6: 4 | J6: 5 | K6: 6 | L6: 7 | M6: 8 | N6: 9 | O6: 10 | P6: 11 | Q6: 12
B7: 01.01 - JEFATURA
A8: OEI.04
B9: AEI.04.01
C10: 18AO110921692 | D10: Efectuar acciones diversas de gestión institucional | E10: 79945.12336 | K10: 1 | N10: 1 | Q10: 1 | R10: =SUM(F10:Q10) -> 3
D11: Elaborar y ejecutar el Plan de Control Interno | E11: 69015.10292 | H11: 1 | K11: 1 | N11: 1 | Q11: 2 | R11: =SUM(F11:Q11) -> 5
D12: Conducción y orientación superior | E12: 69015.10292 | G12: 1 | H12: 1 | I12: 1 | J12: 1 | K12: 1 | L12: 1 | M12: 1 | N12: 1 | O12: 1 | P12: 1 | Q12: 1 | R12: =SUM(F12:Q12) -> 11
D13: Efectuar acciones diversas de apoyo | E13: 18732.67079 | F13: 1 | G13: 1 | H13: 1 | Q13: 1 | R13: =SUM(F13:Q13) -> 4
B14: 01.02.01 - SECRETARIA GENERAL
A15: OEI.04
B16: AEI.04.01
C17: 18AO110920381 | D17: Emisión de normativas que regulen la gestión administrativa | E17: 139982 | H17: 1 | K17: 1 | N17: 1 | Q17: 1 | R17: =SUM(F17:Q17) -> 4
D18: Gestionar los documentos internos y externos en el aplicativo | E18: =121465 -> 121465 | F18: 2875 | G18: 2875 | H18: 2875 | I18: 2875 | J18: 2875 | K18: 2875 | L18: 2875 | M18: 2875 | N18: 2875 | O18: 3000 | P18: 3000 | Q18: 3000 | R18: 34875
D19: Control y registro de la distribución del servicio de mensajería | E19: 515709 | F19: 1 | G19: 1 | H19: 1 | I19: 1 | J19: 1 | K19: 1 | L19: 1 | M19: 1 | N19: 1 | O19: 1 | P19: 1 | Q19: 1 | R19: 12
D20: Administrar y atención de la central telefónica del sis | E20: 121455 | F20: 700 | G20: 700 | H20: 700 | I20: 700 | J20: 700 | K20: 700 | L20: 700 | M20: 700 | N20: 700 | O20: 3500 | P20: 3500 | Q20: 3500 | R20: 16800
D21: Asistencia técnica de sistema de tramite. | E21: 73086 | H21: 1 | J21: 1 | K21: 1 | L21: 1 | N21: 1 | O21: 1 | P21: 1 | R21: =SUM(F21:Q21) -> 7
C22: 18AO111149643 | D22: Gestionar campañas sobre el Código de Ética de la Función Pública | E22: 0 | P22: 1 | Q22: 1 | R22: 2
D23: Coordinar la elaboración del Plan de Trabajo para el cierre de brechas | E23: 0 | Q23: 1 | R23: 1
D24: Promover la implementación de instrumentos que promueven la integridad pública | E24: 0 | Q24: 1 | R24: 1
D25: Realizar seguimiento y monitoreo de casos presentados a través del Libro de Reclamaciones | E25: 0 | P25: 1 | Q25: 1 | R25: 2
D26: Realizar coordinaciones para gestionar la designación del Procurador Publico para la Entidad | E26: 0 | O26: 1 | P26: 1 | Q26: 1 | R26: 3
D27: Realizar una encuesta sobre como siente el servidor el clima etico al interior de la Entidad | E27: 0 | Q27: 1 | R27: 1
D28: Promover la transparencia, ética e integridad pública en los servidores de la entidad. | E28: 0 | Q28: 1 | R28: 1
D29: Realizar visitas inopinadas a las UDR | E29: 960 | P29: 1 | Q29: 1 | R29: 2
D30: Fortalecer a la Oficina de Integridad Institucional | E30: 12000 | P30: 1 | Q30: 1 | R30: 2
D31: Elaborar instrumentos normativos asociado a riesgos de corrupción identificados en procesos existentes. | E31: 0 | Q31: 1 | R31: 1
C32: 18AO110921680 | D32: Realizar acciones de gestión de gestión documentaria y archivo | E32: 242961.3981 | F32: 1 | G32: 1 | H32: 1 | I32: 1 | J32: 1 | K32: 1 | L32: 1 | M32: 1 | N32: 1 | R32: 9
D33: Ejecutar el Plan de Archivo | E33: 0 | R33: 0
B34: 02.01 - ORGANO DE CONTROL INSTITUCIONAL
A35: OEI.04
B36: AEI.04.01
C37: 18AO111142739 | D37: Verificar el cumplimiento de norma expresa | E37: 12205.84615 | G37: 3 | J37: 2 | M37: 2 | N37: 1 | P37: 1 | Q37: 1 | R37: =SUM(F37:Q37) -> 10
D38: Auditoria de cumplimiento | E38: 0 | J38: 2 | P38: 3 | R38: 5
D39: Gestión Administrativa del OCI | E39: 8137.230769 | F39: 2 | G39: 2 | H39: 2 | I39: 1 | J39: 2 | K39: 2 | L39: 2 | M39: 2 | N39: 2 | O39: 2 | P39: 3 | R39: 22
D40: Seguimiento de medidas preventivas y correctivas | E40: 8137.230769 | G40: 1 | I40: 1 | K40: 2 | M40: 1 | O40: 1 | Q40: 2 | R40: 8
D41: Evaluación de la implementación del Sistema de Control Interno | E41: 0 | F41: 1 | G41: 1 | I41: 1 | K41: 1 | M41: 1 | O41: 1 | Q41: 1 | R41: 7
D42: Atención de encargos de la Contraloria General de la Republica | E42: 0 | G42: 2 | H42: 2 | J42: 2 | K42: 1 | L42: 1 | M42: 1 | N42: 1 | O42: 1 | P42: 2 | R42: 13
D43: Supervisión aunadas a las Auditorias de reserva 1, 2, 3 | E43: 50857.69231 | H43: 1 | I43: 1 | J43: 1 | K43: 1 | L43: 1 | M43: 1 | N43: 1 | O43: 1 | R43: 8
B44: 03.01 - OFICINA GENERAL DE PLANEAMIENTO, PRESUPUESTO Y DESARROLLO ORGANIZACIONAL
A45: OEI.04
B46: AEI.04.01
C47: 18AO111141933 | D47: Gestión de Documentos de Gestión Institucional | E47: 13890.52567 | F47: 2 | G47: 2 | H47: 4 | I47: 2 | J47: 1 | K47: 6 | L47: 3 | N47: 1 | O47: 4 | P47: 1 | R47: =SUM(F47:Q47) -> 26
D48: Promover la Gestión Normativa Institucional | E48: 50492.06081 | F48: 1 | G48: 1 | H48: 4 | I48: 2 | J48: 3 | K48: 3 | L48: 2 | M48: 2 | N48: 3 | O48: 3 | P48: 2 | Q48: 3 | R48: =SUM(F48:Q48) -> 29
D49: Gestionar la innovación de servicios y la Mejora Continua | E49: 13890.52567 | G49: 1 | H49: 1 | I49: 2 | J49: 1 | K49: 2 | L49: 2 | M49: 1 | N49: 2 | P49: 2 | Q49: 1 | R49: =SUM(F49:Q49) -> 15
D50: Gestionar el Sistema de Control Interno | E50: 25928.98125 | H50: 1 | J50: 1 | K50: 2 | N50: 1 | P50: 1 | Q50: 2 | R50: =SUM(F50:Q50) -> 8
C51: 18AO111141936 | D51: Dar opinión sobre aprobación de planes especificos | E51: 0 | Q51: 7 | R51: =SUM(F51:Q51) -> 7
D52: Elaborar la memoria anual institucional | E52: 0 | G52: 1 | R52: =SUM(F52:Q52) -> 1
D53: Gestionar información para los comités de desarrollo | E53: 0 | F53: 1 | I53: 2 | L53: 2 | O53: 2 | R53: 7
D54: Realizar asistencia técnica en sistema de planeamiento | E54: 294143 | O54: 1 | R54: 1
D55: Realizar la formulación, actualización, seguimiento y evaluación del PEI | E55: 37041 | G55: 1 | M55: 1 | N55: 1 | R55: 3
D56: Realizar la programación, formulación seguimiento y evaluación poi | E56: 126867 | F56: 1 | I56: 1 | L56: 1 | M56: 1 | O56: 1 | R56: =SUM(F56:Q56) -> 5
D57: Realizar las certificaciones presupuestarias | E57: 0 | F57: 184 | G57: 187 | H57: 186 | I57: 187 | J57: 184 | K57: 187 | L57: 184 | M57: 187 | N57: 185 | O57: 187 | P57: 184 | Q57: 184 | R57: 2226
D58: Realizar las modificaciones presupuestarias | E58: 0 | R58: 0
C59: 18AO111141939 | D59: Gestionar el apoyo técnico y financiero de los Organismos Cooperantes | E59: 713803 | L59: 1 | Q59: 1 | R59: 2
D60: Realizar Coordianciones para el Financiamiento del PIP Local Institucional | E60: 11412 | L60: 1 | Q60: 1 | R60: 2
D61: Implementar el seguimiento del PP Articulado Nutricional | E61: =1493847-366000-267568 -> 860279 | N61: 1 | O61: 1 | P61: 1 | Q61: 1 | R61: 4
D62: Organizar el Archivo Técnico de los Estudios Gubernamentales | E62: 0 | Q62: 1 | R62: 1
B63: 03.02 - OFICINA GENERAL DE ASESORÍA JURÍDICA
A64: OEI.04
B65: AEI.04.01
C66: 18AO111142899 | D66: Actualizar los instrumentos normativos internos del sis | E66: 166584.4024 | F66: 22 | G66: 20 | H66: 23 | I66: 20 | J66: 23 | K66: 22 | L66: 21 | M66: 22 | N66: 21 | O66: 22 | P66: 22 | Q66: 21 | R66: =SUM(F66:Q66) -> 259
D67: Dotar de seguridad jurídica a los operadores de los sistemas administrativos | E67: 115220.8783 | F67: 30 | G67: 30 | H67: 30 | I67: 30 | J67: 30 | K67: 30 | L67: 30 | M67: 30 | N67: 30 | O67: 30 | P67: 30 | Q67: 30 | R67: =SUM(F67:Q67) -> 360
D68: Gestionar los documentos contractuales del sis | E68: 76745.43419 | F68: 3 | G68: 3 | H68: 4 | I68: 4 | J68: 5 | K68: 5 | L68: 5 | M68: 4 | N68: 3 | O68: 3 | P68: 3 | Q68: 3 | R68: =SUM(F68:Q68) -> 45
D69: Realizar acciones de gestión de recursos | E69: 117997.285 | F69: 8 | G69: 8 | H69: 8 | R69: =SUM(F69:Q69) -> 24
B70: 04.01 - OFICINA GENERAL DE IMAGEN INSTITUCIONAL Y TRANSPARENCIA
A71: OEI.04
B72: AEI.04.03
C73: 18AO110920388 | D73: Desarrollar e implementar el protocolo de la gestión de comunicación de crisis | E73: 133553.845 | O73: 1 | R73: =SUM(F73:Q73) -> 1
D74: Implementación del manual de identidad gráfica del sis a nivel nacional | E74: 36707.78798 | J74: 1 | R74: 1
D75: Desarrollar estrategia de comunicación que impulse el comportamiento ético en la institución* | E75: 0 | P75: 1 | R75: 1
D76: Registro para Banco Fotográfico del SIS | E76: 38011.47897 | O76: 3 | P76: 3 | Q76: 2 | R76: 8
D77: Elaborar, ejecutar y evaluar el plan de comunicaciones del sis | E77: 287654.4355 | O77: 1 | R77: 1
D78: Entrenamiento de voceros institucionales Sede Central y Macrorregionales | E78: 13355.3845 | P78: 1 | R78: 1
D79: Gestión de material informativo y merchandising | E79: 51366.86348 | P79: 1 | R79: 1
D80: Gestión y manejo de medios de comunicación | E80: 304538.7235 | F80: 1 | G80: 1 | H80: 1 | I80: 1 | J80: 1 | K80: 1 | L80: 1 | M80: 1 | N80: 1 | O80: 1 | P80: 1 | Q80: 1 | R80: 12
D81: Evaluar la percepción de públicos objetivos sobre la gestión del sis | E81: 304538.7235 | O81: 1 | R81: 1
C82: 18AO110920392 | D82: Atencion de solicitudes de acceso a la información pública | E82: 362289.4608 | F82: 1 | G82: 1 | H82: 1 | I82: 1 | J82: 1 | K82: 1 | L82: 1 | M82: 1 | N82: 1 | O82: 2 | P82: 2 | Q82: 2 | R82: 15
D83: Realizar campañas de difusión del uso de correo electrónico* | E83: 0 | O83: 1 | P83: 1 | R83: 2
D84: Mantener actualizada el Portal de Transparencia* | E84: 0 | Q84: 1 | R84: 1
D85: Gestionar el porten de transparencia | E85: 369085.2968 | F85: 1 | G85: 1 | H85: 1 | I85: 1 | J85: 1 | K85: 1 | L85: 1 | M85: 1 | N85: 1 | O85: 1 | R85: 10
B86: 04.02.01 - OFICINA GENERAL DE ADMINISTRACIÓN DE RECURSOS
A87: OEI.04
B88: AEI.04.01
C89: 18AO111142901 | D89: Realizar la supervisión integral a udr y gmr | E89: 85787.86402 | G89: 4 | H89: 2 | I89: 2 | J89: 1 | K89: 1 | L89: 2 | M89: 2 | N89: 2 | O89: 1 | P89: 1 | Q89: 1 | R89: =SUM(F89:Q89) -> 19
D90: Toma de inventario físico de bienes patrimoniales del sis periodo 2017 - 2018. | E90: 46623.83914 | G90: 2 | H90: 3 | I90: 2 | N90: 2 | O90: 3 | P90: 4 | Q90: 5 | R90: 21
D91: Seguimiento e implementacion de recomendaciones de auditoria | E91: 120848.9911 | G91: 3 | H91: 3 | I91: 5 | J91: 4 | K91: 5 | L91: 4 | M91: 6 | N91: 3 | O91: 4 | P91: 5 | Q91: 3 | R91: 45
D92: Procesamiento del sistema de rendición de cuentas del titular | E92: 44758.88557 | K92: 1 | Q92: 1 | R92: 2
D93: Realizar la fiscalización o verificación posterior de los procedimientos de contrataciones del Estado* | E93: 0 | Q93: 1 | R93: 1
D94: Gestionar convenios para capacitacion y promoción de lucha anticorrupción* | E94: 0 | P94: 1 | R94: 1
D95: Diseñar instrumentos normativo que regule un procedimiento de fiscalizacion o verificacion posterior* | E95: 0 | P95: 1 | R95: 1
D96: Emitir informes de califiicación PAD a través de Secretarias Técnicas* | E96: 0 | P96: 1 | Q96: 1 | R96: 2
D97: Realizar seguimiento de plazos de prescripción en los Procedimientos Administrativos instaurados* | E97: 0 | O97: 1 | P97: 1 | Q97: 1 | R97: 3
D98: Implementar acciones que eviten retrasos de procedimientos administrativos disciplinarios instaurados* | E98: 0 | O98: 1 | P98: 1 | R98: 2
D99: Registrar las sanciones interpuestas en el Registro Nacional de Sanciones de Destitución y Despido (RNSDD)* | E99: 0 | O99: 1 | P99: 1 | Q99: 1 | R99: 3
D100: Actualizar el Registro de Procedimientos Administrativos vinculados a la Corrupción (REPRAC)* | E100: 0 | P100: 1 | R100: 1
D101: Apoyo al proceso de auditoria externa | E101: =41774.959869806+90096 -> 131870.9599 | F101: 1 | G101: 1 | H101: 1 | I101: 1 | J101: 1 | P101: 1 | Q101: 3 | R101: =SUM(F101:Q101) -> 9
D102: Implementación del sistema de ecoeficiencia | E102: 152669.5748 | F102: 2 | G102: 3 | H102: 2 | I102: 2 | J102: 2 | K102: 1 | L102: 2 | M102: 2 | N102: 2 | O102: 2 | P102: 2 | Q102: 2 | R102: =SUM(F102:Q102) -> 24
D103: Procesamiento de información en el aplicativo del sistema web mochica | E103: 44758.88557 | F103: 1 | I103: 1 | L103: 1 | O103: 1 | P103: 3 | Q103: 3 | R103: 10
B104: 04.02.02 - OFICINA DE ABASTECIMIENTO
A105: OEI.04
B106: AEI.04.01
C107: 18AO110920401 | D107: Inventario fisico del sis | E107: 331950.4695 | G107: 1 | H107: 1 | R107: =SUM(F107:Q107) -> 2
D108: Realizar la gestión del almacén central | E108: 1008909.841 | H108: 1 | K108: 1 | N108: 1 | Q108: 1 | R108: 4
D109: Ingreso de informacion 2018 y validacion siga - patrimonial del mef | E109: 100894.6208 | Q109: 1 | R109: 1
D110: Elaborar, ejecutar y evaluar el plan de mantenimiento (infr, equip y mob) | E110: 1687558.064 | F110: 1 | G110: 1 | I110: 1 | J110: 1 | L110: 1 | M110: 1 | P110: 2 | R110: 8
D111: Requerimiento de seguros patrimoniales | E111: =225043.754057432+12012+79042 -> 316097.7541 | Q111: 1 | R111: 1
D112: Implementar la gestión de siniestros en patrimonio | E112: 119176.6041 | I112: 1 | R112: 1
D113: Tramite de baja de bienes patrimoniales | E113: 14004.8631 | L113: 1 | O113: 1 | R113: 2
D114: Realizar tramite de saneamiento de los bienes sobrantes | E114: 53220.0764 | P114: 1 | R114: 1
D115: Contratar el suministro de servicios basicos | E115: 4726568.12 | F115: 1 | G115: 1 | H115: 1 | I115: 1 | J115: 1 | K115: 1 | L115: 1 | M115: 1 | N115: 1 | O115: 1 | P115: 1 | Q115: 1 | R115: 12
D116: Contratar el servicio de alquiler de local a nivel nacional | E116: 5332524.814 | F116: 1 | G116: 1 | H116: 1 | I116: 1 | J116: 1 | K116: 1 | L116: 1 | M116: 1 | N116: 1 | O116: 1 | P116: 1 | Q116: 1 | R116: =SUM(F116:Q116) -> 12
D117: Atención de bienes y servicios de las diferentes áreas | E117: =1100625.77298313+34293 -> 1134918.773 | F117: 1 | G117: 1 | H117: 1 | I117: 1 | J117: 1 | K117: 1 | L117: 1 | M117: 1 | N117: 1 | O117: 1 | P117: 1 | Q117: 1 | R117: 12
B118: 04.02.03 - OFICINA DE GESTIÓN DE RECURSOS HUMANOS
A119: OEI.04
B120: AEI.04.04
C121: 18AO110920421 | D121: Ejecutar las acciones de incorporacion de servidores | E121: 118597.3989 | F121: 1 | G121: 1 | H121: 1 | I121: 1 | J121: 1 | K121: 1 | L121: 1 | M121: 1 | N121: 1 | O121: 1 | P121: 1 | Q121: 1 | R121: =SUM(F121:Q121) -> 12
D122: Gestionar actividades para el desarrollo y capacitación. | E122: 437911.5624 | G122: 1 | H122: 1 | I122: 1 | J122: 1 | K122: 1 | L122: 1 | M122: 1 | N122: 1 | O122: 1 | P122: 1 | Q122: 1 | R122: =SUM(F122:Q122) -> 11
D123: Diseñar y ejecutar campañas de sensibilización en lucha contra la corrupción y código de ética* | E123: 0 | P123: 1 | R123: =SUM(F123:Q123) -> 1
D124: Realizar inducción a nuevos servidores sobre valores institucionales y el Código de Ética* | E124: 0 | O124: 1 | P124: 2 | Q124: 1 | R124: =SUM(F124:Q124) -> 4
D125: Consultoría tránsito al Servicio Civil | E125: 912.3157551 | O125: 1 | P125: 1 | Q125: 1 | R125: =SUM(F125:Q125) -> 3
D126: Consultoría Gestión del Rendimiento | E126: 912.3157551 | O126: 1 | P126: 1 | Q126: 1 | R126: 3
D127: Realizar acciones de mantenimiento de recursos humanos del sis | E127: 201001.4072 | H127: 1 | K127: 1 | N127: 1 | Q127: 1 | R127: =SUM(F127:Q127) -> 4
C128: 18AO111142904 | D128: Acciones de gestión de recursos cap | E128: 11950173 | F128: 1 | G128: 1 | H128: 1 | I128: 1 | J128: 1 | K128: 1 | L128: 1 | M128: 1 | N128: 1 | O128: 1 | P128: 1 | Q128: 1 | R128: =SUM(F128:Q128) -> 12
D129: Acciones de gestión de recursos cas | E129: =44332657+5682686 -> 50015343 | F129: 1 | G129: 1 | H129: 1 | I129: 1 | J129: 1 | K129: 1 | L129: 1 | M129: 1 | N129: 1 | O129: 1 | P129: 1 | Q129: 1 | R129: =SUM(F129:Q129) -> 12
B130: 04.02.04 - OFICINA DE CONTABILIDAD
A131: OEI.04
B132: AEI.04.01
C133: 18AO110920537 | D133: Realizar la gestión de control previo y registro SIAF de viaticos | E133: 2774.438981 | F133: 49 | G133: 191 | H133: 199 | I133: 364 | J133: 424 | K133: 396 | L133: 385 | M133: 385 | N133: 385 | O133: 180 | P133: 160 | Q133: 110 | R133: =SUM(F133:Q133) -> 3228
D134: Realizar la gestión de control previo y registro SIAF de rendiciones de caja chica | E134: 0 | O134: 44 | P134: 44 | Q134: 45 | R134: =SUM(F134:Q134) -> 133
D135: Efectuar control previo y registro SIAF de ordenes de compra, servicios, Contratos,planillas y otros | E135: 9170.018891 | F135: 304 | G135: 350 | H135: 300 | I135: 242 | J135: 362 | K135: 360 | L135: 360 | M135: 360 | N135: 360 | O135: 268 | P135: 250 | Q135: 260 | R135: =SUM(F135:Q135) -> 3776
D136: Efectuar control previo y registro SIAF de las transferencias financieras y Sepelios | E136: 19131.21829 | F136: 122 | G136: 123 | H136: 180 | I136: 378 | J136: 378 | K136: 378 | L136: 260 | M136: 260 | N136: 260 | O136: 264 | P136: 264 | Q136: 0 | R136: =SUM(F136:Q136) -> 2867
D137: Analisis e integración de información financiera, presupuestal y contable | E137: 0 | F137: 1 | G137: 1 | H137: 1 | I137: 1 | J137: 1 | K137: 1 | L137: 1 | M137: 1 | N137: 1 | O137: 1 | P137: 1 | Q137: 1 | R137: =SUM(F137:Q137) -> 12
D138: Presentación información Tributaria | E138: 0 | F138: 1 | G138: 1 | H138: 1 | I138: 1 | J138: 1 | K138: 1 | L138: 1 | M138: 1 | N138: 1 | O138: 1 | P138: 1 | Q138: 1 | R138: =SUM(F138:Q138) -> 12
D139: conciliación de operaciones reciprocas y transferencias financieras | E139: 12492.32384 | H139: 218 | K139: 436 | N139: 218 | Q139: 528 | R139: =SUM(F139:Q139) -> 1400
B140: 04.02.05 - OFICINA DE TESORERÍA
A141: OEI.04
B142: AEI.04.01
C143: 18AO111142907 | D143: Administrar caja chica | E143: 514205.1253 | F143: 4 | G143: 4 | H143: 4 | I143: 4 | J143: 4 | K143: 4 | L143: 4 | M143: 4 | N143: 4 | O143: 4 | P143: 4 | Q143: 4 | R143: =SUM(F143:Q143) -> 48
D144: Administrar garantías otorgadas | E144: 110024.5264 | F144: 4 | G144: 4 | H144: 4 | I144: 4 | J144: 4 | K144: 4 | L144: 4 | M144: 4 | N144: 4 | O144: 4 | P144: 4 | Q144: 4 | R144: 48
D145: Administrar garantías recibidas | E145: 110024.5264 | F145: 4 | G145: 4 | H145: 4 | I145: 4 | J145: 4 | K145: 4 | L145: 4 | M145: 4 | N145: 4 | O145: 4 | P145: 4 | Q145: 4 | R145: 48
D146: Administrar recaudación de ingresos | E146: 165036.7896 | F146: 169 | G146: 99 | H146: 122 | I146: 107 | J146: 155 | K146: 149 | L146: 94 | M146: 128 | N146: 128 | O146: 128 | P146: 128 | Q146: 140 | R146: 1547
D147: Conciliar información con entes rectores | E147: 110024.5264 | F147: 1 | H147: 18 | I147: 1 | J147: 1 | K147: 20 | L147: 1 | N147: 2 | Q147: 2 | R147: 46
D148: Gestionar archivo y custodia de comprobantes de pago | E148: 210880.3423 | F148: 622 | G148: 1019 | H148: 1021 | I148: 2029 | J148: 1418 | K148: 1340 | L148: 788 | M148: 1177 | N148: 1177 | O148: 900 | P148: 900 | Q148: 900 | R148: 13291
D149: Ggestionar devoluciones y reversiones | E149: 110024.5264 | F149: 154 | G149: 31 | H149: 142 | I149: 120 | J149: 208 | K149: 176 | L149: 103 | M149: 130 | N149: 130 | O149: 100 | P149: 100 | Q149: 138 | R149: 1532
D150: Gastos bancarios RO | E150: 128361.9475 | F150: 1 | G150: 1 | H150: 1 | I150: 1 | J150: 1 | K150: 1 | L150: 1 | M150: 1 | N150: 1 | O150: 1 | P150: 1 | Q150: 1 | R150: 12
D151: Gastos bancarios RDR | E151: 176039.2422 | O151: 3 | P151: 3 | Q151: 3 | R151: 9
D152: Programar pagos | E152: 137530.658 | F152: 1 | G152: 1 | H152: 1 | I152: 1 | J152: 1 | K152: 1 | L152: 1 | M152: 1 | N152: 1 | O152: 1 | P152: 1 | Q152: 1 | R152: 12
D153: Realizar conciliación de cuentas bancarias | E153: 165036.7896 | F153: 13 | G153: 13 | H153: 13 | I153: 13 | J153: 13 | K153: 13 | L153: 13 | M153: 13 | N153: 13 | O153: 13 | P153: 13 | Q153: 13 | R153: 156
B154: 04.03 - OFICINA GENERAL DE TECNOLOGÍA DE LA INFORMACIÓN
A155: OEI.04
B156: AEI.04.02
C157: 18AO110920396 | D157: Planear y organizar tecnologias de la información | E157: 297302.7836 | H157: 1 | K157: 1 | O157: 1 | Q157: 3 | R157: =SUM(F157:Q157) -> 6
D158: Gestionar la seguridad de la información | E158: 465342.2228 | J158: 1 | L158: 1 | Q158: 1 | R158: 3
D159: Explotar la información | E159: 65438.75008 | F159: 1 | G159: 1 | H159: 1 | I159: 1 | J159: 1 | K159: 1 | L159: 1 | M159: 1 | N159: 1 | O159: 1 | P159: 1 | Q159: 1 | R159: 12
D160: Gestionar la capacidad de tecnologías de la información | E160: =366000+197225.121765163 -> 563225.1218 | F160: 2 | G160: 1 | H160: 2 | I160: 1 | J160: 1 | K160: 2 | L160: 1 | M160: 1 | N160: 2 | O160: 1 | P160: 1 | Q160: 2 | R160: 17
D161: Desarrollar soluciones de tecnologias de información | E161: =32719.3750393818+105743 -> 138462.375 | N161: 1 | R161: 1
D162: Gestionar cambios de tecnologías de la información | E162: 942954.2112 | G162: 1 | H162: 1 | I162: 1 | J162: 1 | K162: 1 | L162: 1 | M162: 1 | N162: 1 | O162: 1 | P162: 1 | Q162: 1 | R162: 11
D163: Gestionar la información | E163: 299927.6045 | J163: 1 | L163: 1 | R163: 2
D164: Implementar Libro de Reclamaciones Virtual* | E164: 0 | Q164: 1 | R164: 1
D165: Identificar procesos con riesgo de corrupción en los sistemas de informacion * | E165: 0 | P165: 1 | R165: 1
D166: Adquisición software de monitoreo de redes | E166: 86395 | P166: 1 | R166: =SUM(F166:Q166) -> 1
D167: Adquisición de monitores | R167: 0
D168: Plataforma de interoperabilidad del SIS con servicios PIDE y entidades externas | E168: 327389 | P168: 1 | R168: 1
D169: Correo electrónico en la nube | E169: 395848 | P169: 1 | R169: 1
D170: Herramientas de auditoria de base de datos | E170: 501834 | P170: 1 | R170: 1
D171: Adquisición de camaras de seguridad | E171: 14954 | P171: 1 | R171: 1
D172: Adquisición de licencias de software para editar PDF | R172: 0
D173: Software de diseño gráfico, diseño web, edición de audio, video y meltimedia | E173: 24918 | P173: 1 | R173: 1
D174: Analisis de datos estadisticos | E174: 410809.9311 | G174: 1 | K174: 1 | Q174: 1 | R174: 3
B175: 05.01 - GERENCIA DEL ASEGURADO
A176: OEI.01
B177: AEI.01.01
C178: 18AO111142910 | D178: Estandarizar los códigos de afiliación en el régimen semicontributivo | E178: 26134.99332 | F178: 1 | G178: 1 | H178: 1 | M178: 1 | N178: 1 | R178: =SUM(F178:Q178) -> 5
D179: Realizar acciones de control y asistencia técnica en los procesos de la GA | E179: 136389.8185 | F179: 2 | G179: 2 | H179: 2 | I179: 2 | J179: 2 | K179: 2 | L179: 2 | M179: 2 | N179: 2 | O179: 2 | P179: 3 | Q179: 2 | R179: 25
D180: Optimizar el proceso de afiliacion en el regimen semicontributivo | E180: 78404.97995 | G180: 1 | H180: 1 | I180: 1 | J180: 1 | K180: 1 | L180: 1 | M180: 1 | N180: 1 | R180: 8
D181: Identificar procesos que representen riesgos de corrupción* | E181: 0 | P181: 1 | R181: 1
D182: Realizar plan de afiliacion-acreditacion para el traslado del regimen subsidiado al semicontribitivo* | E182: 0 | Q182: 1 | R182: 1
D183: Mejora de los procesos misionales de la Entidad* | E183: 0 | P183: 1 | R183: 1
D184: Apoyo en la Gestión de la Gerencia del Asegurado. | E184: 75791.48062 | O184: 1 | P184: 1 | Q184: 1 | R184: 3
D185: Gestionar la implementación del servicio web con el banco de la nación | E185: 13833.25196 | F185: 1 | R185: 1
B186: AEI.01.02
C187: 18AO110920443 | D187: Gestionar la atención de reclamos | E187: 45354.6674 | F187: 1 | G187: 1 | H187: 3 | I187: 1 | J187: 1 | K187: 4 | L187: 1 | M187: 1 | N187: 3 | O187: 6 | P187: 2 | Q187: 2 | R187: =SUM(F187:Q187) -> 26
D188: Promoción de los productos del SIS. | E188: 18203.89401 | O188: 1 | Q188: 1 | R188: =SUM(F188:Q188) -> 2
D189: Fortalecer los canales de atención | E189: =87116.6443879038+203040 -> 290156.6444 | F189: 1 | G189: 1 | H189: 1 | I189: 1 | J189: 1 | K189: 1 | L189: 1 | M189: 1 | N189: 1 | R189: =SUM(F189:Q189) -> 9
D190: Realizar otras acciones de gestión | E190: 0 | H190: 1 | K190: 3 | N190: 1 | R190: =SUM(F190:Q190) -> 5
C191: 18AO111149595 | D191: Consolidado y análisis de la intervención de Gestores y Gestiones Inmediatas de Protección, a nivel nacional. | E191: 13067.49666 | O191: 1 | P191: 1 | R191: =SUM(F191:Q191) -> 2
D192: Consolidado y análisis de la Verificación de la Gratuidad a nivel nacional . | E192: 0 | Q192: 1 | R192: 1
D193: Atención de casos sociales. | E193: 0 | O193: 1 | P193: 1 | Q193: 1 | R193: 3
C194: 18AO111149596 | D194: Fortalecer los canales de atención SIS. | E194: 88358.92774 | O194: 4 | P194: 5 | Q194: 5 | R194: 14
D195: Desarrollar acciones de gestión en los canales de atención SIS. | E195: 10453.99733 | O195: 1 | P195: 1 | Q195: 3 | R195: 5
D196: Supervisión a los canales de atención SIS. | E196: 2961.965909 | P196: 2 | Q196: 1 | R196: 3
D197: Realizar otras acciones de gestión de la GA | E197: 112343.8823 | O197: 1 | P197: 2 | Q197: 6 | R197: 9
B198: 05.02 - GERENCIA DE RIESGO Y EVALUACIÓN DE LAS PRESTACIONES
A199: OEI.02
B200: AEI.02.02
... 1405 more rows

Sheet B-6 ARTIC TAREAS PLANES (hidden)
A1: ANEXO B-6 Matriz de Articulación del POI con Planes Específicos
A2: Periodo PEI : 2017 - 2019
A3: Sector : 11 - SALUD | I3: Nivel de Gobierno : E - GOBIERNO NACIONAL
A4: Unidad Ejecutora : 001091 - SEGURO INTEGRAL DE SALUD | I4: Pliego : 135 - SEGURO INTEGRAL DE SALUD
A5: Centro de Costo | B5: Código | C5: DESCRIPCIÓN DE TAREAS | D5: P. Integridad | E5: P. Informático | F5: P. Comunicac. | G5: P Desar. Pers. | H5: P. A. Contrat | I5: P. Archivo
A6: 01.02.01 | B6: 18AO111149643 | C6: Gestionar campañas sobre el Código de Ética de la Función Pública | D6: x
C7: Coordinar la elaboración del Plan de Trabajo para el cierre de brechas | D7: x
C8: Promover la implementación de instrumentos que promueven la integridad pública | D8: x
C9: Realizar seguimiento y monitoreo de casos presentados a través del Libro de Reclamaciones | D9: x
C10: Realizar coordinaciones para gestionar la designación del Procurador Publico para la Entidad | D10: x
C11: Realizar una encuesta sobre como siente el servidor el clima etico al interior de la Entidad | D11: x
C12: Promover la transparencia, ética e integridad pública en los servidores de la entidad. | D12: x
C13: Realizar visitas inopinadas a las UDR | D13: x
C14: Fortalecer a la Oficina de Integridad Institucional | D14: x
C15: Elaborar instrumentos normativos asociado a riesgos de corrupción identificados en procesos existentes. | D15: x
B16: 18AO110921680 | C16: Realizar acciones de gestión de gestión documentaria y archivo | I16: x
C17: Ejecutar el Plan de Archivo | I17: x
A18: 02.01 | B18: 18AO111142739 | C18: Verificar el cumplimiento de norma expresa | H18: x
C19: Auditoria de cumplimiento | H19: x
C20: Seguimiento de medidas preventivas y correctivas | H20: x
C21: Evaluación de la implementación del Sistema de Control Interno | H21: x
A22: 04.01 | B22: 18AO110920388 | C22: Desarrollar e implementar el protocolo de la gestión de comunicación de crisis | F22: x
C23: Implementación del manual de identidad gráfica del sis a nivel nacional | F23: x
C24: Desarrollar estrategia de comunicación que impulse el comportamiento ético en la institución | D24: x
C25: Registro para Banco Fotográfico del SIS | F25: x
C26: Elaborar, ejecutar y evaluar el plan de comunicaciones del sis | F26: x
C27: Entrenamiento de voceros institucionales Sede Central y Macrorregionales | F27: x
C28: Gestión de material informativo y merchandising | F28: x
C29: Gestión y manejo de medios de comunicación | F29: x
C30: Evaluar la percepción de públicos objetivos sobre la gestión del sis | F30: x
B31: 18AO110920392 | C31: Atencion de solicitudes de acceso a la información pública | F31: x
C32: Realizar campañas de difusión del uso de correo electrónico | D32: x
C33: Mantener actualizada el Portal de Transparencia | D33: x
C34: Gestionar el portal de transparencia | F34: x
A35: 04.02.01 | B35: 18AO111142901 | C35: Realizar la fiscalización o verificación posterior de los procedimientos de contrataciones del Estado | D35: x
C36: Gestionar convenios para capacitacion y promoción de lucha anticorrupción | D36: x
C37: Diseñar instrumentos normativo que regule un procedimiento de fiscalizacion o verificacion posterior | D37: x
C38: Emitir informes de califiicación PAD a través de Secretarias Técnicas | D38: x
C39: Realizar seguimiento de plazos de prescripción en los Procedimientos Administrativos instaurados | D39: x
C40: Implementar acciones que eviten retrasos de procedimientos administrativos disciplinarios instaurados | D40: x
C41: Registrar las sanciones interpuestas en el Registro Nacional de Sanciones de Destitución y Despido (RNSDD) | D41: x
C42: Actualizar el Registro de Procedimientos Administrativos vinculados a la Corrupción (REPRAC) | D42: x
A43: 04.02.02 | B43: 18AO110920401 | C43: Elaborar, ejecutar y evaluar el plan de mantenimiento (infr, equip y mob)
C44: Contratar el suministro de servicios basicos | H44: x
C45: Contratar el servicio de alquiler de local a nivel nacional | H45: x
C46: Atención de bienes y servicios de las diferentes áreas | H46: x
A47: 04.02.03 | B47: 18AO110920421 | C47: Gestionar actividades para el desarrollo y capacitación. | G47: x
C48: Diseñar y ejecutar campañas de sensibilización en lucha contra la corrupción y código de ética | D48: x
C49: Realizar inducción a nuevos servidores sobre valores institucionales y el Código de Ética | D49: x
A50: 04.03 | B50: 18AO110920396 | C50: Planear y organizar tecnologias de la información | E50: x
C51: Gestionar la seguridad de la información | E51: x
C52: Explotar la información | E52: x
C53: Gestionar la capacidad de tecnologías de la información | E53: x
C54: Desarrollar soluciones de tecnologias de información | E54: x
C55: Gestionar cambios de tecnologías de la información | E55: x
C56: Gestionar la información | E56: x
C57: Implementar Libro de Reclamaciones Virtual | D57: x
C58: Identificar procesos con riesgo de corrupción en los sistemas de informacion | D58: x
C59: Adquisición software de monitoreo de redes | E59: x
C60: Plataforma de interoperabilidad del SIS con servicios PIDE y entidades externas | E60: x
C61: Correo electrónico en la nube | E61: x
C62: Herramientas de auditoria de base de datos | E62: x
C63: Adquisición de camaras de seguridad | E63: x
C64: Software de diseño gráfico, diseño web, edición de audio, video y meltimedia | E64: x
C65: Analisis de datos estadisticos | E65: x
C66: Analisis de datos estadisticos | E66: x
A67: 05.01 | B67: 18AO111142910 | C67: Identificar procesos que representen riesgos de corrupción | D67: x
C68: Realizar plan de afiliacion-acreditacion para el traslado del regimen subsidiado al semicontribitivo | D68: x
C69: Mejora de los procesos misionales de la Entidad | D69: x
A70: 05.02 | B70: 18AO111142911 | C70: Identificar procesos que representen riesgos de corrupción | D70: x
C71: Mejora de los procesos misionales de la Entidad | D71: x
A72: 05.03 | B72: 18AO111142912 | C72: Mejora de los procesos misionales de la Entidad | D72: x
B73: 18AO111143139 | C73: Identificar procesos que representen riesgos de corrupción | D73: x
C74: Implementar el Analisis Biometrico de huella digital por modalidad de pago | D74: x
C75: Identificar precios atipicos de medicamentos e insumos de las prestaciones que financia el SIS | D75: x

Sheet Hoja1 (hidden)
A1: a | C1: g | D1: f | E1: h | F1: TELEF
A2: 1049133 | C2: ANA MARÍA BARRUTIA BARRETO | D2: ABARRUTIA@SIS.GOB.PE | E2: 3.01 | F2: 20187254
A3: 1091171 | C3: VICTOR VALLEJO CUTTI | D3: VVALLEJO@SIS.GOB.PE | E3: 2.01 | F3: 20187254
A4: 1091174 | C4: ENRIQUE BARBOZA HUAPALLA | D4: EBARBOZA@SIS.GOB.PE | E4: 3.02 | F4: 20187254
A5: 1091176 | C5: ITALO SIFUENTES ALEMÁN | D5: ISIFUENTES@SIS.GOB.PE | E5: 4.01 | F5: 20187254
A6: 1091178 | C6: MISOLINO PORRAS BALVÍN | D6: MPORRAS@SIS.GOB.PE | E6: 04.02.01 | F6: 20187254
A7: 1091179 | C7: LUZ ELENA BASURTO YAMANI | D7: LBASURTO@SIS.GOB.PE | E7: 04.02.02 | F7: 20187254
A8: 1091180 | C8: PEDRO ANTONIO PERALES ORDOÑEZ | D8: APERALES@SIS.GOB.PE | E8: 04.02.03 | F8: 20187254
A9: 1091181 | C9: NELLY LOPEZ VARGAS | D9: NLOPEZ@SIS.GOB.PE | E9: 04.02.04 | F9: 20187254
A10: 1091182 | C10: GLADYS JIBAJA CASTILLO | D10: GJIBAJA@SIS.GOB.PE | E10: 04.02.05 | F10: 20187254
A11: 1091183 | C11: ROSA LEÓN LAOS | D11: RLEON@SIS.GOB.PE | E11: 4.03 | F11: 20187254
A12: 1091184 | C12: EDWIN LEZAMA ROMERO | D12: ELEZAMA@SIS.GOB.PE | E12: 5.01 | F12: 20187254
A13: 1091185 | C13: GINA BARCENA LUZA | D13: GBARCENA@SIS.GOB.PE | E13: 5.02 | F13: 20187254
A14: 1091186 | C14: CESAR GILMALCA PALACIOS | D14: CGIMALCA@SIS.GOB.PE | E14: 5.03 | F14: 20187254
A15: 1091188 | B15: GMR NORTE | C15: FERNANDO AUGUSTO CHANG GASCO | D15: FCHANG@SIS.GOB.PE | E15: 6.01
A16: 1091189 | C16: SAUL RIMARACHIN TARRILLO | D16: SRIMARACHIN1@SIS.GOB.PE | E16: 6.02 | F16: 20187254
A17: 1091190 | C17: SAUL RIMARACHIN TARRILLO | D17: SRIMARACHIN@SIS.GOB.PE | E17: 6.03 | F17: 20187254
A18: 1091191 | C18: MARLEY ROXANA ALTAMIRANO GALVEZ | D18: MALTAMIRANO@SIS.GOB.PE | E18: 6.04 | F18: 20187254
A19: 1091192 | C19: JORGE NEUBER VASQUEZ BERNILLA | D19: JVASQUEZ@SIS.GOB.PE | E19: 6.05 | F19: 20187254
A20: 1091193 | C20: MENDOZA SUCLUPE YAJAIRA KARINA | D20: YMENDOZA@SIS.GOB.PE | E20: 6.06 | F20: 20187254
A21: 1091194 | C21: ALEX MICHEL VARGAS VALDERRAMA | D21: AVARGAS@SIS.GOB.PE | E21: 6.07 | F21: 20187254
A22: 1091195 | C22: JAVIER EDUARDO AQUINO MORENO | D22: JAQUINO@SIS.GOB.PE | E22: 6.08 | F22: 20187254
A23: 1091196 | C23: GUISSELA GUERRERO ROMERO | D23: GGUERRERO@SIS.GOB.PE | E23: 6.09 | F23: 20187254
A24: 1091197 | B24: GMR NORTE | C24: YOAEL CORREA SALDARRIAGA | D24: YCORREA@SIS.GOB.PE | E24: 6.1
A25: 1091248 | B25: GMR SUR | C25: ROCIO VANESSA QUISPE HUMPIRI | D25: RQUISPEH@SIS.GOB.PE | E25: 7.01 | F25: 054-253849
A26: 1091249 | C26: OSCAR CALSIN HUMPIRE | D26: OCALSIN@SIS.GOB.PE | E26: 7.02 | F26: 20187254
A27: 1091250 | C27: MANUEL JESUS BACA FERNANDEZ | D27: MBACA@SIS.GOB.PE | E27: 7.03 | F27: 20187254
A28: 1091251 | C28: ALEJANDRINA LIDIA TICLLA JIMENEZ | D28: ATICLLA@SIS.GOB.PE | E28: 7.04 | F28: 20187254
A29: 1091252 | C29: RONALD ANGEL FLORES CENTENO | D29: RFLORES@SIS.GOB.PE | E29: 7.05 | F29: 20187254
A30: 1091253 | C30: GIOVANNA MARIA FLORES LOMBARDI | D30: GFLORES@SIS.GOB.PE | E30: 7.06 | F30: 20187254
A31: 1091254 | C31: LUIS RAUL LEON TICONA | D31: LLEON@SIS.GOB.PE | E31: 7.07 | F31: 20187254
A32: 1091255 | C32: JOSÉ GUILLERMO BENAVIDES PÁEZ | D32: JBENAVIDES@SIS.GOB.PE | E32: 7.08 | F32: 20187254
A33: 1091256 | B33: GMR CENTRO | C33: CRISTHIAN ALEXANDER PEREIRA MENA | D33: CPEREIRA@SIS.GOB.PE | E33: 8.01 | F33: 064-212478
A34: 1091257 | C34: JESUS EDSON ANGULO YAURI | D34: JANGULO@SIS.GOB.PE | E34: 8.02 | F34: 20187254
A35: 1091258 | C35: CLAUDIO GODOFREDO SOSA VILCA | D35: CSOSA@SIS.GOB.PE | E35: 8.03 | F35: 20187254
A36: 1091259 | C36: FERNANDO AQUINO MATEO | D36: FAQUINO@SIS.GOB.PE | E36: 8.04 | F36: 20187254
A37: 1091260 | C37: MICHAEL MIRKO MALDONADO MELGAR | D37: MMALDONADO@SIS.GOB.PE | E37: 8.05 | F37: 20187254
A38: 1093673 | B38: GMR ORIENTE | C38: RAFAEL VILCA BARBARAN | D38: RVILCA@SIS.GOB.PE | E38: 9.01 | F38: 065-225347
A39: 1093674 | C39: YAZMIN STEPHANIE MESTA ZAPATA | D39: YMESTA@SIS.GOB.PE | E39: 9.02 | F39: 20187254
A40: 1093675 | C40: MARIA NELLY ANGASPILCO FARRO | D40: MANGASPILCO@SIS.GOB.PE | E40: 9.03 | F40: 20187254
A41: 1093676 | C41: LUIS PINEDO MORI | D41: LPINEDO@SIS.GOB.PE | E41: 9.04 | F41: 20187254
A42: 1093677 | C42: CAROLA FERNANDEZ VÁSQUEZ | D42: CFERNANDEZ@SIS.GOB.PE | E42: 9.05 | F42: 20187254
A43: 1093678 | C43: NIZET EPIFANIA ORTEGA ALBORNOZ | D43: NORTEGA@SIS.GOB.PE | E43: 9.06 | F43: 20187254
A44: 1093679 | C44: CRISTOPHER IMAR VERA BARRANTES | D44: CVERA@SIS.GOB.PE | E44: 9.07 | F44: 20187254
A45: 1093680 | B45: GMR SUR MEDIO | C45: JAVIER PORTILLO QUISPE | D45: JPORTILLO@SIS.GOB.PE | E45: 10.01 | F45: 066-310152
A46: 1093681 | C46: ROBIN RENATO FUENTES LLAVE | D46: RFUENTES@SIS.GOB.PE | E46: 10.02 | F46: 20187254
A47: 1093682 | C47: YESSENIA ESPINOZA MONZON | D47: YESPINOZA@SIS.GOB.PE | E47: 10.03 | F47: 20187254
A48: 1093683 | C48: GODOFREDO EDUARDO CAMPOS PELAEZ | D48: ECAMPOS@SIS.GOB.PE | E48: 10.04 | F48: 20187254
A49: 1093684 | C49: JUAN MANUEL CASTELLANOS GARCÍA | D49: JCASTELLANOS@SIS.GOB.PE | E49: 10.05 | F49: 20187254
A50: 1093685 | B50: GMR CENTRO MEDIO | C50: GUSTAVO ZUÑIGA MENDOZA | D50: GZUNIGA@SIS.GOB.PE | E50: 11.01 | F50: 463-1389 / 261-3938
A51: 1093687 | C51: REBECA LUZMILA APOLIN ALVAREZ | D51: RAPOLIN@SIS.GOB.PE | E51: 11.02 | F51: 20187254
A52: 1093688 | C52: RAQUEL POBLETE MACEDO DE MORI | D52: RMACEDO@SIS.GOB.PE | E52: 11.03 | F52: 20187254
A53: 1093689 | C53: AMPELIO JUAN DE MATA MALLQUI MALLI | D53: AMALLQUI@SIS.GOB.PE | E53: 11.04 | F53: 20187254
A54: 1093690 | C54: ALEJANDRO MILLAN VILCHEZ | D54: AMILLAN@SIS.GOB.PE | E54: 11.05 | F54: 20187254
A55: 1093691 | C55: FELIZ VALENCIA NIZAMA | D55: FVALENCIA@SIS.GOB.PE | E55: 11.06 | F55: 20187254
A56: 1093692 | C56: FLORDELIZ NEGRON RIVA | D56: FNEGRON@SIS.GOB.PE | E56: 11.07 | F56: 20187254
A57: 1093693 | C57: JUAN JAVIER RAMIREZ CASTILLO | D57: JRAMIREZ@SIS.GOB.PE | E57: 11.08 | F57: 20187254
A58: 1093694 | C58: JUSTO HERNÁN MONTALVO PLEJO | D58: HMONTALVO@SIS.GOB.PE | E58: 11.09 | F58: 20187254
A59: 1116992 | C59: GUILLERMO MARTIN LEON MENACHO | D59: GLEON@SIS.GOB.PE | E59: 04.02.03 | F59: 20187254
A60: 1117042 | C60: SUSANA GARCIA AREVALO | D60: SGARCIA@SIS.GOB.PE | E60: 01.02.01 | F60: 20187254
A61: 1117055 | C61: ANA MARIA BARUTIA BARRETO | D61: ABARRUTIA3@SIS.GOB.PE | E61: 1.01 | F61: 20187254
A62: 1117057 | C62: LUZ DIAZ MEDINA | D62: LDIAZ@SIS.GOB.PE | E62: 01.02.02 | F62: 20187254
A63: 1117071 | B63: GMR NORTE | C63: MIRIAM JANET BAYONA ORTIZ | D63: MBAYONA@SIS.GOB.PE | E63: 6.01 | F63: 074-315064
A64: 1117083 | C64: CRISTIAN PAUL CESPEDES ORTIZ | D64: CCESPEDES@SIS.GOB.PE | E64: 6.02 | F64: 20187254
A65: 1117362 | C65: SUPERVISOR | D65: 001091@SUPERVISOR.COM | E65: 1 | F65: 20187254
A66: 1117368 | C66: FERNANDO MANUEL MESONES MANAY | D66: FMESONES@SIS.GOB.PE | E66: 6.09 | F66: 20187254
A67: 1117376 | C67: SYNTHIA SANTAMARIA BARDALES | D67: SSANTAMARIA@SIS.GOB.PE | E67: 9.06 | F67: 20187254
A68: 1117377 | C68: LOURDES ABARCA ARRAMBIDE | D68: LABARCA@SIS.GOB.PE | E68: 7.03 | F68: 20187254
A69: 1125302 | C69: OMAR HELDER ESPINOZA ORTIZ | D69: OESPINOZA@SIS.GOB.PE | E69: 11.03 | F69: 20187254
A70: 1125517 | C70: SABINO NOA GONZALES | D70: SNOA@SIS.GOB.PE | E70: 3 | F70: 20187254
A71: 1125601 | C71: LIZ AMPUERO TRGOSO | D71: LAMPUERO@SIS.GOB.PE | E71: 9.03 | F71: 20187254
A72: 1125605 | C72: MORAYMA SALAZAR CALERO | D72: MSALAZAR@SIS.GOB.PE | E72: 7.06 | F72: 20187254
A73: 1126418 | C73: JOSE CARLOS CONDORI CUTIPA | D73: JCONDORI@SIS.GOB.PE | E73: 7.04 | F73: 20187254
A74: 1126434 | C74: EBE JESUS ROMUCHO PORTILLO | D74: EROMUCHO@SIS.GOB.PE | E74: 10.04 | F74: 20187254
A75: 1126993 | C75: ERICK FLORES ALIAGA | D75: EFLORES@SIS.GOB.PE | E75: 3.01 | F75: 20187254
A76: 1129386 | C76: CARLOS REYES BUSTAMANTE | D76: CREYES@SIS.GOB.PE | E76: 5.03 | F76: 20187254
A77: 1129752 | C77: ROBERTO VELEZ CERVANTES | D77: RVELEZ@SIS.GOB.PE | E77: 10.05 | F77: 20187254
A78: 1132714 | C78: PATRICIA PAOLA GIL ZAMORA | D78: PGIL@SIS.GOB.PE | E78: 9.05 | F78: 20187254
A79: 1132762 | C79: CARMEN ROSA GONZALES REYES | D79: CGONZALESR@SIS.GOB.PE | E79: 11.06 | F79: 20187254
A80: 1132796 | C80: REINALDO ALAYO CABEL | D80: RALAYO@SIS.GOB.PE | E80: 6.07 | F80: 20187254
A81: 1133102 | C81: SADITH BLAS CARDENAS | D81: SBLAS@SIS.GOB.PE | E81: 5.01 | F81: 20187254
A82: 1133162 | C82: GIANNI SIDNEY RENGIFO MEJIA | D82: GRENGIFO@SIS.GOB.PE | E82: 4.01 | F82: 20187254
A83: 1134774 | C83: NELLY ROSA ÁNGELES MARTÍNEZ | D83: NANGELES@SIS.GOB.PE | E83: 3.01 | F83: 20187254
A84: 1134789 | C84: HIRVING FILVER PÉREZ MAYOR | D84: HPEREZ@SIS.GOB.PE | E84: 8.02 | F84: 20187254
A85: 1135117 | C85: FLOR MORAYMA CHAMBI ARANA | D85: FCHAMBI@SIS.GOB.PE | E85: 7.08 | F85: 20187254
A86: 1516498 | C86: CESAR AUGUSTO LOPEZ MONTEZA | D86: CLOPEZ@SIS.GOB.PE | E86: 6.09 | F86: 20187254
A87: 1516522 | C87: MARINO CIEZA RODRIGO | D87: MCIEZA@SIS.GOB.PE | E87: 6.05 | F87: 20187254
A88: 1516550 | C88: ABEL WILFREDO VIVANCO MUNAICO | D88: AVIVANCO@SIS.GOB.PE | E88: 5.01 | F88: 20187254
A89: 1516557 | C89: MELVIN HAROLD CHAMORRO CUBA | D89: MCHAMORRO@SIS.GOB.PE | E89: 11.04 | F89: 20187254
A90: 1516630 | C90: ALEMAN ANICAMA MERLY YANICE | D90: MALEMAN@SIS.GOB.PE | E90: 04.02.02 | F90: 20187254

Sheet Hoja2 (hidden)
A2: N° | B2: Exp | C2: Documento | D2: Concepto | E2: Detalle | F2: Monto | G2: C. C. | H2: Respuesta
A3: 1 | B3: 18-085464-001 | C3: Memorando N° 692-2018-SIS-SG | D3: Servicio de terceros | F3: 6000 | G3: SG
A4: 2 | B4: 18-084567-001 | C4: Memorando N° 612-2018-SIS-GA Informe N° 30-2018-SIS/GA (18-092864-003) | D4: Servicio de terceros | E4: Aló SIS | F4: 60000 | G4: GA | H4: Inf Conjunto 009
A5: 3 | B5: 18-076669-001 | C5: Nota Inf N° 431-2018-SIS-GMR NOR-UDR LLIB | D5: Servicio de terceros | E5: Auditor Médico | F5: 6500 | G5: UDR LA LIB | H5: Inf 10
A6: 4 | B6: 18-076989-001 | C6: Memorando N° 525-2018-SIS-GMR SUR | D6: Servicio de terceros | E6: Médico Evaluador | F6: 15000 | G6: GMR SUR | H6: Inf 10
A7: 5 | B7: 18-082403-001 | C7: Memorando N° 231-2018-SIS-OGIIT | E7: Post produccion para contenido educativo | F7: 5000 | G7: OGIIT
A8: 6 | B8: 18-074930-001 | C8: Nota Inf N° 005-2018-SIS-COM.INV.B.P | D8: Servicio de terceros | E8: Inventario Patrimonial | F8: 78000 | G8: ABAST
A9: 7 | B9: 18-083630-001 | C9: Nota Inf N° 161-2018-SIS-OGAR-OA | D9: Servicio de terceros | E9: Inventario Patrimonial | F9: 9000 | G9: ABAST
A10: 8 | B10: 18-082197-001 | C10: Nota Inf N° 814-2018-SIS-OGAR-OGRH | D10: Servicio de terceros | E10: Seguridad y salud en el trabajo | F10: 16000 | G10: OGGRH | H10: Inf Conjunto 008
A11: 9 | B11: 18-070157-001 | C11: Nota Inf N° 737-2018-SIS-OGAR-OGRH | D11: Servicio de terceros | E11: Sistema de Desplazamiento de Personal | F11: 16500 | G11: OGGRH | H11: Inf Conjunto 008
A12: 10 | B12: 18-052955-001 | C12: Nota Inf N° 618-2018-SIS-OGAR-OGRH | D12: Servicio de terceros | E12: Clasificación de archivos en RH | F12: 1800 | G12: OGGRH | H12: Inf Conjunto 008
A13: 11 | B13: 18-093128-001 | C13: Inf N° 070-2018-SIS/OGIT-UTI-MMR | D13: Licencia de sotfware | E13: Antivirus | G13: OGTI
A14: 12 | B14: 18-086174-001 | C14: Inf N° 057-2018-SIS/OGTI-UTI-US/EMS | D14: Servicio de terceros | E14: Diagnóstico situacional de Reglas de consistencia y validación | G14: OGTI
A15: 13 | B15: 18-091380-001 | C15: Inf N° 031-2018-SIS/OGTI-VBC | D15: Servicio de terceros | E15: Optimización de opeaciones en el SIS independiente (afiliacion SIASIS) | G15: OGTI
A16: 14 | B16: 18-091392-001 | C16: Inf N° 032-2018-SIS/OGTI-VBC | D16: Servicio de terceros | E16: Análisis y diseño de la afiliación virtual | G16: OGTI
A17: 15 | B17: 18-091397-001 | C17: Inf N° 033-2018-SIS/OGTI-VBC | D17: Servicio de terceros | E17: Análisis y diseño de la aplicación movil para la afiliación virtual | G17: OGTI
A18: 16 | B18: 18-092977-001 | C18: Inf N° 036-2018-SIS/OGTI-VBC | D18: Servicio de terceros | E18: Estándares de diseño de interfase en el SIASIS | G18: OGTI
A19: 17 | B19: 18-092971-001 | C19: Inf N° 035-2018-SIS/OGTI-VBC | D19: Servicio de terceros | E19: Actualización de la documentación técnica y funcional | G19: OGTI
A20: 18 | B20: 18-092968-001 | C20: Inf N° 034-2018-SIS/OGTI-VBC | D20: Servicio de terceros | E20: Gestión de la demanda | G20: OGTI
A21: 19 | B21: 18-092987-001 | C21: Inf N° 037-2018-SIS/OGTI-VBC | D21: Servicio de terceros | E21: Diagnóstico y actualización del aplicativo SIASIS | G21: OGTI
A22: 20 | B22: 18-004878-002 | C22: Memorando N° 2417-2018-SIS/OGAR | D22: Servicio de terceros | E22: Cableado estructurado | F22: 17487.6 | G22: UDR Puno

Sheet Hoja3 (hidden)
B4: SEGURO INTEGRAL DE SALUD} | D4: =+D5+D8+D11+D15 -> 2278034936 | E4: %
B5: OEI 1 | C5: Incrementar la cobertura de la población objetivo del SIS. | D5: =SUM(D6:D7) -> 2231862 | E5: =+D5/($D$5+$D$8+$D$11+$D$15) -> 0.0009797312432
B6: AEI 1.1 | C6: Afiliación al SIS incrementada en la población objetivo. | D6: 696645 | E6: =+D6/$D$5 -> 0.3121362342
B7: AEI 1.2 | C7: Mecanismos de protección de derechos optimizados | D7: 1535217 | E7: =+D7/$D$5 -> 0.6878637658
B8: OEI 2 | C8: Reducir los riesgos técnicos y financieros | D8: =SUM(D9:D10) -> 4021186 | E8: =+D8/($D$5+$D$8+$D$11+$D$15) -> 0.001765199443
B9: AEI 2.1 | C9: Control técnico y financiero | D9: 2665324 | E9: =+D9/$D$8 -> 0.6628203719
B10: AEI 2.2 | C10: Auditoria médica y financiera optimizada | D10: 1355862 | E10: =+D10/$D$8 -> 0.3371796281
B11: OEI 3 | C11: Mejorar la gestión del financiamiento de las prestaciones | D11: =SUM(D12:D14) -> 2178404134 | E11: =+D11/($D$5+$D$8+$D$11+$D$15) -> 0.9562645856
B12: AEI 3.1 | C12: Financiamiento del SIS incrementado por RDR | D12: 137610 | E12: =+D12/$D$11 -> 6.317009679e-05
B13: AEI 3.2 | C13: Recursos del SIS transferidos para reposición | D13: 2001410024 | E13: =+D13/$D$11 -> 0.9187505627
B14: AEI 3.3 | C14: Mecanismos de compra de servicios optimizados | D14: 176856500 | E14: 0.08118626716
B15: OEI 4 | C15: Mejorar la eficacia y eficiencia de los procesos de gestión institucional. | D15: =SUM(D16:D19) -> 93377754 | E15: =+D15/($D$5+$D$8+$D$11+$D$15) -> 0.04099048374
B16: AEI 4.1 | C16: Fortalecer la organización con enfoque de procesos. | D16: 30816417 | E16: =+D16/$D$15 -> 0.3300188287
B17: AEI 4.2 | C17: Mejorar la calidad y seguridad de los sistemas de información del SIS | D17: 3141493 | E17: =+D17/$D$15 -> 0.03364284174
B18: AEI 4.3 | C18: Fortalecer la comunicación estratégica institucional | D18: 2306698 | E18: 0.02470286445
B19: AEI 4.4 | C19: Mejorar la satisfacción aboral del personal del SIS. | D19: 57113146 | E19: 0.6116354651

Sheet Flujo Form (hidden)
D1: FLUJOGRAMA DEL PROCESO DEL PLANEAMIENTO OPERATIVO: Formulación y modificación del POI
D3: 1 | F3: 2
D5: OGPPDO | E5: Comisión OGPPDO | F5: Unidaes Orgánicas | G5: OGAJ | H5: JEFATURA | I5: OGIIT
B32: Formulacion
B33: Modificación
A35: 1 | B35: Inicio
A36: 2 | B36: Actualiza AOE
A37: 3 | B37: Revisa AOE
A38: 4 | B38: Esta Ok?
A39: 5 | B39: Registra AOE en CEPLAN
A40: 6 | B40: Comunica a UO
A41: 7 | B41: Registra MF en CEPLAN
A42: 8 | B42: Comunica sobre registro de MF a OGPPDO
A43: 9 | B43: Revisa las MF registradas por UO
A44: 10 | B44: Elabora Proyecto POI
A45: 11 | B45: Revisa y emite opinion legal
A46: 12 | B46: Conforme?
A47: 13 | B47: Firma RJ de Aprobación/Modificación del POI
B48: Publica en Portal de Transparencia
B49: Fin

Sheet Flujo Eval (hidden)
D2: 1 | E2: 2
D3: FLUJOGRAMA DEL PROCESO DEL PLANEAMIENTO OPERATIVO: Seguimiento y Evaluación del POI
D4: OGPPDO | E4: UNIDADES ORGANICAS | F4: SECRETARIA GENERAL | G4: OGIIT
B6: Seguimiento
B7: Evaluación
A8: 1 | B8: Inicio
A9: 2 | B9: Apertura CEPLAN para el registro de avance de MF
A10: 3 | B10: Comunica a UO el inicio de registro seguimiento en CEPLAN
A11: 4 | B11: Registra avance mensual de MF en CEPLAN
A12: 5 | B12: Comunica a OGPPDO el registro en CEPLAN
A13: 6 | B13: Elabora el Informe Cualitativo
A14: 7 | B14: Evalua los registros de UO en CEPLAN
A15: 8 | B15: Está Conforme?
A16: 11 | B16: Aprueba y elabora Informe de seguimiento / Evaluación
A17: 12 | B17: Remite a Secretaria General
A18: 13 | B18: Revisa y evalua el informe de seguimiento / monitoreo
B19: Publica en portal de transparencia
B20: Fin

Sheet Hoja4 (hidden)
D3: CODIGO | E3: SI
D4: 18AO110921692 | E4: SI
D5: 18AO110920381 | E5: SI
D6: 18AO111149643 | E6: SI
D7: 18AO110921680 | E7: SI
D8: 18AO111142739 | E8: SI
D9: 18AO111141933 | E9: SI
D10: 18AO111141936 | E10: SI
D11: 18AO111141939 | E11: SI
D12: 18AO111142899 | E12: SI
D13: 18AO110920388 | E13: SI
D14: 18AO110920392 | E14: SI
D15: 18AO111142901 | E15: SI
D16: 18AO110920401 | E16: SI
D17: 18AO110920421 | E17: SI
D18: 18AO111142904 | E18: SI
D19: 18AO110920537 | E19: SI
D20: 18AO111142907 | E20: SI
D21: 18AO110920396 | E21: SI
D22: 18AO111142910 | E22: SI
D23: 18AO110920443 | E23: SI
D24: 18AO111149595 | E24: SI
D25: 18AO111149596 | E25: SI
D26: 18AO111142911 | E26: SI
D27: 18AO110920533 | E27: SI
D28: 18AO111142912 | E28: SI
D29: 18AO111143139 | E29: SI
D30: 18AO111142914 | E30: SI
D31: 18AO111142916 | E31: SI
D32: 18AO111142917 | E32: SI
D33: 18AO111142918 | E33: SI
D34: 18AO111142919 | E34: SI
D35: 18AO110920454 | E35: SI
D36: 18AO111143143 | E36: SI
D37: 18AO111143144 | E37: SI
D38: 18AO111143145 | E38: SI
D39: 18AO111143147 | E39: SI
D40: 18AO111143148 | E40: SI
D41: 18AO111142921 | E41: SI
D42: 18AO111142923 | E42: SI
D43: 18AO111142924 | E43: SI
D44: 18AO111142926 | E44: SI
D45: 18AO111142927 | E45: SI
D46: 18AO111142928 | E46: SI
D47: 18AO111142929 | E47: SI
D48: 18AO111142930 | E48: SI
D49: 18AO111142931 | E49: SI
D50: 18AO111142932 | E50: SI
D51: 18AO111142933 | E51: SI
D52: 18AO111142934 | E52: SI
D53: 18AO111142935 | E53: SI
D54: 18AO111142936 | E54: SI
D55: 18AO111142937 | E55: SI
D56: 18AO111142938 | E56: SI
D57: 18AO111142939 | E57: SI
D58: 18AO111142940 | E58: SI
D59: 18AO111142941 | E59: SI
D60: 18AO111142942 | E60: SI
D61: 18AO111142944 | E61: SI
D62: 18AO111142945 | E62: SI
D63: 18AO111142946 | E63: SI
D64: 18AO111142947 | E64: SI
D65: 18AO111142948 | E65: SI
D66: 18AO111142949 | E66: SI
D67: 18AO111142950 | E67: SI
D68: 18AO111142951 | E68: SI
D69: 18AO111142952 | E69: SI
D70: 18AO111142953 | E70: SI
D71: 18AO111142954 | E71: SI
D72: 18AO111142955 | E72: SI
D73: 18AO111142956 | E73: SI
D74: 18AO111142957 | E74: SI
D75: 18AO111142958 | E75: SI
D76: 18AO111142959 | E76: SI
D77: 18AO111142960 | E77: SI
D78: 18AO111142961 | E78: SI
D79: 18AO111142962 | E79: SI
D80: 18AO111142963 | E80: SI
D81: 18AO111142964 | E81: SI
D82: 18AO111142965 | E82: SI
D83: 18AO111142966 | E83: SI
D84: 18AO110920906 | E84: SI
D85: 18AO111142967 | E85: SI
D86: 18AO111142968 | E86: SI
D87: 18AO111142969 | E87: SI
D88: 18AO111142970 | E88: SI
D89: 18AO111142971 | E89: SI
D90: 18AO111142972 | E90: SI
D91: 18AO111142973 | E91: SI
D92: 18AO111142974 | E92: SI
D93: 18AO111142975 | E93: SI
D94: 18AO111142976 | E94: SI
D95: 18AO111142977 | E95: SI
D96: 18AO111142978 | E96: SI
D97: 18AO111142979 | E97: SI
D98: 18AO111142980 | E98: SI
D99: 18AO111142981 | E99: SI
D100: 18AO111142982 | E100: SI
D101: 18AO111142983 | E101: SI
D102: 18AO111142984 | E102: SI
D103: 18AO111142985 | E103: SI
D104: 18AO111142986 | E104: SI
D105: 18AO111142987 | E105: SI
D106: 18AO111142988 | E106: SI
D107: 18AO111142989 | E107: SI
D108: 18AO111142990 | E108: SI
D109: 18AO111142991 | E109: SI
D110: 18AO111142992 | E110: SI
D111: 18AO111142993 | E111: SI
D112: 18AO111142994 | E112: SI
D113: 18AO111142995 | E113: SI
D114: 18AO111142996 | E114: SI
D115: 18AO111142997 | E115: SI
D116: 18AO111142998 | E116: SI
D117: 18AO111142999 | E117: SI
D118: 18AO111143000 | E118: SI
D119: 18AO111143001 | E119: SI
D120: 18AO111143002 | E120: SI
D121: 18AO111143003 | E121: SI
D122: 18AO111143004 | E122: SI
D123: 18AO110921144 | E123: SI
D124: 18AO111143005 | E124: SI
D125: 18AO111143006 | E125: SI
D126: 18AO111143007 | E126: SI
D127: 18AO111143008 | E127: SI
D128: 18AO111143009 | E128: SI
D129: 18AO111143010 | E129: SI
D130: 18AO111143011 | E130: SI
D131: 18AO111143012 | E131: SI
D132: 18AO111143013 | E132: SI
D133: 18AO111143014 | E133: SI
D134: 18AO111143015 | E134: SI
D135: 18AO111143016 | E135: SI
D136: 18AO111143017 | E136: SI
D137: 18AO111143018 | E137: SI
D138: 18AO111143019 | E138: SI
D139: 18AO111143020 | E139: SI
D140: 18AO111143021 | E140: SI
D141: 18AO111143022 | E141: SI
D142: 18AO111143023 | E142: SI
D143: 18AO111143024 | E143: SI
D144: 18AO111143027 | E144: SI
D145: 18AO111143029 | E145: SI
D146: 18AO111143030 | E146: SI
D147: 18AO110921291 | E147: SI
D148: 18AO111143031 | E148: SI
D149: 18AO111143032 | E149: SI
D150: 18AO111143033 | E150: SI
D151: 18AO111143035 | E151: SI
D152: 18AO111143036 | E152: SI
D153: 18AO111143037 | E153: SI
D154: 18AO111143038 | E154: SI
D155: 18AO111143039 | E155: SI
D156: 18AO111143040 | E156: SI
D157: 18AO111143041 | E157: SI
D158: 18AO111143042 | E158: SI
D159: 18AO111143043 | E159: SI
D160: 18AO111143044 | E160: SI
D161: 18AO111143045 | E161: SI
D162: 18AO111143046 | E162: SI
D163: 18AO111143047 | E163: SI
D164: 18AO111143048 | E164: SI
D165: 18AO111143049 | E165: SI
D166: 18AO111143050 | E166: SI
D167: 18AO111143051 | E167: SI
D168: 18AO111143052 | E168: SI
D169: 18AO111143053 | E169: SI
D170: 18AO111143054 | E170: SI
D171: 18AO111143055 | E171: SI
D172: 18AO111143056 | E172: SI
D173: 18AO111143057 | E173: SI
D174: 18AO111143058 | E174: SI
D175: 18AO111143059 | E175: SI
D176: 18AO111143060 | E176: SI
D177: 18AO111143061 | E177: SI
D178: 18AO111143062 | E178: SI
D179: 18AO111143063 | E179: SI
D180: 18AO111143064 | E180: SI
D181: 18AO110921549 | E181: SI
D182: 18AO111143066 | E182: SI
D183: 18AO111143067 | E183: SI
D184: 18AO111143068 | E184: SI
D185: 18AO111143069 | E185: SI
D186: 18AO111143070 | E186: SI
D187: 18AO111143071 | E187: SI
D188: 18AO111143072 | E188: SI
D189: 18AO111143074 | E189: SI
D190: 18AO111143075 | E190: SI
D191: 18AO111143076 | E191: SI
D192: 18AO111143077 | E192: SI
D193: 18AO111143078 | E193: SI
D194: 18AO111143079 | E194: SI
D195: 18AO111143080 | E195: SI
D196: 18AO111143082 | E196: SI
D197: 18AO111143090 | E197: SI
D198: 18AO111143091 | E198: SI
D199: 18AO111143092 | E199: SI
D200: 18AO111143093 | E200: SI
D201: 18AO111143094 | E201: SI
D202: 18AO111143095 | E202: SI
... 48 more rows
